ORGANISATION NAME,EFFECTIVE DATE,DIRECTORATE,SUPPLIER NAME,DATE PAID,AMOUNT (�),PURPOSE,TRANSACTION NO.
ROCHDALE BOROUGH COUNCIL,25/08/2017,NEIGHBOURHOODS AND ENVIRONMENT,7 PDS,25/08/2017,-8998.00 ,PURCHASE OF ICT HARDWARE,V001159424
ROCHDALE BOROUGH COUNCIL,01/08/2017,EARLY HELP AND SCHOOLS,7 PDS,01/08/2017,525.00 ,ACTIVITIES,V001150317
ROCHDALE BOROUGH COUNCIL,25/08/2017,NEIGHBOURHOODS AND ENVIRONMENT,7 PDS,25/08/2017,1000.00 ,PURCHASE OF ICT HARDWARE,V001159420
ROCHDALE BOROUGH COUNCIL,25/08/2017,NEIGHBOURHOODS AND ENVIRONMENT,7 PDS,25/08/2017,1400.00 ,PURCHASE OF ICT HARDWARE,V001159421
ROCHDALE BOROUGH COUNCIL,25/08/2017,NEIGHBOURHOODS AND ENVIRONMENT,7 PDS,25/08/2017,2100.00 ,PURCHASE OF ICT HARDWARE,V001159418
ROCHDALE BOROUGH COUNCIL,25/08/2017,NEIGHBOURHOODS AND ENVIRONMENT,7 PDS,25/08/2017,5200.00 ,PURCHASE OF ICT HARDWARE,V001159419
ROCHDALE BOROUGH COUNCIL,25/08/2017,NEIGHBOURHOODS AND ENVIRONMENT,7 PDS,25/08/2017,8998.00 ,PURCHASE OF ICT HARDWARE,V001158604
ROCHDALE BOROUGH COUNCIL,02/08/2017,PHYSICAL DIS & OLDER PEOPLE,A & S BUILDING & ROOFING,02/08/2017,1530.00 ,TRANSACTIONS-EXPENDITURE,V001155258
ROCHDALE BOROUGH COUNCIL,02/08/2017,PHYSICAL DIS & OLDER PEOPLE,A & S BUILDING & ROOFING,02/08/2017,2000.00 ,TRANSACTIONS-EXPENDITURE,V001155258
ROCHDALE BOROUGH COUNCIL,10/08/2017,PHYSICAL DIS & OLDER PEOPLE,A1 PLUMBING  AND HEATING,10/08/2017,1494.00 ,TRANSACTIONS-EXPENDITURE,V001157668
ROCHDALE BOROUGH COUNCIL,18/08/2017,PHYSICAL DIS & OLDER PEOPLE,ABBEY HEALTHCARE,18/08/2017,590.62 ,RESIDENTIAL LONG TERM,V001151393
ROCHDALE BOROUGH COUNCIL,18/08/2017,PHYSICAL DIS & OLDER PEOPLE,ABBEY HEALTHCARE,18/08/2017,590.62 ,RESIDENTIAL LONG TERM,V001151394
ROCHDALE BOROUGH COUNCIL,18/08/2017,PHYSICAL DIS & OLDER PEOPLE,ABBEY HEALTHCARE,18/08/2017,590.62 ,RESIDENTIAL LONG TERM,V001160799
ROCHDALE BOROUGH COUNCIL,18/08/2017,PHYSICAL DIS & OLDER PEOPLE,ABBEY HEALTHCARE,18/08/2017,590.62 ,RESIDENTIAL LONG TERM,V001160800
ROCHDALE BOROUGH COUNCIL,04/08/2017,PHYSICAL DIS & OLDER PEOPLE,ABBEYWOOD TOTTINGTON LIMITED,04/08/2017,651.18 ,RESIDENTIAL LONG TERM,V001156273
ROCHDALE BOROUGH COUNCIL,18/08/2017,PHYSICAL DIS & OLDER PEOPLE,ABBEYWOOD TOTTINGTON LIMITED,18/08/2017,651.18 ,RESIDENTIAL LONG TERM,V001160691
ROCHDALE BOROUGH COUNCIL,04/08/2017,PHYSICAL DIS & OLDER PEOPLE,ABBOTSFORD NURSING HOME,04/08/2017,568.10 ,RESIDENTIAL LONG TERM,V001156475
ROCHDALE BOROUGH COUNCIL,18/08/2017,PHYSICAL DIS & OLDER PEOPLE,ABBOTSFORD NURSING HOME,18/08/2017,568.10 ,RESIDENTIAL LONG TERM,V001160952
ROCHDALE BOROUGH COUNCIL,14/08/2017,PROPERTY AND HIGHWAYS,ABC INDUSTRIAL DOORS LTD,14/08/2017,550.00 ,TRANSACTIONS-EXPENDITURE,V001150109
ROCHDALE BOROUGH COUNCIL,14/08/2017,ECONOMY DIRECTORATE,ABC INDUSTRIAL DOORS LTD,14/08/2017,595.00 ,ELECTRICAL,V001150156
ROCHDALE BOROUGH COUNCIL,14/08/2017,NEIGHBOURHOODS AND ENVIRONMENT,ABLE LORRY LOADERS LTD,14/08/2017,1950.26 ,VEHICLE MAINTENANCE,V001157987
ROCHDALE BOROUGH COUNCIL,11/08/2017,EARLY HELP AND SCHOOLS,ACCESS DOOR SYSTEMS LTD,11/08/2017,790.00 ,REPAIRS & ALTS OF BUILDINGS,V001155256
ROCHDALE BOROUGH COUNCIL,04/08/2017,LEARNING DIS & MENTAL HEALTH,ACORN CARE AND EDUCATION LTD,04/08/2017,4538.46 ,RESIDENTIAL LONG TERM,V001156228
ROCHDALE BOROUGH COUNCIL,18/08/2017,LEARNING DIS & MENTAL HEALTH,ACORN CARE AND EDUCATION LTD,18/08/2017,4538.46 ,RESIDENTIAL LONG TERM,V001160647
ROCHDALE BOROUGH COUNCIL,17/08/2017,CHILDREN�S SOCIAL CARE,ACORN HOUSE FOSTERING SERVICES LIMITED,17/08/2017,3214.39 ,FOSTER PARENTS BASIC ALLOWANCE,V001158790
ROCHDALE BOROUGH COUNCIL,17/08/2017,CHILDREN�S SOCIAL CARE,ACORN HOUSE FOSTERING SERVICES LIMITED,17/08/2017,3218.11 ,FOSTER PARENTS BASIC ALLOWANCE,V001158787
ROCHDALE BOROUGH COUNCIL,17/08/2017,CHILDREN�S SOCIAL CARE,ACORN HOUSE FOSTERING SERVICES LIMITED,17/08/2017,3281.66 ,FOSTER PARENTS BASIC ALLOWANCE,V001158786
ROCHDALE BOROUGH COUNCIL,17/08/2017,CHILDREN�S SOCIAL CARE,ACORN HOUSE FOSTERING SERVICES LIMITED,17/08/2017,3575.85 ,FOSTER PARENTS BASIC ALLOWANCE,V001158788
ROCHDALE BOROUGH COUNCIL,17/08/2017,CHILDREN�S SOCIAL CARE,ACORN HOUSE FOSTERING SERVICES LIMITED,17/08/2017,3622.04 ,FOSTER PARENTS BASIC ALLOWANCE,V001158789
ROCHDALE BOROUGH COUNCIL,17/08/2017,PHYSICAL DIS & OLDER PEOPLE,ACTION FIRST IPEOPLE LTD,17/08/2017,700.00 ,FEES / COMMISSION,V001158920
ROCHDALE BOROUGH COUNCIL,17/08/2017,PHYSICAL DIS & OLDER PEOPLE,ACTION FIRST IPEOPLE LTD,17/08/2017,700.00 ,FEES / COMMISSION,V001158922
ROCHDALE BOROUGH COUNCIL,31/08/2017,PHYSICAL DIS & OLDER PEOPLE,ACTION FIRST IPEOPLE LTD,31/08/2017,700.00 ,FEES / COMMISSION,V001163143
ROCHDALE BOROUGH COUNCIL,03/08/2017,PHYSICAL DIS & OLDER PEOPLE,ACTION FIRST IPEOPLE LTD,03/08/2017,1050.00 ,FEES / COMMISSION,V001155274
ROCHDALE BOROUGH COUNCIL,10/08/2017,PHYSICAL DIS & OLDER PEOPLE,ACTION FIRST IPEOPLE LTD,10/08/2017,1050.00 ,FEES / COMMISSION,V001158638
ROCHDALE BOROUGH COUNCIL,10/08/2017,PHYSICAL DIS & OLDER PEOPLE,ACTION FIRST IPEOPLE LTD,10/08/2017,1050.00 ,FEES / COMMISSION,V001158639
ROCHDALE BOROUGH COUNCIL,31/08/2017,PHYSICAL DIS & OLDER PEOPLE,ACTION FIRST IPEOPLE LTD,31/08/2017,1050.00 ,FEES / COMMISSION,V001163140
ROCHDALE BOROUGH COUNCIL,31/08/2017,PHYSICAL DIS & OLDER PEOPLE,ACTION FIRST IPEOPLE LTD,31/08/2017,1050.00 ,FEES / COMMISSION,V001163152
ROCHDALE BOROUGH COUNCIL,17/08/2017,PHYSICAL DIS & OLDER PEOPLE,ACTION FIRST IPEOPLE LTD,17/08/2017,1400.00 ,FEES / COMMISSION,V001158921
ROCHDALE BOROUGH COUNCIL,31/08/2017,PHYSICAL DIS & OLDER PEOPLE,ACTION FIRST IPEOPLE LTD,31/08/2017,1400.00 ,FEES / COMMISSION,V001163141
ROCHDALE BOROUGH COUNCIL,10/08/2017,PHYSICAL DIS & OLDER PEOPLE,ACTION FIRST IPEOPLE LTD,10/08/2017,1750.00 ,FEES / COMMISSION,V001158640
ROCHDALE BOROUGH COUNCIL,17/08/2017,PHYSICAL DIS & OLDER PEOPLE,ACTION FIRST IPEOPLE LTD,17/08/2017,1750.00 ,FEES / COMMISSION,V001158923
ROCHDALE BOROUGH COUNCIL,31/08/2017,PHYSICAL DIS & OLDER PEOPLE,ACTION FIRST IPEOPLE LTD,31/08/2017,1750.00 ,FEES / COMMISSION,V001163142
ROCHDALE BOROUGH COUNCIL,03/08/2017,PHYSICAL DIS & OLDER PEOPLE,ACTION FIRST IPEOPLE LTD,03/08/2017,2100.00 ,FEES / COMMISSION,V001155272
ROCHDALE BOROUGH COUNCIL,03/08/2017,PHYSICAL DIS & OLDER PEOPLE,ACTION FIRST IPEOPLE LTD,03/08/2017,2100.00 ,FEES / COMMISSION,V001155273
ROCHDALE BOROUGH COUNCIL,10/08/2017,PHYSICAL DIS & OLDER PEOPLE,ACTION FIRST IPEOPLE LTD,10/08/2017,2100.00 ,FEES / COMMISSION,V001158641
ROCHDALE BOROUGH COUNCIL,10/08/2017,PHYSICAL DIS & OLDER PEOPLE,ACTION FIRST IPEOPLE LTD,10/08/2017,2450.00 ,FEES / COMMISSION,V001158619
ROCHDALE BOROUGH COUNCIL,17/08/2017,PHYSICAL DIS & OLDER PEOPLE,ACTION FIRST IPEOPLE LTD,17/08/2017,2450.00 ,FEES / COMMISSION,V001158924
ROCHDALE BOROUGH COUNCIL,02/08/2017,PHYSICAL DIS & OLDER PEOPLE,ADAPT BUILDING SERVICES LTD,02/08/2017,4713.50 ,MINOR BUILDING WORKS,V001155284
ROCHDALE BOROUGH COUNCIL,02/08/2017,PHYSICAL DIS & OLDER PEOPLE,ADAPT BUILDING SERVICES LTD,02/08/2017,4713.50 ,MINOR BUILDING WORKS,V001155284
ROCHDALE BOROUGH COUNCIL,17/08/2017,PHYSICAL DIS & OLDER PEOPLE,ADASS,17/08/2017,1748.00 ,SUBSCRIPTIONS,V001158062
ROCHDALE BOROUGH COUNCIL,04/08/2017,CHILDREN�S SOCIAL CARE,ADOPTION MATTERS NORTHWEST,04/08/2017,726.05 ,ACTIVITIES,V001149362
ROCHDALE BOROUGH COUNCIL,23/08/2017,CHILDREN�S SOCIAL CARE,ADOPTION MATTERS NORTHWEST,23/08/2017,2250.00 ,ADOPTION PAYMENTS,V001161583
ROCHDALE BOROUGH COUNCIL,17/08/2017,ECONOMY DIRECTORATE,ADT FIRE & SECURITY PLC,17/08/2017,1817.44 ,EQUIPMENT - GENERAL,V001155340
ROCHDALE BOROUGH COUNCIL,14/08/2017,NEIGHBOURHOODS AND ENVIRONMENT,AEBI SCHMIDT UK LIMITED,14/08/2017,-557.61 ,VEHICLE MAINTENANCE,V001148797
ROCHDALE BOROUGH COUNCIL,14/08/2017,NEIGHBOURHOODS AND ENVIRONMENT,AEBI SCHMIDT UK LIMITED,14/08/2017,557.61 ,VEHICLE MAINTENANCE,V001148798
ROCHDALE BOROUGH COUNCIL,14/08/2017,NEIGHBOURHOODS AND ENVIRONMENT,AEBI SCHMIDT UK LIMITED,14/08/2017,696.80 ,VEHICLE MAINTENANCE,V001140342
ROCHDALE BOROUGH COUNCIL,10/08/2017,CHILDREN�S SOCIAL CARE,AFTER ADOPTION,10/08/2017,1995.00 ,ACTIVITIES,V001149367
ROCHDALE BOROUGH COUNCIL,22/08/2017,CHILDREN�S SOCIAL CARE,AFTER ADOPTION,22/08/2017,2000.00 ,ACTIVITIES,V001159010
ROCHDALE BOROUGH COUNCIL,08/08/2017,NEIGHBOURHOODS AND ENVIRONMENT,AGILISYS LIMITED,08/08/2017,3946.07 ,AGILISYS CONTRACT,V001148289
ROCHDALE BOROUGH COUNCIL,25/08/2017,NEIGHBOURHOODS AND ENVIRONMENT,AGILISYS LIMITED,25/08/2017,3946.07 ,AGILISYS CONTRACT,V001157399
ROCHDALE BOROUGH COUNCIL,08/08/2017,NEIGHBOURHOODS AND ENVIRONMENT,AGILISYS LIMITED,08/08/2017,97723.80 ,AGILISYS CONTRACT,V001148290
ROCHDALE BOROUGH COUNCIL,25/08/2017,NEIGHBOURHOODS AND ENVIRONMENT,AGILISYS LIMITED,25/08/2017,97723.80 ,AGILISYS CONTRACT,V001157400
ROCHDALE BOROUGH COUNCIL,04/08/2017,LEARNING DIS & MENTAL HEALTH,AKARI CARE,04/08/2017,2121.20 ,NURSING LONG TERM,V001156296
ROCHDALE BOROUGH COUNCIL,18/08/2017,LEARNING DIS & MENTAL HEALTH,AKARI CARE,18/08/2017,2121.20 ,NURSING LONG TERM,V001160742
ROCHDALE BOROUGH COUNCIL,31/08/2017,NEIGHBOURHOODS AND ENVIRONMENT,ALAN HAMER PHOTOGRAPHER,31/08/2017,500.00 ,ACTIVITIES,V001161370
ROCHDALE BOROUGH COUNCIL,16/08/2017,NEIGHBOURHOODS AND ENVIRONMENT,ALIGNED ASSETS LIMITED,16/08/2017,1424.05 ,SOFTWARE,V001157874
ROCHDALE BOROUGH COUNCIL,16/08/2017,NEIGHBOURHOODS AND ENVIRONMENT,ALIGNED ASSETS LIMITED,16/08/2017,2849.05 ,SOFTWARE,V001157874
ROCHDALE BOROUGH COUNCIL,16/08/2017,NEIGHBOURHOODS AND ENVIRONMENT,ALIGNED ASSETS LIMITED,16/08/2017,3324.05 ,SOFTWARE,V001157874
ROCHDALE BOROUGH COUNCIL,03/08/2017,EARLY HELP AND SCHOOLS,ALISTAIR BROMHEAD LTD,03/08/2017,995.00 ,TRAINING-QUALIFICATION,V001142232
ROCHDALE BOROUGH COUNCIL,23/08/2017,PHYSICAL DIS & OLDER PEOPLE,ALLIED HEALTHCARE,23/08/2017,11294.62 ,HOME CARE - ADULT SERVICES,V001161645
ROCHDALE BOROUGH COUNCIL,10/08/2017,PHYSICAL DIS & OLDER PEOPLE,ALLIED HEALTHCARE,10/08/2017,11552.38 ,HOME CARE - ADULT SERVICES,V001158559
ROCHDALE BOROUGH COUNCIL,29/08/2017,PHYSICAL DIS & OLDER PEOPLE,ALLIED HEALTHCARE,29/08/2017,11568.89 ,HOME CARE - ADULT SERVICES,V001163378
ROCHDALE BOROUGH COUNCIL,02/08/2017,PHYSICAL DIS & OLDER PEOPLE,ALLIED HEALTHCARE,02/08/2017,11688.56 ,HOME CARE - ADULT SERVICES,V001155381
ROCHDALE BOROUGH COUNCIL,17/08/2017,PHYSICAL DIS & OLDER PEOPLE,ALLIED HEALTHCARE,17/08/2017,12011.18 ,HOME CARE - ADULT SERVICES,V001161050
ROCHDALE BOROUGH COUNCIL,18/08/2017,LEARNING DIS & MENTAL HEALTH,ALMOND VILLAS LIMITED,18/08/2017,991.20 ,NURSING LONG TERM,V001160402
ROCHDALE BOROUGH COUNCIL,18/08/2017,LEARNING DIS & MENTAL HEALTH,ALMOND VILLAS LIMITED,18/08/2017,991.20 ,NURSING LONG TERM,V001160403
ROCHDALE BOROUGH COUNCIL,18/08/2017,LEARNING DIS & MENTAL HEALTH,ALMOND VILLAS LIMITED,18/08/2017,991.20 ,NURSING LONG TERM,V001160465
ROCHDALE BOROUGH COUNCIL,18/08/2017,LEARNING DIS & MENTAL HEALTH,ALMOND VILLAS LIMITED,18/08/2017,991.20 ,NURSING LONG TERM,V001160466
ROCHDALE BOROUGH COUNCIL,18/08/2017,LEARNING DIS & MENTAL HEALTH,ALMOND VILLAS LIMITED,18/08/2017,991.20 ,NURSING LONG TERM,V001160490
ROCHDALE BOROUGH COUNCIL,18/08/2017,LEARNING DIS & MENTAL HEALTH,ALMOND VILLAS LIMITED,18/08/2017,991.20 ,NURSING LONG TERM,V001160491
ROCHDALE BOROUGH COUNCIL,18/08/2017,LEARNING DIS & MENTAL HEALTH,ALMOND VILLAS LIMITED,18/08/2017,2520.00 ,RESIDENTIAL LONG TERM,V001160589
ROCHDALE BOROUGH COUNCIL,18/08/2017,LEARNING DIS & MENTAL HEALTH,ALMOND VILLAS LIMITED,18/08/2017,2520.00 ,RESIDENTIAL LONG TERM,V001160590
ROCHDALE BOROUGH COUNCIL,25/08/2017,EARLY HELP AND SCHOOLS,ALTERNATIVE CONSTRUCTION EDUCATION,25/08/2017,2905.50 ,ACTIVITIES,V001163245
ROCHDALE BOROUGH COUNCIL,25/08/2017,LEARNING DIS & MENTAL HEALTH,ALTERNATIVE FUTURES GROUP LTD,25/08/2017,584.76 ,PERSONAL BUDGETS - MANAGED,V001161938
ROCHDALE BOROUGH COUNCIL,25/08/2017,LEARNING DIS & MENTAL HEALTH,ALTERNATIVE FUTURES GROUP LTD,25/08/2017,590.14 ,INDIVIDUAL SERVICE FUND,V001161920
ROCHDALE BOROUGH COUNCIL,25/08/2017,LEARNING DIS & MENTAL HEALTH,ALTERNATIVE FUTURES GROUP LTD,25/08/2017,604.80 ,INDIVIDUAL SERVICE FUND,V001162089
ROCHDALE BOROUGH COUNCIL,25/08/2017,LEARNING DIS & MENTAL HEALTH,ALTERNATIVE FUTURES GROUP LTD,25/08/2017,630.00 ,INDIVIDUAL SERVICE FUND,V001162140
ROCHDALE BOROUGH COUNCIL,25/08/2017,LEARNING DIS & MENTAL HEALTH,ALTERNATIVE FUTURES GROUP LTD,25/08/2017,637.92 ,PERSONAL BUDGETS - MANAGED,V001162088
ROCHDALE BOROUGH COUNCIL,25/08/2017,LEARNING DIS & MENTAL HEALTH,ALTERNATIVE FUTURES GROUP LTD,25/08/2017,823.98 ,PERSONAL BUDGETS - MANAGED,V001162072
ROCHDALE BOROUGH COUNCIL,25/08/2017,LEARNING DIS & MENTAL HEALTH,ALTERNATIVE FUTURES GROUP LTD,25/08/2017,877.52 ,INDIVIDUAL SERVICE FUND,V001162048
ROCHDALE BOROUGH COUNCIL,25/08/2017,LEARNING DIS & MENTAL HEALTH,ALTERNATIVE FUTURES GROUP LTD,25/08/2017,918.00 ,INDIVIDUAL SERVICE FUND,V001161921
ROCHDALE BOROUGH COUNCIL,25/08/2017,LEARNING DIS & MENTAL HEALTH,ALTERNATIVE FUTURES GROUP LTD,25/08/2017,918.00 ,INDIVIDUAL SERVICE FUND,V001161922
ROCHDALE BOROUGH COUNCIL,25/08/2017,LEARNING DIS & MENTAL HEALTH,ALTERNATIVE FUTURES GROUP LTD,25/08/2017,918.00 ,INDIVIDUAL SERVICE FUND,V001161923
ROCHDALE BOROUGH COUNCIL,25/08/2017,LEARNING DIS & MENTAL HEALTH,ALTERNATIVE FUTURES GROUP LTD,25/08/2017,1228.76 ,INDIVIDUAL SERVICE FUND,V001162233
ROCHDALE BOROUGH COUNCIL,25/08/2017,LEARNING DIS & MENTAL HEALTH,ALTERNATIVE FUTURES GROUP LTD,25/08/2017,1309.76 ,INDIVIDUAL SERVICE FUND,V001161948
ROCHDALE BOROUGH COUNCIL,25/08/2017,LEARNING DIS & MENTAL HEALTH,ALTERNATIVE FUTURES GROUP LTD,25/08/2017,1498.52 ,INDIVIDUAL SERVICE FUND,V001162037
ROCHDALE BOROUGH COUNCIL,25/08/2017,LEARNING DIS & MENTAL HEALTH,ALTERNATIVE FUTURES GROUP LTD,25/08/2017,1620.00 ,INDIVIDUAL SERVICE FUND,V001162502
ROCHDALE BOROUGH COUNCIL,25/08/2017,LEARNING DIS & MENTAL HEALTH,ALTERNATIVE FUTURES GROUP LTD,25/08/2017,1633.52 ,INDIVIDUAL SERVICE FUND,V001162039
ROCHDALE BOROUGH COUNCIL,25/08/2017,LEARNING DIS & MENTAL HEALTH,ALTERNATIVE FUTURES GROUP LTD,25/08/2017,1764.00 ,INDIVIDUAL SERVICE FUND,V001162141
ROCHDALE BOROUGH COUNCIL,25/08/2017,LEARNING DIS & MENTAL HEALTH,ALTERNATIVE FUTURES GROUP LTD,25/08/2017,2524.76 ,INDIVIDUAL SERVICE FUND,V001162314
ROCHDALE BOROUGH COUNCIL,25/08/2017,LEARNING DIS & MENTAL HEALTH,ALTERNATIVE FUTURES GROUP LTD,25/08/2017,2870.14 ,PERSONAL BUDGETS - MANAGED,V001161935
ROCHDALE BOROUGH COUNCIL,25/08/2017,LEARNING DIS & MENTAL HEALTH,ALTERNATIVE FUTURES GROUP LTD,25/08/2017,2913.56 ,INDIVIDUAL SERVICE FUND,V001162553
ROCHDALE BOROUGH COUNCIL,25/08/2017,LEARNING DIS & MENTAL HEALTH,ALTERNATIVE FUTURES GROUP LTD,25/08/2017,2928.24 ,INDIVIDUAL SERVICE FUND,V001162142
ROCHDALE BOROUGH COUNCIL,25/08/2017,LEARNING DIS & MENTAL HEALTH,ALTERNATIVE FUTURES GROUP LTD,25/08/2017,2928.24 ,INDIVIDUAL SERVICE FUND,V001162143
ROCHDALE BOROUGH COUNCIL,25/08/2017,LEARNING DIS & MENTAL HEALTH,ALTERNATIVE FUTURES GROUP LTD,25/08/2017,2928.24 ,INDIVIDUAL SERVICE FUND,V001162144
ROCHDALE BOROUGH COUNCIL,25/08/2017,LEARNING DIS & MENTAL HEALTH,ALTERNATIVE FUTURES GROUP LTD,25/08/2017,2928.24 ,INDIVIDUAL SERVICE FUND,V001162145
ROCHDALE BOROUGH COUNCIL,25/08/2017,LEARNING DIS & MENTAL HEALTH,ALTERNATIVE FUTURES GROUP LTD,25/08/2017,2928.24 ,INDIVIDUAL SERVICE FUND,V001162146
ROCHDALE BOROUGH COUNCIL,25/08/2017,LEARNING DIS & MENTAL HEALTH,ALTERNATIVE FUTURES GROUP LTD,25/08/2017,2928.24 ,INDIVIDUAL SERVICE FUND,V001162147
ROCHDALE BOROUGH COUNCIL,25/08/2017,LEARNING DIS & MENTAL HEALTH,ALTERNATIVE FUTURES GROUP LTD,25/08/2017,2928.24 ,INDIVIDUAL SERVICE FUND,V001162148
ROCHDALE BOROUGH COUNCIL,25/08/2017,LEARNING DIS & MENTAL HEALTH,ALTERNATIVE FUTURES GROUP LTD,25/08/2017,2928.24 ,INDIVIDUAL SERVICE FUND,V001162149
ROCHDALE BOROUGH COUNCIL,25/08/2017,LEARNING DIS & MENTAL HEALTH,ALTERNATIVE FUTURES GROUP LTD,25/08/2017,2930.00 ,INDIVIDUAL SERVICE FUND,V001162575
ROCHDALE BOROUGH COUNCIL,25/08/2017,LEARNING DIS & MENTAL HEALTH,ALTERNATIVE FUTURES GROUP LTD,25/08/2017,2967.52 ,INDIVIDUAL SERVICE FUND,V001161933
ROCHDALE BOROUGH COUNCIL,25/08/2017,LEARNING DIS & MENTAL HEALTH,ALTERNATIVE FUTURES GROUP LTD,25/08/2017,3073.12 ,INDIVIDUAL SERVICE FUND,V001161969
ROCHDALE BOROUGH COUNCIL,25/08/2017,LEARNING DIS & MENTAL HEALTH,ALTERNATIVE FUTURES GROUP LTD,25/08/2017,3146.00 ,INDIVIDUAL SERVICE FUND,V001162101
ROCHDALE BOROUGH COUNCIL,25/08/2017,LEARNING DIS & MENTAL HEALTH,ALTERNATIVE FUTURES GROUP LTD,25/08/2017,3267.32 ,INDIVIDUAL SERVICE FUND,V001161927
ROCHDALE BOROUGH COUNCIL,25/08/2017,LEARNING DIS & MENTAL HEALTH,ALTERNATIVE FUTURES GROUP LTD,25/08/2017,3267.32 ,INDIVIDUAL SERVICE FUND,V001161928
ROCHDALE BOROUGH COUNCIL,25/08/2017,LEARNING DIS & MENTAL HEALTH,ALTERNATIVE FUTURES GROUP LTD,25/08/2017,3335.00 ,INDIVIDUAL SERVICE FUND,V001162433
ROCHDALE BOROUGH COUNCIL,25/08/2017,LEARNING DIS & MENTAL HEALTH,ALTERNATIVE FUTURES GROUP LTD,25/08/2017,3345.52 ,INDIVIDUAL SERVICE FUND,V001161768
ROCHDALE BOROUGH COUNCIL,25/08/2017,LEARNING DIS & MENTAL HEALTH,ALTERNATIVE FUTURES GROUP LTD,25/08/2017,3550.84 ,INDIVIDUAL SERVICE FUND,V001161929
ROCHDALE BOROUGH COUNCIL,25/08/2017,LEARNING DIS & MENTAL HEALTH,ALTERNATIVE FUTURES GROUP LTD,25/08/2017,3550.84 ,INDIVIDUAL SERVICE FUND,V001161930
ROCHDALE BOROUGH COUNCIL,25/08/2017,LEARNING DIS & MENTAL HEALTH,ALTERNATIVE FUTURES GROUP LTD,25/08/2017,3588.52 ,INDIVIDUAL SERVICE FUND,V001161932
ROCHDALE BOROUGH COUNCIL,25/08/2017,LEARNING DIS & MENTAL HEALTH,ALTERNATIVE FUTURES GROUP LTD,25/08/2017,3602.00 ,INDIVIDUAL SERVICE FUND,V001161941
ROCHDALE BOROUGH COUNCIL,25/08/2017,LEARNING DIS & MENTAL HEALTH,ALTERNATIVE FUTURES GROUP LTD,25/08/2017,3660.88 ,INDIVIDUAL SERVICE FUND,V001161830
ROCHDALE BOROUGH COUNCIL,25/08/2017,LEARNING DIS & MENTAL HEALTH,ALTERNATIVE FUTURES GROUP LTD,25/08/2017,3713.00 ,INDIVIDUAL SERVICE FUND,V001161954
ROCHDALE BOROUGH COUNCIL,25/08/2017,LEARNING DIS & MENTAL HEALTH,ALTERNATIVE FUTURES GROUP LTD,25/08/2017,4023.52 ,INDIVIDUAL SERVICE FUND,V001161940
ROCHDALE BOROUGH COUNCIL,25/08/2017,LEARNING DIS & MENTAL HEALTH,ALTERNATIVE FUTURES GROUP LTD,25/08/2017,4077.32 ,INDIVIDUAL SERVICE FUND,V001161926
ROCHDALE BOROUGH COUNCIL,25/08/2017,LEARNING DIS & MENTAL HEALTH,ALTERNATIVE FUTURES GROUP LTD,25/08/2017,4092.48 ,INDIVIDUAL SERVICE FUND,V001162150
ROCHDALE BOROUGH COUNCIL,25/08/2017,LEARNING DIS & MENTAL HEALTH,ALTERNATIVE FUTURES GROUP LTD,25/08/2017,4118.00 ,INDIVIDUAL SERVICE FUND,V001161749
ROCHDALE BOROUGH COUNCIL,25/08/2017,LEARNING DIS & MENTAL HEALTH,ALTERNATIVE FUTURES GROUP LTD,25/08/2017,4128.28 ,INDIVIDUAL SERVICE FUND,V001162493
ROCHDALE BOROUGH COUNCIL,25/08/2017,LEARNING DIS & MENTAL HEALTH,ALTERNATIVE FUTURES GROUP LTD,25/08/2017,4199.00 ,INDIVIDUAL SERVICE FUND,V001162425
ROCHDALE BOROUGH COUNCIL,25/08/2017,LEARNING DIS & MENTAL HEALTH,ALTERNATIVE FUTURES GROUP LTD,25/08/2017,4320.52 ,INDIVIDUAL SERVICE FUND,V001161943
ROCHDALE BOROUGH COUNCIL,25/08/2017,LEARNING DIS & MENTAL HEALTH,ALTERNATIVE FUTURES GROUP LTD,25/08/2017,4347.52 ,INDIVIDUAL SERVICE FUND,V001161956
ROCHDALE BOROUGH COUNCIL,25/08/2017,LEARNING DIS & MENTAL HEALTH,ALTERNATIVE FUTURES GROUP LTD,25/08/2017,4347.52 ,INDIVIDUAL SERVICE FUND,V001161957
ROCHDALE BOROUGH COUNCIL,25/08/2017,LEARNING DIS & MENTAL HEALTH,ALTERNATIVE FUTURES GROUP LTD,25/08/2017,4388.00 ,INDIVIDUAL SERVICE FUND,V001161945
ROCHDALE BOROUGH COUNCIL,25/08/2017,LEARNING DIS & MENTAL HEALTH,ALTERNATIVE FUTURES GROUP LTD,25/08/2017,4767.00 ,INDIVIDUAL SERVICE FUND,V001162087
ROCHDALE BOROUGH COUNCIL,25/08/2017,LEARNING DIS & MENTAL HEALTH,ALTERNATIVE FUTURES GROUP LTD,25/08/2017,4901.00 ,INDIVIDUAL SERVICE FUND,V001161955
ROCHDALE BOROUGH COUNCIL,25/08/2017,LEARNING DIS & MENTAL HEALTH,ALTERNATIVE FUTURES GROUP LTD,25/08/2017,4914.32 ,INDIVIDUAL SERVICE FUND,V001161931
ROCHDALE BOROUGH COUNCIL,25/08/2017,LEARNING DIS & MENTAL HEALTH,ALTERNATIVE FUTURES GROUP LTD,25/08/2017,5036.00 ,INDIVIDUAL SERVICE FUND,V001161949
ROCHDALE BOROUGH COUNCIL,25/08/2017,LEARNING DIS & MENTAL HEALTH,ALTERNATIVE FUTURES GROUP LTD,25/08/2017,5036.00 ,INDIVIDUAL SERVICE FUND,V001161950
ROCHDALE BOROUGH COUNCIL,25/08/2017,LEARNING DIS & MENTAL HEALTH,ALTERNATIVE FUTURES GROUP LTD,25/08/2017,5387.00 ,INDIVIDUAL SERVICE FUND,V001161925
ROCHDALE BOROUGH COUNCIL,25/08/2017,PHYSICAL DIS & OLDER PEOPLE,ALTERNATIVE FUTURES GROUP LTD,25/08/2017,5462.44 ,INDIVIDUAL SERVICE FUND,V001162120
ROCHDALE BOROUGH COUNCIL,25/08/2017,LEARNING DIS & MENTAL HEALTH,ALTERNATIVE FUTURES GROUP LTD,25/08/2017,5468.00 ,INDIVIDUAL SERVICE FUND,V001161946
ROCHDALE BOROUGH COUNCIL,25/08/2017,LEARNING DIS & MENTAL HEALTH,ALTERNATIVE FUTURES GROUP LTD,25/08/2017,5859.52 ,INDIVIDUAL SERVICE FUND,V001161934
ROCHDALE BOROUGH COUNCIL,25/08/2017,LEARNING DIS & MENTAL HEALTH,ALTERNATIVE FUTURES GROUP LTD,25/08/2017,6021.24 ,INDIVIDUAL SERVICE FUND,V001161947
ROCHDALE BOROUGH COUNCIL,25/08/2017,LEARNING DIS & MENTAL HEALTH,ALTERNATIVE FUTURES GROUP LTD,25/08/2017,7048.00 ,INDIVIDUAL SERVICE FUND,V001161936
ROCHDALE BOROUGH COUNCIL,25/08/2017,LEARNING DIS & MENTAL HEALTH,ALTERNATIVE FUTURES GROUP LTD,25/08/2017,7588.00 ,INDIVIDUAL SERVICE FUND,V001161737
ROCHDALE BOROUGH COUNCIL,25/08/2017,LEARNING DIS & MENTAL HEALTH,ALTERNATIVE FUTURES GROUP LTD,25/08/2017,7763.00 ,INDIVIDUAL SERVICE FUND,V001161828
ROCHDALE BOROUGH COUNCIL,04/08/2017,NEIGHBOURHOODS AND ENVIRONMENT,AMBEROL LIMITED,04/08/2017,1927.85 ,"TREES, SHRUBS, PLANTS",V001154165
ROCHDALE BOROUGH COUNCIL,08/08/2017,NEIGHBOURHOODS AND ENVIRONMENT,AMTOLL LIMITED,08/08/2017,1030.00 ,EQUIPMENT - GENERAL,V001154295
ROCHDALE BOROUGH COUNCIL,10/08/2017,PHYSICAL DIS & OLDER PEOPLE,ANDREW CLARK,10/08/2017,540.00 ,PROFESSIONAL FEES,V001158842
ROCHDALE BOROUGH COUNCIL,24/08/2017,PHYSICAL DIS & OLDER PEOPLE,ANDREW CLARK,24/08/2017,540.00 ,PROFESSIONAL FEES,V001163034
ROCHDALE BOROUGH COUNCIL,08/08/2017,NEIGHBOURHOODS AND ENVIRONMENT,ANDY HARROP,08/08/2017,1309.20 ,TAXI HIRE,V001157879
ROCHDALE BOROUGH COUNCIL,11/08/2017,PUBLIC HEALTH,ANIMAL WARDENS LIMITED,11/08/2017,688.00 ,CONTRACTED SERVICES,V001158883
ROCHDALE BOROUGH COUNCIL,01/08/2017,RESOURCES,REDACTED - PERSONAL DATA,01/08/2017,5200.00 ,PROFESSIONAL FEES,V001142110
ROCHDALE BOROUGH COUNCIL,14/08/2017,RESOURCES,REDACTED - PERSONAL DATA,14/08/2017,5600.00 ,PROFESSIONAL FEES,V001155347
ROCHDALE BOROUGH COUNCIL,18/08/2017,PHYSICAL DIS & OLDER PEOPLE,ANTONI & RIENZIE LTD,18/08/2017,501.80 ,RESIDENTIAL LONG TERM,V001161017
ROCHDALE BOROUGH COUNCIL,18/08/2017,PHYSICAL DIS & OLDER PEOPLE,ANTONI & RIENZIE LTD,18/08/2017,540.94 ,RESIDENTIAL LONG TERM,V001160971
ROCHDALE BOROUGH COUNCIL,04/08/2017,PHYSICAL DIS & OLDER PEOPLE,ANTONI & RIENZIE LTD,04/08/2017,543.00 ,RESIDENTIAL LONG TERM,V001155881
ROCHDALE BOROUGH COUNCIL,18/08/2017,PHYSICAL DIS & OLDER PEOPLE,ANTONI & RIENZIE LTD,18/08/2017,543.00 ,RESIDENTIAL LONG TERM,V001160227
ROCHDALE BOROUGH COUNCIL,04/08/2017,PHYSICAL DIS & OLDER PEOPLE,ANTONI & RIENZIE LTD,04/08/2017,554.02 ,RESIDENTIAL LONG TERM,V001156464
ROCHDALE BOROUGH COUNCIL,18/08/2017,PHYSICAL DIS & OLDER PEOPLE,ANTONI & RIENZIE LTD,18/08/2017,554.02 ,RESIDENTIAL LONG TERM,V001160941
ROCHDALE BOROUGH COUNCIL,04/08/2017,LEARNING DIS & MENTAL HEALTH,ANTONI & RIENZIE LTD,04/08/2017,554.72 ,RESIDENTIAL LONG TERM,V001155951
ROCHDALE BOROUGH COUNCIL,18/08/2017,LEARNING DIS & MENTAL HEALTH,ANTONI & RIENZIE LTD,18/08/2017,554.72 ,RESIDENTIAL LONG TERM,V001160320
ROCHDALE BOROUGH COUNCIL,04/08/2017,PHYSICAL DIS & OLDER PEOPLE,ANTONI & RIENZIE LTD,04/08/2017,631.10 ,RESIDENTIAL LONG TERM,V001155912
ROCHDALE BOROUGH COUNCIL,04/08/2017,PHYSICAL DIS & OLDER PEOPLE,ANTONI & RIENZIE LTD,04/08/2017,631.10 ,RESIDENTIAL LONG TERM,V001156341
ROCHDALE BOROUGH COUNCIL,04/08/2017,PHYSICAL DIS & OLDER PEOPLE,ANTONI & RIENZIE LTD,04/08/2017,631.10 ,RESIDENTIAL LONG TERM,V001156497
ROCHDALE BOROUGH COUNCIL,04/08/2017,PHYSICAL DIS & OLDER PEOPLE,ANTONI & RIENZIE LTD,04/08/2017,631.10 ,RESIDENTIAL LONG TERM,V001156498
ROCHDALE BOROUGH COUNCIL,18/08/2017,PHYSICAL DIS & OLDER PEOPLE,ANTONI & RIENZIE LTD,18/08/2017,631.10 ,RESIDENTIAL LONG TERM,V001160267
ROCHDALE BOROUGH COUNCIL,18/08/2017,PHYSICAL DIS & OLDER PEOPLE,ANTONI & RIENZIE LTD,18/08/2017,631.10 ,RESIDENTIAL LONG TERM,V001160796
ROCHDALE BOROUGH COUNCIL,04/08/2017,LEARNING DIS & MENTAL HEALTH,ANTONI & RIENZIE LTD,04/08/2017,639.10 ,RESIDENTIAL LONG TERM,V001156112
ROCHDALE BOROUGH COUNCIL,18/08/2017,LEARNING DIS & MENTAL HEALTH,ANTONI & RIENZIE LTD,18/08/2017,639.10 ,RESIDENTIAL LONG TERM,V001160495
ROCHDALE BOROUGH COUNCIL,04/08/2017,PHYSICAL DIS & OLDER PEOPLE,ANTONI & RIENZIE LTD,04/08/2017,900.00 ,SHORT TERM CARE - RESIDENTIAL,V001156542
ROCHDALE BOROUGH COUNCIL,18/08/2017,PHYSICAL DIS & OLDER PEOPLE,ANTONI & RIENZIE LTD,18/08/2017,900.00 ,SHORT TERM CARE - RESIDENTIAL,V001161019
ROCHDALE BOROUGH COUNCIL,01/08/2017,NEIGHBOURHOODS AND ENVIRONMENT,APC PATHOLOGY LTD,01/08/2017,600.00 ,OTHER MEDICAL EXPENSES,V001154253
ROCHDALE BOROUGH COUNCIL,15/08/2017,NEIGHBOURHOODS AND ENVIRONMENT,APC PATHOLOGY LTD,15/08/2017,600.00 ,OTHER MEDICAL EXPENSES,V001158778
ROCHDALE BOROUGH COUNCIL,25/08/2017,LEARNING DIS & MENTAL HEALTH,APOLLO HOME HEALTHCARE,25/08/2017,822.60 ,PERSONAL BUDGETS - MANAGED,V001162118
ROCHDALE BOROUGH COUNCIL,25/08/2017,LEARNING DIS & MENTAL HEALTH,APOLLO HOME HEALTHCARE,25/08/2017,2009.48 ,PERSONAL BUDGETS - MANAGED,V001162119
ROCHDALE BOROUGH COUNCIL,04/08/2017,EARLY HELP AND SCHOOLS,APOLLO HOME HEALTHCARE,04/08/2017,1096.80 ,HOME CARE - CHILDRENS SERVICES,V001154356
ROCHDALE BOROUGH COUNCIL,11/08/2017,EARLY HELP AND SCHOOLS,APOLLO HOME HEALTHCARE,11/08/2017,1169.92 ,HOME CARE - CHILDRENS SERVICES,V001159109
ROCHDALE BOROUGH COUNCIL,18/08/2017,EARLY HELP AND SCHOOLS,APOLLO HOME HEALTHCARE,18/08/2017,1206.48 ,HOME CARE - CHILDRENS SERVICES,V001159083
ROCHDALE BOROUGH COUNCIL,25/08/2017,EARLY HELP AND SCHOOLS,APOLLO HOME HEALTHCARE,25/08/2017,1316.16 ,HOME CARE - CHILDRENS SERVICES,V001159615
ROCHDALE BOROUGH COUNCIL,11/08/2017,EARLY HELP AND SCHOOLS,APOLLO HOME HEALTHCARE,11/08/2017,3615.38 ,HOME CARE - CHILDRENS SERVICES,V001159108
ROCHDALE BOROUGH COUNCIL,04/08/2017,LEARNING DIS & MENTAL HEALTH,APSLEY HOUSE,04/08/2017,1702.46 ,RESIDENTIAL LONG TERM,V001155575
ROCHDALE BOROUGH COUNCIL,18/08/2017,LEARNING DIS & MENTAL HEALTH,APSLEY HOUSE,18/08/2017,1702.46 ,RESIDENTIAL LONG TERM,V001159900
ROCHDALE BOROUGH COUNCIL,04/08/2017,LEARNING DIS & MENTAL HEALTH,APSLEY HOUSE,04/08/2017,1916.58 ,RESIDENTIAL LONG TERM,V001155809
ROCHDALE BOROUGH COUNCIL,18/08/2017,LEARNING DIS & MENTAL HEALTH,APSLEY HOUSE,18/08/2017,1916.58 ,RESIDENTIAL LONG TERM,V001160141
ROCHDALE BOROUGH COUNCIL,04/08/2017,LEARNING DIS & MENTAL HEALTH,APSLEY HOUSE,04/08/2017,2063.88 ,RESIDENTIAL LONG TERM,V001155640
ROCHDALE BOROUGH COUNCIL,18/08/2017,LEARNING DIS & MENTAL HEALTH,APSLEY HOUSE,18/08/2017,2063.88 ,RESIDENTIAL LONG TERM,V001159946
ROCHDALE BOROUGH COUNCIL,04/08/2017,LEARNING DIS & MENTAL HEALTH,APSLEY HOUSE,04/08/2017,3396.70 ,RESIDENTIAL LONG TERM,V001156122
ROCHDALE BOROUGH COUNCIL,18/08/2017,LEARNING DIS & MENTAL HEALTH,APSLEY HOUSE,18/08/2017,3396.70 ,RESIDENTIAL LONG TERM,V001160505
ROCHDALE BOROUGH COUNCIL,18/08/2017,PHYSICAL DIS & OLDER PEOPLE,ARCHMOOR CARE HOME,18/08/2017,-631.10 ,RESIDENTIAL LONG TERM,V001160178
ROCHDALE BOROUGH COUNCIL,04/08/2017,PHYSICAL DIS & OLDER PEOPLE,ARCHMOOR CARE HOME,04/08/2017,520.74 ,RESIDENTIAL LONG TERM,V001155924
ROCHDALE BOROUGH COUNCIL,18/08/2017,PHYSICAL DIS & OLDER PEOPLE,ARCHMOOR CARE HOME,18/08/2017,520.74 ,RESIDENTIAL LONG TERM,V001160279
ROCHDALE BOROUGH COUNCIL,04/08/2017,PHYSICAL DIS & OLDER PEOPLE,ARCHMOOR CARE HOME,04/08/2017,550.04 ,RESIDENTIAL LONG TERM,V001156237
ROCHDALE BOROUGH COUNCIL,18/08/2017,PHYSICAL DIS & OLDER PEOPLE,ARCHMOOR CARE HOME,18/08/2017,550.04 ,RESIDENTIAL LONG TERM,V001160665
ROCHDALE BOROUGH COUNCIL,04/08/2017,PHYSICAL DIS & OLDER PEOPLE,ARCHMOOR CARE HOME,04/08/2017,604.78 ,RESIDENTIAL LONG TERM,V001156472
ROCHDALE BOROUGH COUNCIL,18/08/2017,PHYSICAL DIS & OLDER PEOPLE,ARCHMOOR CARE HOME,18/08/2017,604.78 ,RESIDENTIAL LONG TERM,V001160949
ROCHDALE BOROUGH COUNCIL,04/08/2017,LEARNING DIS & MENTAL HEALTH,ARCHMOOR CARE HOME,04/08/2017,613.10 ,RESIDENTIAL LONG TERM,V001156020
ROCHDALE BOROUGH COUNCIL,18/08/2017,LEARNING DIS & MENTAL HEALTH,ARCHMOOR CARE HOME,18/08/2017,613.10 ,RESIDENTIAL LONG TERM,V001160390
ROCHDALE BOROUGH COUNCIL,04/08/2017,PHYSICAL DIS & OLDER PEOPLE,ARCHMOOR CARE HOME,04/08/2017,631.10 ,RESIDENTIAL LONG TERM,V001155650
ROCHDALE BOROUGH COUNCIL,04/08/2017,PHYSICAL DIS & OLDER PEOPLE,ARCHMOOR CARE HOME,04/08/2017,631.10 ,RESIDENTIAL LONG TERM,V001155832
ROCHDALE BOROUGH COUNCIL,04/08/2017,PHYSICAL DIS & OLDER PEOPLE,ARCHMOOR CARE HOME,04/08/2017,631.10 ,RESIDENTIAL LONG TERM,V001155839
ROCHDALE BOROUGH COUNCIL,04/08/2017,PHYSICAL DIS & OLDER PEOPLE,ARCHMOOR CARE HOME,04/08/2017,631.10 ,RESIDENTIAL LONG TERM,V001156090
ROCHDALE BOROUGH COUNCIL,04/08/2017,PHYSICAL DIS & OLDER PEOPLE,ARCHMOOR CARE HOME,04/08/2017,631.10 ,RESIDENTIAL LONG TERM,V001156241
ROCHDALE BOROUGH COUNCIL,04/08/2017,PHYSICAL DIS & OLDER PEOPLE,ARCHMOOR CARE HOME,04/08/2017,631.10 ,RESIDENTIAL LONG TERM,V001156357
ROCHDALE BOROUGH COUNCIL,18/08/2017,PHYSICAL DIS & OLDER PEOPLE,ARCHMOOR CARE HOME,18/08/2017,631.10 ,RESIDENTIAL LONG TERM,V001159956
ROCHDALE BOROUGH COUNCIL,18/08/2017,PHYSICAL DIS & OLDER PEOPLE,ARCHMOOR CARE HOME,18/08/2017,631.10 ,RESIDENTIAL LONG TERM,V001160166
ROCHDALE BOROUGH COUNCIL,18/08/2017,PHYSICAL DIS & OLDER PEOPLE,ARCHMOOR CARE HOME,18/08/2017,631.10 ,RESIDENTIAL LONG TERM,V001160459
ROCHDALE BOROUGH COUNCIL,18/08/2017,PHYSICAL DIS & OLDER PEOPLE,ARCHMOOR CARE HOME,18/08/2017,631.10 ,RESIDENTIAL LONG TERM,V001160671
ROCHDALE BOROUGH COUNCIL,18/08/2017,PHYSICAL DIS & OLDER PEOPLE,ARCHMOOR CARE HOME,18/08/2017,631.10 ,RESIDENTIAL LONG TERM,V001160825
ROCHDALE BOROUGH COUNCIL,18/08/2017,PHYSICAL DIS & OLDER PEOPLE,ARCHMOOR CARE HOME,18/08/2017,707.14 ,SHORT TERM CARE - RESIDENTIAL,V001160942
ROCHDALE BOROUGH COUNCIL,18/08/2017,PHYSICAL DIS & OLDER PEOPLE,ARCHMOOR CARE HOME,18/08/2017,900.00 ,ASSESSMENT CARE,V001161047
ROCHDALE BOROUGH COUNCIL,25/08/2017,NEIGHBOURHOODS AND ENVIRONMENT,ARCO GROUP LIMITED,25/08/2017,845.84 ,EQUIPMENT - GENERAL,V001110271
ROCHDALE BOROUGH COUNCIL,21/08/2017,ECONOMY DIRECTORATE,ARROW BUSINESS COMMUNICATIONS LTD,21/08/2017,578.66 ,EQUIPMENT - GENERAL,V001159758
ROCHDALE BOROUGH COUNCIL,18/08/2017,LEARNING DIS & MENTAL HEALTH,AS CARE SOLUTIONS LTD,18/08/2017,1967.07 ,RESIDENTIAL LONG TERM,V001160154
ROCHDALE BOROUGH COUNCIL,04/08/2017,LEARNING DIS & MENTAL HEALTH,AS CARE SOLUTIONS LTD,04/08/2017,2900.00 ,RESIDENTIAL LONG TERM,V001155843
ROCHDALE BOROUGH COUNCIL,04/08/2017,LEARNING DIS & MENTAL HEALTH,AS CARE SOLUTIONS LTD,04/08/2017,2900.00 ,RESIDENTIAL LONG TERM,V001156395
ROCHDALE BOROUGH COUNCIL,18/08/2017,LEARNING DIS & MENTAL HEALTH,AS CARE SOLUTIONS LTD,18/08/2017,2900.00 ,RESIDENTIAL LONG TERM,V001160182
ROCHDALE BOROUGH COUNCIL,18/08/2017,LEARNING DIS & MENTAL HEALTH,AS CARE SOLUTIONS LTD,18/08/2017,2900.00 ,RESIDENTIAL LONG TERM,V001160876
ROCHDALE BOROUGH COUNCIL,18/08/2017,LEARNING DIS & MENTAL HEALTH,AS CARE SOLUTIONS LTD,18/08/2017,3720.79 ,RESIDENTIAL LONG TERM,V001160325
ROCHDALE BOROUGH COUNCIL,18/08/2017,LEARNING DIS & MENTAL HEALTH,AS CARE SOLUTIONS LTD,18/08/2017,4007.00 ,RESIDENTIAL LONG TERM,V001160326
ROCHDALE BOROUGH COUNCIL,04/08/2017,PHYSICAL DIS & OLDER PEOPLE,ASHBOURNE NURSING HOME,04/08/2017,-631.10 ,RESIDENTIAL LONG TERM,V001156028
ROCHDALE BOROUGH COUNCIL,04/08/2017,PHYSICAL DIS & OLDER PEOPLE,ASHBOURNE NURSING HOME,04/08/2017,505.06 ,SELF - FUNDING DEFERRED PAYMENTS,V001156466
ROCHDALE BOROUGH COUNCIL,18/08/2017,PHYSICAL DIS & OLDER PEOPLE,ASHBOURNE NURSING HOME,18/08/2017,505.06 ,SELF - FUNDING DEFERRED PAYMENTS,V001160944
ROCHDALE BOROUGH COUNCIL,04/08/2017,PHYSICAL DIS & OLDER PEOPLE,ASHBOURNE NURSING HOME,04/08/2017,537.38 ,RESIDENTIAL LONG TERM,V001156132
ROCHDALE BOROUGH COUNCIL,18/08/2017,PHYSICAL DIS & OLDER PEOPLE,ASHBOURNE NURSING HOME,18/08/2017,537.38 ,RESIDENTIAL LONG TERM,V001160511
ROCHDALE BOROUGH COUNCIL,18/08/2017,PHYSICAL DIS & OLDER PEOPLE,ASHBOURNE NURSING HOME,18/08/2017,540.94 ,RESIDENTIAL LONG TERM,V001160759
ROCHDALE BOROUGH COUNCIL,04/08/2017,PHYSICAL DIS & OLDER PEOPLE,ASHBOURNE NURSING HOME,04/08/2017,615.30 ,RESIDENTIAL LONG TERM,V001155852
ROCHDALE BOROUGH COUNCIL,18/08/2017,PHYSICAL DIS & OLDER PEOPLE,ASHBOURNE NURSING HOME,18/08/2017,615.30 ,RESIDENTIAL LONG TERM,V001160190
ROCHDALE BOROUGH COUNCIL,04/08/2017,PHYSICAL DIS & OLDER PEOPLE,ASHBOURNE NURSING HOME,04/08/2017,616.28 ,RESIDENTIAL LONG TERM,V001155722
ROCHDALE BOROUGH COUNCIL,18/08/2017,PHYSICAL DIS & OLDER PEOPLE,ASHBOURNE NURSING HOME,18/08/2017,616.28 ,RESIDENTIAL LONG TERM,V001160033
ROCHDALE BOROUGH COUNCIL,04/08/2017,PHYSICAL DIS & OLDER PEOPLE,ASHBOURNE NURSING HOME,04/08/2017,620.54 ,RESIDENTIAL LONG TERM,V001156416
ROCHDALE BOROUGH COUNCIL,18/08/2017,PHYSICAL DIS & OLDER PEOPLE,ASHBOURNE NURSING HOME,18/08/2017,620.54 ,RESIDENTIAL LONG TERM,V001160896
ROCHDALE BOROUGH COUNCIL,04/08/2017,LEARNING DIS & MENTAL HEALTH,ASHBOURNE NURSING HOME,04/08/2017,631.10 ,RESIDENTIAL LONG TERM,V001155708
ROCHDALE BOROUGH COUNCIL,18/08/2017,LEARNING DIS & MENTAL HEALTH,ASHBOURNE NURSING HOME,18/08/2017,631.10 ,RESIDENTIAL LONG TERM,V001160018
ROCHDALE BOROUGH COUNCIL,04/08/2017,PHYSICAL DIS & OLDER PEOPLE,ASHBOURNE NURSING HOME,04/08/2017,707.14 ,SHORT TERM CARE - RESIDENTIAL,V001156551
ROCHDALE BOROUGH COUNCIL,18/08/2017,PHYSICAL DIS & OLDER PEOPLE,ASHBOURNE NURSING HOME,18/08/2017,771.43 ,ASSESSMENT CARE,V001160760
ROCHDALE BOROUGH COUNCIL,04/08/2017,PHYSICAL DIS & OLDER PEOPLE,ASHBOURNE NURSING HOME,04/08/2017,900.00 ,SHORT TERM CARE - RESIDENTIAL,V001156552
ROCHDALE BOROUGH COUNCIL,18/08/2017,PHYSICAL DIS & OLDER PEOPLE,ASHBOURNE NURSING HOME,18/08/2017,900.00 ,ASSESSMENT CARE,V001160761
ROCHDALE BOROUGH COUNCIL,18/08/2017,PHYSICAL DIS & OLDER PEOPLE,ASHBOURNE NURSING HOME,18/08/2017,900.00 ,SHORT TERM CARE - RESIDENTIAL,V001160925
ROCHDALE BOROUGH COUNCIL,18/08/2017,PHYSICAL DIS & OLDER PEOPLE,ASHBOURNE NURSING HOME,18/08/2017,900.00 ,SHORT TERM CARE - RESIDENTIAL,V001161021
ROCHDALE BOROUGH COUNCIL,18/08/2017,PHYSICAL DIS & OLDER PEOPLE,ASHBOURNE NURSING HOME,18/08/2017,900.00 ,ASSESSMENT CARE,V001161037
ROCHDALE BOROUGH COUNCIL,07/08/2017,NEIGHBOURHOODS AND ENVIRONMENT,ASHCROFT SOCIAL CLUB,07/08/2017,780.00 ,ACTIVITIES,V001157986
ROCHDALE BOROUGH COUNCIL,02/08/2017,NEIGHBOURHOODS AND ENVIRONMENT,ASKEWS AND HOLTS LIBRARY SERVICES LTD,02/08/2017,538.81 ,REFERENCE BOOKS/NEWSPAPERS/PERIODICALS,V001155316
ROCHDALE BOROUGH COUNCIL,02/08/2017,NEIGHBOURHOODS AND ENVIRONMENT,ASKEWS AND HOLTS LIBRARY SERVICES LTD,02/08/2017,547.40 ,REFERENCE BOOKS/NEWSPAPERS/PERIODICALS,V001155313
ROCHDALE BOROUGH COUNCIL,22/08/2017,NEIGHBOURHOODS AND ENVIRONMENT,ASKEWS AND HOLTS LIBRARY SERVICES LTD,22/08/2017,570.25 ,REFERENCE BOOKS/NEWSPAPERS/PERIODICALS,V001159742
ROCHDALE BOROUGH COUNCIL,15/08/2017,NEIGHBOURHOODS AND ENVIRONMENT,ASKEWS AND HOLTS LIBRARY SERVICES LTD,15/08/2017,589.09 ,REFERENCE BOOKS/NEWSPAPERS/PERIODICALS,V001158132
ROCHDALE BOROUGH COUNCIL,15/08/2017,NEIGHBOURHOODS AND ENVIRONMENT,ASKEWS AND HOLTS LIBRARY SERVICES LTD,15/08/2017,596.00 ,REFERENCE BOOKS/NEWSPAPERS/PERIODICALS,V001158135
ROCHDALE BOROUGH COUNCIL,22/08/2017,NEIGHBOURHOODS AND ENVIRONMENT,ASKEWS AND HOLTS LIBRARY SERVICES LTD,22/08/2017,618.44 ,REFERENCE BOOKS/NEWSPAPERS/PERIODICALS,V001159739
ROCHDALE BOROUGH COUNCIL,24/08/2017,NEIGHBOURHOODS AND ENVIRONMENT,ASKEWS AND HOLTS LIBRARY SERVICES LTD,24/08/2017,722.64 ,REFERENCE BOOKS/NEWSPAPERS/PERIODICALS,V001159747
ROCHDALE BOROUGH COUNCIL,25/08/2017,LEARNING DIS & MENTAL HEALTH,ASPIRATIONS CARE LTD,25/08/2017,3998.96 ,INDIVIDUAL SERVICE FUND,V001161770
ROCHDALE BOROUGH COUNCIL,25/08/2017,LEARNING DIS & MENTAL HEALTH,ASPIRATIONS CARE LTD,25/08/2017,4398.48 ,INDIVIDUAL SERVICE FUND,V001161759
ROCHDALE BOROUGH COUNCIL,15/08/2017,CHILDREN�S SOCIAL CARE,ASPIRE CHILD CARE,15/08/2017,9200.00 ,EBD (EMOT & BEHAV DIFF) PLACEMENTS,V001157791
ROCHDALE BOROUGH COUNCIL,15/08/2017,CHILDREN�S SOCIAL CARE,ASPIRE CHILD CARE,15/08/2017,9200.00 ,EBD (EMOT & BEHAV DIFF) PLACEMENTS,V001157792
ROCHDALE BOROUGH COUNCIL,18/08/2017,PHYSICAL DIS & OLDER PEOPLE,ASQUITH HALL,18/08/2017,2487.50 ,RESIDENTIAL LONG TERM,V001160855
ROCHDALE BOROUGH COUNCIL,18/08/2017,PHYSICAL DIS & OLDER PEOPLE,ASQUITH HALL,18/08/2017,2487.50 ,RESIDENTIAL LONG TERM,V001160856
ROCHDALE BOROUGH COUNCIL,18/08/2017,PHYSICAL DIS & OLDER PEOPLE,ASQUITH HALL,18/08/2017,2800.00 ,NURSING LONG TERM,V001160775
ROCHDALE BOROUGH COUNCIL,18/08/2017,PHYSICAL DIS & OLDER PEOPLE,ASQUITH HALL,18/08/2017,2800.00 ,NURSING LONG TERM,V001160776
ROCHDALE BOROUGH COUNCIL,17/08/2017,EARLY HELP AND SCHOOLS,ASSOCIATED BOARD OF ROYAL SCHOOLS MUSIC,17/08/2017,1891.00 ,EXAM EXPENSES,V001152291
ROCHDALE BOROUGH COUNCIL,04/08/2017,NEIGHBOURHOODS AND ENVIRONMENT,ASSOCIATED CLEANING CONTRACTORS,04/08/2017,540.00 ,CONTRACTED SERVICES,V001154172
ROCHDALE BOROUGH COUNCIL,03/08/2017,PHYSICAL DIS & OLDER PEOPLE,ASTOR BANNERMAN MEDICAL LTD,03/08/2017,1041.00 ,MINOR BUILDING WORKS,V001156564
ROCHDALE BOROUGH COUNCIL,31/08/2017,PHYSICAL DIS & OLDER PEOPLE,ASTOR BANNERMAN MEDICAL LTD,31/08/2017,3845.00 ,MINOR BUILDING WORKS,V001165560
ROCHDALE BOROUGH COUNCIL,04/08/2017,NEIGHBOURHOODS AND ENVIRONMENT,ASTRA ALARMS SYSTEMS LTD,04/08/2017,2524.00 ,EQUIPMENT - GENERAL,V001153768
ROCHDALE BOROUGH COUNCIL,17/08/2017,PROPERTY AND HIGHWAYS,ATG ACCESS LTD,17/08/2017,2835.00 ,REPAIRS & ALTS OF BUILDINGS,V001158574
ROCHDALE BOROUGH COUNCIL,21/08/2017,NEIGHBOURHOODS AND ENVIRONMENT,ATI ENVIRONMENT UK LTD,21/08/2017,2184.16 ,SPECIFIED MAINTENANCE,V001161279
ROCHDALE BOROUGH COUNCIL,02/08/2017,NEIGHBOURHOODS AND ENVIRONMENT,ATI ENVIRONMENT UK LTD,02/08/2017,2705.38 ,SPECIFIED MAINTENANCE,V001155337
ROCHDALE BOROUGH COUNCIL,08/08/2017,ECONOMY DIRECTORATE,ATKINS LIMITED,08/08/2017,29500.00 ,FEES / COMMISSION,V001154698
ROCHDALE BOROUGH COUNCIL,18/08/2017,PHYSICAL DIS & OLDER PEOPLE,ATLANTIS MEDICARE LTD,18/08/2017,-631.10 ,RESIDENTIAL LONG TERM,V001160316
ROCHDALE BOROUGH COUNCIL,04/08/2017,PHYSICAL DIS & OLDER PEOPLE,ATLANTIS MEDICARE LTD,04/08/2017,565.24 ,RESIDENTIAL LONG TERM,V001156448
ROCHDALE BOROUGH COUNCIL,18/08/2017,PHYSICAL DIS & OLDER PEOPLE,ATLANTIS MEDICARE LTD,18/08/2017,581.14 ,RESIDENTIAL LONG TERM,V001160930
ROCHDALE BOROUGH COUNCIL,04/08/2017,PHYSICAL DIS & OLDER PEOPLE,ATLANTIS MEDICARE LTD,04/08/2017,583.56 ,RESIDENTIAL LONG TERM,V001155646
ROCHDALE BOROUGH COUNCIL,18/08/2017,PHYSICAL DIS & OLDER PEOPLE,ATLANTIS MEDICARE LTD,18/08/2017,583.56 ,RESIDENTIAL LONG TERM,V001159952
ROCHDALE BOROUGH COUNCIL,04/08/2017,PHYSICAL DIS & OLDER PEOPLE,ATLANTIS MEDICARE LTD,04/08/2017,589.64 ,RESIDENTIAL LONG TERM,V001156099
ROCHDALE BOROUGH COUNCIL,18/08/2017,PHYSICAL DIS & OLDER PEOPLE,ATLANTIS MEDICARE LTD,18/08/2017,589.64 ,RESIDENTIAL LONG TERM,V001160470
ROCHDALE BOROUGH COUNCIL,04/08/2017,PHYSICAL DIS & OLDER PEOPLE,ATLANTIS MEDICARE LTD,04/08/2017,614.82 ,RESIDENTIAL LONG TERM,V001156297
ROCHDALE BOROUGH COUNCIL,18/08/2017,PHYSICAL DIS & OLDER PEOPLE,ATLANTIS MEDICARE LTD,18/08/2017,614.82 ,RESIDENTIAL LONG TERM,V001160743
ROCHDALE BOROUGH COUNCIL,04/08/2017,PHYSICAL DIS & OLDER PEOPLE,ATLANTIS MEDICARE LTD,04/08/2017,629.42 ,RESIDENTIAL LONG TERM,V001156459
ROCHDALE BOROUGH COUNCIL,18/08/2017,PHYSICAL DIS & OLDER PEOPLE,ATLANTIS MEDICARE LTD,18/08/2017,629.42 ,RESIDENTIAL LONG TERM,V001160937
ROCHDALE BOROUGH COUNCIL,04/08/2017,PHYSICAL DIS & OLDER PEOPLE,ATLANTIS MEDICARE LTD,04/08/2017,631.10 ,RESIDENTIAL LONG TERM,V001155685
ROCHDALE BOROUGH COUNCIL,04/08/2017,PHYSICAL DIS & OLDER PEOPLE,ATLANTIS MEDICARE LTD,04/08/2017,631.10 ,RESIDENTIAL LONG TERM,V001155785
ROCHDALE BOROUGH COUNCIL,04/08/2017,PHYSICAL DIS & OLDER PEOPLE,ATLANTIS MEDICARE LTD,04/08/2017,631.10 ,RESIDENTIAL LONG TERM,V001155946
ROCHDALE BOROUGH COUNCIL,04/08/2017,PHYSICAL DIS & OLDER PEOPLE,ATLANTIS MEDICARE LTD,04/08/2017,631.10 ,RESIDENTIAL LONG TERM,V001156121
ROCHDALE BOROUGH COUNCIL,04/08/2017,LEARNING DIS & MENTAL HEALTH,ATLANTIS MEDICARE LTD,04/08/2017,631.10 ,RESIDENTIAL LONG TERM,V001156390
ROCHDALE BOROUGH COUNCIL,18/08/2017,PHYSICAL DIS & OLDER PEOPLE,ATLANTIS MEDICARE LTD,18/08/2017,631.10 ,RESIDENTIAL LONG TERM,V001159985
ROCHDALE BOROUGH COUNCIL,18/08/2017,PHYSICAL DIS & OLDER PEOPLE,ATLANTIS MEDICARE LTD,18/08/2017,631.10 ,RESIDENTIAL LONG TERM,V001160104
ROCHDALE BOROUGH COUNCIL,18/08/2017,PHYSICAL DIS & OLDER PEOPLE,ATLANTIS MEDICARE LTD,18/08/2017,631.10 ,RESIDENTIAL LONG TERM,V001160504
ROCHDALE BOROUGH COUNCIL,18/08/2017,LEARNING DIS & MENTAL HEALTH,ATLANTIS MEDICARE LTD,18/08/2017,631.10 ,RESIDENTIAL LONG TERM,V001160869
ROCHDALE BOROUGH COUNCIL,17/08/2017,EARLY HELP AND SCHOOLS,AURORA BEECH KEYS,17/08/2017,11344.67 ,OTHER LA`S - SEN PROVISION,V001159617
ROCHDALE BOROUGH COUNCIL,17/08/2017,EARLY HELP AND SCHOOLS,AURORA BEECH KEYS,17/08/2017,13011.33 ,OTHER LA`S - SEN PROVISION,V001159616
ROCHDALE BOROUGH COUNCIL,04/08/2017,LEARNING DIS & MENTAL HEALTH,AUTISM INITIATIVES,04/08/2017,2937.66 ,RESIDENTIAL LONG TERM,V001155626
ROCHDALE BOROUGH COUNCIL,18/08/2017,LEARNING DIS & MENTAL HEALTH,AUTISM INITIATIVES,18/08/2017,2937.66 ,RESIDENTIAL LONG TERM,V001159930
ROCHDALE BOROUGH COUNCIL,04/08/2017,LEARNING DIS & MENTAL HEALTH,AUTISM PLUS LIMITED,04/08/2017,2071.08 ,RESIDENTIAL LONG TERM,V001155636
ROCHDALE BOROUGH COUNCIL,18/08/2017,LEARNING DIS & MENTAL HEALTH,AUTISM PLUS LIMITED,18/08/2017,2071.08 ,RESIDENTIAL LONG TERM,V001159940
ROCHDALE BOROUGH COUNCIL,04/08/2017,LEARNING DIS & MENTAL HEALTH,AVERILL HOUSE CARE HOME,04/08/2017,615.80 ,RESIDENTIAL LONG TERM,V001155653
ROCHDALE BOROUGH COUNCIL,18/08/2017,LEARNING DIS & MENTAL HEALTH,AVERILL HOUSE CARE HOME,18/08/2017,615.80 ,RESIDENTIAL LONG TERM,V001159959
ROCHDALE BOROUGH COUNCIL,04/08/2017,PHYSICAL DIS & OLDER PEOPLE,AVERY HOMES MOSTON LIMITED,04/08/2017,519.56 ,RESIDENTIAL LONG TERM,V001155879
ROCHDALE BOROUGH COUNCIL,18/08/2017,PHYSICAL DIS & OLDER PEOPLE,AVERY HOMES MOSTON LIMITED,18/08/2017,519.56 ,RESIDENTIAL LONG TERM,V001160225
ROCHDALE BOROUGH COUNCIL,04/08/2017,PHYSICAL DIS & OLDER PEOPLE,AVERY HOMES MOSTON LIMITED,04/08/2017,615.80 ,RESIDENTIAL LONG TERM,V001156081
ROCHDALE BOROUGH COUNCIL,18/08/2017,PHYSICAL DIS & OLDER PEOPLE,AVERY HOMES MOSTON LIMITED,18/08/2017,615.80 ,RESIDENTIAL LONG TERM,V001160452
ROCHDALE BOROUGH COUNCIL,04/08/2017,LEARNING DIS & MENTAL HEALTH,AVERY HOMES MOSTON LIMITED,04/08/2017,802.48 ,RESIDENTIAL LONG TERM,V001155775
ROCHDALE BOROUGH COUNCIL,18/08/2017,LEARNING DIS & MENTAL HEALTH,AVERY HOMES MOSTON LIMITED,18/08/2017,802.48 ,RESIDENTIAL LONG TERM,V001160092
ROCHDALE BOROUGH COUNCIL,14/08/2017,EARLY HELP AND SCHOOLS,AXIOM EDUCATION ROCHDALE LIMITED,14/08/2017,1927.71 ,"DEV CAP - NEW CONSTRUCTION,CONVERSION",V001152240
ROCHDALE BOROUGH COUNCIL,14/08/2017,EARLY HELP AND SCHOOLS,AXIOM EDUCATION ROCHDALE LIMITED,14/08/2017,5233.76 ,"DEV CAP - NEW CONSTRUCTION,CONVERSION",V001152241
ROCHDALE BOROUGH COUNCIL,15/08/2017,EARLY HELP AND SCHOOLS,AXIOM EDUCATION ROCHDALE LIMITED,15/08/2017,24908.73 ,NEW CONSTRUCTION,V001159341
ROCHDALE BOROUGH COUNCIL,25/08/2017,EARLY HELP AND SCHOOLS,AXIOM EDUCATION ROCHDALE LIMITED,25/08/2017,29843.28 ,MEALS,V001157384
ROCHDALE BOROUGH COUNCIL,18/08/2017,EARLY HELP AND SCHOOLS,AXIOM EDUCATION ROCHDALE LIMITED,18/08/2017,29855.21 ,LEGAL SERVICES EXTERNAL,V001154659
ROCHDALE BOROUGH COUNCIL,31/08/2017,EARLY HELP AND SCHOOLS,AXIOM EDUCATION ROCHDALE LIMITED,31/08/2017,675248.00 ,PFI SCHEMES RPIX,V001158937
ROCHDALE BOROUGH COUNCIL,04/08/2017,NEIGHBOURHOODS AND ENVIRONMENT,BACK OTH MOSS COMMUNITY CENTRE,04/08/2017,1413.00 ,PROJECTS,V001157383
ROCHDALE BOROUGH COUNCIL,18/08/2017,NEIGHBOURHOODS AND ENVIRONMENT,BACK OTH MOSS COMMUNITY CENTRE,18/08/2017,7816.66 ,GRANTS TO THE VOLUNTARY SECTOR,V001161226
ROCHDALE BOROUGH COUNCIL,10/08/2017,PROPERTY AND HIGHWAYS,BALFOUR BEATTY  LIVING PLACES,10/08/2017,624155.04 ,TRANSACTIONS-EXPENDITURE,V001158820
ROCHDALE BOROUGH COUNCIL,02/08/2017,EARLY HELP AND SCHOOLS,BAMFORD ACADEMY,02/08/2017,1665.02 ,OTHER EST - SEN PROVISION,V001155473
ROCHDALE BOROUGH COUNCIL,18/08/2017,RESOURCES,BARCLAYS BANK PLC - BANK CHARGES ONLY,18/08/2017,2518.97 ,FEES / COMMISSION,V001159634
ROCHDALE BOROUGH COUNCIL,01/08/2017,EARLY HELP AND SCHOOLS,BARNARDOS,01/08/2017,10335.17 ,ACTIVITIES,V001150138
ROCHDALE BOROUGH COUNCIL,04/08/2017,LEARNING DIS & MENTAL HEALTH,BARNARDOS,04/08/2017,15003.78 ,SP BLOCK PAYMENTS - EXTERNAL,V001155492
ROCHDALE BOROUGH COUNCIL,23/08/2017,CHILDREN�S SOCIAL CARE,BARNARDOS,23/08/2017,3542.86 ,FOSTER PARENTS BASIC ALLOWANCE,V001157793
ROCHDALE BOROUGH COUNCIL,04/08/2017,PHYSICAL DIS & OLDER PEOPLE,BEECH HOUSE,04/08/2017,530.96 ,RESIDENTIAL LONG TERM,V001156140
ROCHDALE BOROUGH COUNCIL,18/08/2017,PHYSICAL DIS & OLDER PEOPLE,BEECH HOUSE,18/08/2017,530.96 ,RESIDENTIAL LONG TERM,V001160536
ROCHDALE BOROUGH COUNCIL,04/08/2017,PHYSICAL DIS & OLDER PEOPLE,BEECH HOUSE,04/08/2017,541.08 ,RESIDENTIAL LONG TERM,V001155992
ROCHDALE BOROUGH COUNCIL,18/08/2017,PHYSICAL DIS & OLDER PEOPLE,BEECH HOUSE,18/08/2017,541.08 ,RESIDENTIAL LONG TERM,V001160358
ROCHDALE BOROUGH COUNCIL,04/08/2017,LEARNING DIS & MENTAL HEALTH,BEECH HOUSE,04/08/2017,570.56 ,RESIDENTIAL LONG TERM,V001156131
ROCHDALE BOROUGH COUNCIL,18/08/2017,LEARNING DIS & MENTAL HEALTH,BEECH HOUSE,18/08/2017,570.56 ,RESIDENTIAL LONG TERM,V001160510
ROCHDALE BOROUGH COUNCIL,04/08/2017,PHYSICAL DIS & OLDER PEOPLE,BEECH HOUSE,04/08/2017,584.26 ,RESIDENTIAL LONG TERM,V001155939
ROCHDALE BOROUGH COUNCIL,18/08/2017,PHYSICAL DIS & OLDER PEOPLE,BEECH HOUSE,18/08/2017,584.26 ,RESIDENTIAL LONG TERM,V001160304
ROCHDALE BOROUGH COUNCIL,04/08/2017,PHYSICAL DIS & OLDER PEOPLE,BEECH HOUSE,04/08/2017,595.52 ,RESIDENTIAL LONG TERM,V001156363
ROCHDALE BOROUGH COUNCIL,18/08/2017,PHYSICAL DIS & OLDER PEOPLE,BEECH HOUSE,18/08/2017,595.52 ,RESIDENTIAL LONG TERM,V001160831
ROCHDALE BOROUGH COUNCIL,04/08/2017,PHYSICAL DIS & OLDER PEOPLE,BEECH HOUSE,04/08/2017,602.40 ,RESIDENTIAL LONG TERM,V001155927
ROCHDALE BOROUGH COUNCIL,18/08/2017,PHYSICAL DIS & OLDER PEOPLE,BEECH HOUSE,18/08/2017,602.40 ,RESIDENTIAL LONG TERM,V001160290
ROCHDALE BOROUGH COUNCIL,04/08/2017,PHYSICAL DIS & OLDER PEOPLE,BEECH HOUSE,04/08/2017,613.38 ,RESIDENTIAL LONG TERM,V001156230
ROCHDALE BOROUGH COUNCIL,18/08/2017,PHYSICAL DIS & OLDER PEOPLE,BEECH HOUSE,18/08/2017,613.38 ,RESIDENTIAL LONG TERM,V001160653
ROCHDALE BOROUGH COUNCIL,04/08/2017,PHYSICAL DIS & OLDER PEOPLE,BEECH HOUSE,04/08/2017,631.10 ,RESIDENTIAL LONG TERM,V001155777
ROCHDALE BOROUGH COUNCIL,04/08/2017,PHYSICAL DIS & OLDER PEOPLE,BEECH HOUSE,04/08/2017,631.10 ,RESIDENTIAL LONG TERM,V001155898
ROCHDALE BOROUGH COUNCIL,04/08/2017,PHYSICAL DIS & OLDER PEOPLE,BEECH HOUSE,04/08/2017,631.10 ,RESIDENTIAL LONG TERM,V001156022
ROCHDALE BOROUGH COUNCIL,04/08/2017,PHYSICAL DIS & OLDER PEOPLE,BEECH HOUSE,04/08/2017,631.10 ,RESIDENTIAL LONG TERM,V001156391
ROCHDALE BOROUGH COUNCIL,04/08/2017,PHYSICAL DIS & OLDER PEOPLE,BEECH HOUSE,04/08/2017,631.10 ,RESIDENTIAL LONG TERM,V001156434
ROCHDALE BOROUGH COUNCIL,18/08/2017,PHYSICAL DIS & OLDER PEOPLE,BEECH HOUSE,18/08/2017,631.10 ,RESIDENTIAL LONG TERM,V001160096
ROCHDALE BOROUGH COUNCIL,18/08/2017,PHYSICAL DIS & OLDER PEOPLE,BEECH HOUSE,18/08/2017,631.10 ,RESIDENTIAL LONG TERM,V001160243
ROCHDALE BOROUGH COUNCIL,18/08/2017,PHYSICAL DIS & OLDER PEOPLE,BEECH HOUSE,18/08/2017,631.10 ,RESIDENTIAL LONG TERM,V001160392
ROCHDALE BOROUGH COUNCIL,18/08/2017,PHYSICAL DIS & OLDER PEOPLE,BEECH HOUSE,18/08/2017,631.10 ,RESIDENTIAL LONG TERM,V001160870
ROCHDALE BOROUGH COUNCIL,18/08/2017,PHYSICAL DIS & OLDER PEOPLE,BEECH HOUSE,18/08/2017,631.10 ,RESIDENTIAL LONG TERM,V001160916
ROCHDALE BOROUGH COUNCIL,15/08/2017,PHYSICAL DIS & OLDER PEOPLE,BEECH HOUSE,15/08/2017,796.67 ,RESIDENTIAL LONG TERM,V001159428
ROCHDALE BOROUGH COUNCIL,04/08/2017,LEARNING DIS & MENTAL HEALTH,BEECH HOUSE,04/08/2017,900.00 ,RESIDENTIAL LONG TERM,V001155738
ROCHDALE BOROUGH COUNCIL,18/08/2017,LEARNING DIS & MENTAL HEALTH,BEECH HOUSE,18/08/2017,900.00 ,RESIDENTIAL LONG TERM,V001160048
ROCHDALE BOROUGH COUNCIL,04/08/2017,LEARNING DIS & MENTAL HEALTH,BELGRAVIA CARE,04/08/2017,999.60 ,RESIDENTIAL LONG TERM,V001155505
ROCHDALE BOROUGH COUNCIL,18/08/2017,LEARNING DIS & MENTAL HEALTH,BELGRAVIA CARE,18/08/2017,999.60 ,RESIDENTIAL LONG TERM,V001159847
ROCHDALE BOROUGH COUNCIL,30/08/2017,EARLY HELP AND SCHOOLS,BELMONT SCHOOL LIMITED,30/08/2017,10237.86 ,OTHER LA`S - SEN PROVISION,V001159605
ROCHDALE BOROUGH COUNCIL,30/08/2017,EARLY HELP AND SCHOOLS,BELMONT SCHOOL LIMITED,30/08/2017,10977.66 ,OTHER LA`S - SEN PROVISION,V001159624
ROCHDALE BOROUGH COUNCIL,30/08/2017,EARLY HELP AND SCHOOLS,BELMONT SCHOOL LIMITED,30/08/2017,11014.66 ,OTHER LA`S - SEN PROVISION,V001159614
ROCHDALE BOROUGH COUNCIL,30/08/2017,EARLY HELP AND SCHOOLS,BELMONT SCHOOL LIMITED,30/08/2017,11122.43 ,OTHER LA`S - SEN PROVISION,V001159610
ROCHDALE BOROUGH COUNCIL,30/08/2017,EARLY HELP AND SCHOOLS,BELMONT SCHOOL LIMITED,30/08/2017,11122.43 ,OTHER LA`S - SEN PROVISION,V001159612
ROCHDALE BOROUGH COUNCIL,30/08/2017,EARLY HELP AND SCHOOLS,BELMONT SCHOOL LIMITED,30/08/2017,11198.34 ,OTHER LA`S - SEN PROVISION,V001159613
ROCHDALE BOROUGH COUNCIL,30/08/2017,EARLY HELP AND SCHOOLS,BELMONT SCHOOL LIMITED,30/08/2017,11345.13 ,OTHER LA`S - SEN PROVISION,V001159607
ROCHDALE BOROUGH COUNCIL,30/08/2017,EARLY HELP AND SCHOOLS,BELMONT SCHOOL LIMITED,30/08/2017,11345.13 ,OTHER LA`S - SEN PROVISION,V001159611
ROCHDALE BOROUGH COUNCIL,04/08/2017,PHYSICAL DIS & OLDER PEOPLE,BELVOIR CARE HOME LIMITED,04/08/2017,543.92 ,RESIDENTIAL LONG TERM,V001155735
ROCHDALE BOROUGH COUNCIL,18/08/2017,PHYSICAL DIS & OLDER PEOPLE,BELVOIR CARE HOME LIMITED,18/08/2017,543.92 ,RESIDENTIAL LONG TERM,V001160041
ROCHDALE BOROUGH COUNCIL,04/08/2017,LEARNING DIS & MENTAL HEALTH,BELVOIR CARE HOME LIMITED,04/08/2017,576.86 ,RESIDENTIAL LONG TERM,V001155569
ROCHDALE BOROUGH COUNCIL,18/08/2017,LEARNING DIS & MENTAL HEALTH,BELVOIR CARE HOME LIMITED,18/08/2017,576.86 ,RESIDENTIAL LONG TERM,V001159894
ROCHDALE BOROUGH COUNCIL,04/08/2017,PHYSICAL DIS & OLDER PEOPLE,BELVOIR CARE HOME LIMITED,04/08/2017,610.72 ,RESIDENTIAL LONG TERM,V001155965
ROCHDALE BOROUGH COUNCIL,18/08/2017,PHYSICAL DIS & OLDER PEOPLE,BELVOIR CARE HOME LIMITED,18/08/2017,610.72 ,RESIDENTIAL LONG TERM,V001160338
ROCHDALE BOROUGH COUNCIL,04/08/2017,PHYSICAL DIS & OLDER PEOPLE,BELVOIR CARE HOME LIMITED,04/08/2017,631.10 ,RESIDENTIAL LONG TERM,V001155663
ROCHDALE BOROUGH COUNCIL,04/08/2017,PHYSICAL DIS & OLDER PEOPLE,BELVOIR CARE HOME LIMITED,04/08/2017,631.10 ,RESIDENTIAL LONG TERM,V001155713
ROCHDALE BOROUGH COUNCIL,04/08/2017,LEARNING DIS & MENTAL HEALTH,BELVOIR CARE HOME LIMITED,04/08/2017,631.10 ,RESIDENTIAL LONG TERM,V001156101
ROCHDALE BOROUGH COUNCIL,18/08/2017,PHYSICAL DIS & OLDER PEOPLE,BELVOIR CARE HOME LIMITED,18/08/2017,631.10 ,RESIDENTIAL LONG TERM,V001159969
ROCHDALE BOROUGH COUNCIL,18/08/2017,PHYSICAL DIS & OLDER PEOPLE,BELVOIR CARE HOME LIMITED,18/08/2017,631.10 ,RESIDENTIAL LONG TERM,V001160023
ROCHDALE BOROUGH COUNCIL,18/08/2017,LEARNING DIS & MENTAL HEALTH,BELVOIR CARE HOME LIMITED,18/08/2017,631.10 ,RESIDENTIAL LONG TERM,V001160474
ROCHDALE BOROUGH COUNCIL,04/08/2017,PHYSICAL DIS & OLDER PEOPLE,BELVOIR CARE HOME LIMITED,04/08/2017,644.02 ,RESIDENTIAL LONG TERM,V001156389
ROCHDALE BOROUGH COUNCIL,18/08/2017,PHYSICAL DIS & OLDER PEOPLE,BELVOIR CARE HOME LIMITED,18/08/2017,644.02 ,RESIDENTIAL LONG TERM,V001160868
ROCHDALE BOROUGH COUNCIL,03/08/2017,PROPERTY AND HIGHWAYS,BEMROSE BOOTH,03/08/2017,-972.00 ,PRINTING & STATIONERY,V001149938
ROCHDALE BOROUGH COUNCIL,03/08/2017,PROPERTY AND HIGHWAYS,BEMROSE BOOTH,03/08/2017,2097.00 ,PRINTING & STATIONERY,V001149947
ROCHDALE BOROUGH COUNCIL,25/08/2017,PHYSICAL DIS & OLDER PEOPLE,BESPOKE SUPPORTED LIVING LTD,25/08/2017,3535.00 ,SUPPORTED LIVING,V001162158
ROCHDALE BOROUGH COUNCIL,21/08/2017,EARLY HELP AND SCHOOLS,BEVAN BRITTAN LLP,21/08/2017,9850.50 ,LEGAL SERVICES EXTERNAL,V001158056
ROCHDALE BOROUGH COUNCIL,25/08/2017,PROPERTY AND HIGHWAYS,BEXAN LTD,25/08/2017,1537.14 ,PROPERTY - WORKS ELEMENT,V001161324
ROCHDALE BOROUGH COUNCIL,29/08/2017,NEIGHBOURHOODS AND ENVIRONMENT,BEYOND COVERS AND SASHES,29/08/2017,620.00 ,EQUIPMENT - GENERAL,V001161122
ROCHDALE BOROUGH COUNCIL,29/08/2017,NEIGHBOURHOODS AND ENVIRONMENT,BEYOND COVERS AND SASHES,29/08/2017,793.00 ,EQUIPMENT - GENERAL,V001161121
ROCHDALE BOROUGH COUNCIL,25/08/2017,NEIGHBOURHOODS AND ENVIRONMENT,BEYOND COVERS AND SASHES,25/08/2017,995.00 ,EQUIPMENT - GENERAL,V001161123
ROCHDALE BOROUGH COUNCIL,01/08/2017,PUBLIC HEALTH,BIG LIFE CENTRES,01/08/2017,120990.00 ,PH BIG LIFE CONTRACT,V001150145
ROCHDALE BOROUGH COUNCIL,22/08/2017,RESOURCES,BLOOM PROCUREMENT SERVICES LTD,22/08/2017,18328.80 ,AGENCY STAFF,V001161411
ROCHDALE BOROUGH COUNCIL,25/08/2017,LEARNING DIS & MENTAL HEALTH,BLUE PITS HOUSING ACTION,25/08/2017,-885.76 ,INDIVIDUAL SERVICE FUND,V001162013
ROCHDALE BOROUGH COUNCIL,25/08/2017,LEARNING DIS & MENTAL HEALTH,BLUE PITS HOUSING ACTION,25/08/2017,-885.76 ,INDIVIDUAL SERVICE FUND,V001162014
ROCHDALE BOROUGH COUNCIL,25/08/2017,LEARNING DIS & MENTAL HEALTH,BLUE PITS HOUSING ACTION,25/08/2017,-686.76 ,INDIVIDUAL SERVICE FUND,V001162570
ROCHDALE BOROUGH COUNCIL,25/08/2017,LEARNING DIS & MENTAL HEALTH,BLUE PITS HOUSING ACTION,25/08/2017,-686.76 ,INDIVIDUAL SERVICE FUND,V001162571
ROCHDALE BOROUGH COUNCIL,25/08/2017,LEARNING DIS & MENTAL HEALTH,BLUE PITS HOUSING ACTION,25/08/2017,-569.41 ,INDIVIDUAL SERVICE FUND,V001162012
ROCHDALE BOROUGH COUNCIL,25/08/2017,LEARNING DIS & MENTAL HEALTH,BLUE PITS HOUSING ACTION,25/08/2017,549.64 ,PERSONAL BUDGETS - MANAGED,V001162435
ROCHDALE BOROUGH COUNCIL,25/08/2017,LEARNING DIS & MENTAL HEALTH,BLUE PITS HOUSING ACTION,25/08/2017,675.00 ,SUPPORTED LIVING,V001162301
ROCHDALE BOROUGH COUNCIL,25/08/2017,LEARNING DIS & MENTAL HEALTH,BLUE PITS HOUSING ACTION,25/08/2017,700.00 ,SUPPORTED LIVING,V001162375
ROCHDALE BOROUGH COUNCIL,25/08/2017,LEARNING DIS & MENTAL HEALTH,BLUE PITS HOUSING ACTION,25/08/2017,744.24 ,PERSONAL BUDGETS - MANAGED,V001162453
ROCHDALE BOROUGH COUNCIL,25/08/2017,LEARNING DIS & MENTAL HEALTH,BLUE PITS HOUSING ACTION,25/08/2017,756.00 ,INDIVIDUAL SERVICE FUND,V001162692
ROCHDALE BOROUGH COUNCIL,25/08/2017,LEARNING DIS & MENTAL HEALTH,BLUE PITS HOUSING ACTION,25/08/2017,810.00 ,PERSONAL BUDGETS - MANAGED,V001162436
ROCHDALE BOROUGH COUNCIL,25/08/2017,LEARNING DIS & MENTAL HEALTH,BLUE PITS HOUSING ACTION,25/08/2017,832.00 ,PERSONAL BUDGETS - MANAGED,V001162342
ROCHDALE BOROUGH COUNCIL,25/08/2017,LEARNING DIS & MENTAL HEALTH,BLUE PITS HOUSING ACTION,25/08/2017,1040.00 ,PERSONAL BUDGETS - MANAGED,V001162201
ROCHDALE BOROUGH COUNCIL,25/08/2017,LEARNING DIS & MENTAL HEALTH,BLUE PITS HOUSING ACTION,25/08/2017,1065.76 ,INDIVIDUAL SERVICE FUND,V001162417
ROCHDALE BOROUGH COUNCIL,25/08/2017,LEARNING DIS & MENTAL HEALTH,BLUE PITS HOUSING ACTION,25/08/2017,1163.16 ,PERSONAL BUDGETS - MANAGED,V001162306
ROCHDALE BOROUGH COUNCIL,25/08/2017,LEARNING DIS & MENTAL HEALTH,BLUE PITS HOUSING ACTION,25/08/2017,1255.76 ,INDIVIDUAL SERVICE FUND,V001162572
ROCHDALE BOROUGH COUNCIL,25/08/2017,LEARNING DIS & MENTAL HEALTH,BLUE PITS HOUSING ACTION,25/08/2017,1282.64 ,SUPPORTED LIVING,V001162680
ROCHDALE BOROUGH COUNCIL,25/08/2017,LEARNING DIS & MENTAL HEALTH,BLUE PITS HOUSING ACTION,25/08/2017,1300.00 ,PERSONAL BUDGETS - MANAGED,V001162041
ROCHDALE BOROUGH COUNCIL,25/08/2017,LEARNING DIS & MENTAL HEALTH,BLUE PITS HOUSING ACTION,25/08/2017,1336.76 ,INDIVIDUAL SERVICE FUND,V001162015
ROCHDALE BOROUGH COUNCIL,25/08/2017,LEARNING DIS & MENTAL HEALTH,BLUE PITS HOUSING ACTION,25/08/2017,1390.76 ,INDIVIDUAL SERVICE FUND,V001162420
ROCHDALE BOROUGH COUNCIL,25/08/2017,LEARNING DIS & MENTAL HEALTH,BLUE PITS HOUSING ACTION,25/08/2017,1390.76 ,INDIVIDUAL SERVICE FUND,V001162421
ROCHDALE BOROUGH COUNCIL,25/08/2017,LEARNING DIS & MENTAL HEALTH,BLUE PITS HOUSING ACTION,25/08/2017,1390.76 ,INDIVIDUAL SERVICE FUND,V001162422
ROCHDALE BOROUGH COUNCIL,25/08/2017,LEARNING DIS & MENTAL HEALTH,BLUE PITS HOUSING ACTION,25/08/2017,1444.64 ,SUPPORTED LIVING,V001162549
ROCHDALE BOROUGH COUNCIL,25/08/2017,LEARNING DIS & MENTAL HEALTH,BLUE PITS HOUSING ACTION,25/08/2017,1655.32 ,INDIVIDUAL SERVICE FUND,V001162419
ROCHDALE BOROUGH COUNCIL,25/08/2017,LEARNING DIS & MENTAL HEALTH,BLUE PITS HOUSING ACTION,25/08/2017,1903.64 ,SUPPORTED LIVING,V001162340
ROCHDALE BOROUGH COUNCIL,25/08/2017,LEARNING DIS & MENTAL HEALTH,BLUE PITS HOUSING ACTION,25/08/2017,2131.52 ,INDIVIDUAL SERVICE FUND,V001162418
ROCHDALE BOROUGH COUNCIL,25/08/2017,LEARNING DIS & MENTAL HEALTH,BLUE PITS HOUSING ACTION,25/08/2017,2446.52 ,SUPPORTED LIVING,V001162456
ROCHDALE BOROUGH COUNCIL,25/08/2017,LEARNING DIS & MENTAL HEALTH,BLUE PITS HOUSING ACTION,25/08/2017,3342.52 ,SUPPORTED LIVING,V001162582
ROCHDALE BOROUGH COUNCIL,29/08/2017,CHILDREN�S SOCIAL CARE,BOLTON MBC,29/08/2017,-1220.00 ,ACTIVITIES,V001161315
ROCHDALE BOROUGH COUNCIL,29/08/2017,CHILDREN�S SOCIAL CARE,BOLTON MBC,29/08/2017,1220.00 ,ACTIVITIES,V001161314
ROCHDALE BOROUGH COUNCIL,04/08/2017,LEARNING DIS & MENTAL HEALTH,BOND BOARD LTD,04/08/2017,5731.30 ,SP BLOCK PAYMENTS - EXTERNAL,V001155489
ROCHDALE BOROUGH COUNCIL,31/08/2017,PUBLIC HEALTH,BOOTS THE CHEMIST,31/08/2017,582.73 ,PH LCS PAYMENTS,V001163743
ROCHDALE BOROUGH COUNCIL,18/08/2017,PHYSICAL DIS & OLDER PEOPLE,BOROUGH CARE,18/08/2017,513.68 ,RESIDENTIAL LONG TERM,V001160323
ROCHDALE BOROUGH COUNCIL,18/08/2017,PHYSICAL DIS & OLDER PEOPLE,BOROUGH CARE,18/08/2017,513.68 ,RESIDENTIAL LONG TERM,V001160324
ROCHDALE BOROUGH COUNCIL,08/08/2017,PUBLIC HEALTH,BRAHM FUNDCO 1 LTD,08/08/2017,6232.47 ,RENTS,V001154770
ROCHDALE BOROUGH COUNCIL,16/08/2017,ECONOMY DIRECTORATE,BRAHM LIFT LIMITED,16/08/2017,904.91 ,PFI SCHEMES RPI,V001159495
ROCHDALE BOROUGH COUNCIL,02/08/2017,NEIGHBOURHOODS AND ENVIRONMENT,BRENTWOOD,02/08/2017,16425.00 ,GRANTS TO THE VOLUNTARY SECTOR,V001146605
ROCHDALE BOROUGH COUNCIL,04/08/2017,PHYSICAL DIS & OLDER PEOPLE,BRIARMEDE CARE LTD,04/08/2017,568.78 ,SELF - FUNDING DEFERRED PAYMENTS,V001155726
ROCHDALE BOROUGH COUNCIL,04/08/2017,PHYSICAL DIS & OLDER PEOPLE,BRIARMEDE CARE LTD,04/08/2017,568.78 ,SELF - FUNDING DEFERRED PAYMENTS,V001155727
ROCHDALE BOROUGH COUNCIL,04/08/2017,PHYSICAL DIS & OLDER PEOPLE,BRIARMEDE CARE LTD,04/08/2017,568.78 ,SELF - FUNDING DEFERRED PAYMENTS,V001155728
ROCHDALE BOROUGH COUNCIL,04/08/2017,PHYSICAL DIS & OLDER PEOPLE,BRIARMEDE CARE LTD,04/08/2017,568.78 ,SELF - FUNDING DEFERRED PAYMENTS,V001155729
ROCHDALE BOROUGH COUNCIL,04/08/2017,PHYSICAL DIS & OLDER PEOPLE,BRIARMEDE CARE LTD,04/08/2017,568.78 ,SELF - FUNDING DEFERRED PAYMENTS,V001155730
ROCHDALE BOROUGH COUNCIL,04/08/2017,PHYSICAL DIS & OLDER PEOPLE,BRIARMEDE CARE LTD,04/08/2017,568.78 ,SELF - FUNDING DEFERRED PAYMENTS,V001155731
ROCHDALE BOROUGH COUNCIL,04/08/2017,PHYSICAL DIS & OLDER PEOPLE,BRIARMEDE CARE LTD,04/08/2017,568.78 ,SELF - FUNDING DEFERRED PAYMENTS,V001155732
ROCHDALE BOROUGH COUNCIL,18/08/2017,PHYSICAL DIS & OLDER PEOPLE,BRIARMEDE CARE LTD,18/08/2017,568.78 ,SELF - FUNDING DEFERRED PAYMENTS,V001160038
ROCHDALE BOROUGH COUNCIL,04/08/2017,PHYSICAL DIS & OLDER PEOPLE,BRIARMEDE CARE LTD,04/08/2017,571.22 ,RESIDENTIAL LONG TERM,V001156027
ROCHDALE BOROUGH COUNCIL,18/08/2017,PHYSICAL DIS & OLDER PEOPLE,BRIARMEDE CARE LTD,18/08/2017,571.22 ,RESIDENTIAL LONG TERM,V001160397
ROCHDALE BOROUGH COUNCIL,04/08/2017,PHYSICAL DIS & OLDER PEOPLE,BRIARMEDE CARE LTD,04/08/2017,578.57 ,ASSESSMENT CARE,V001156367
ROCHDALE BOROUGH COUNCIL,04/08/2017,PHYSICAL DIS & OLDER PEOPLE,BRIARMEDE CARE LTD,04/08/2017,581.40 ,RESIDENTIAL LONG TERM,V001156394
ROCHDALE BOROUGH COUNCIL,18/08/2017,PHYSICAL DIS & OLDER PEOPLE,BRIARMEDE CARE LTD,18/08/2017,581.40 ,RESIDENTIAL LONG TERM,V001160875
ROCHDALE BOROUGH COUNCIL,04/08/2017,PHYSICAL DIS & OLDER PEOPLE,BRIARMEDE CARE LTD,04/08/2017,589.26 ,RESIDENTIAL LONG TERM,V001155886
ROCHDALE BOROUGH COUNCIL,18/08/2017,PHYSICAL DIS & OLDER PEOPLE,BRIARMEDE CARE LTD,18/08/2017,589.26 ,RESIDENTIAL LONG TERM,V001160234
ROCHDALE BOROUGH COUNCIL,04/08/2017,PHYSICAL DIS & OLDER PEOPLE,BRIARMEDE CARE LTD,04/08/2017,607.68 ,RESIDENTIAL LONG TERM,V001155851
ROCHDALE BOROUGH COUNCIL,18/08/2017,PHYSICAL DIS & OLDER PEOPLE,BRIARMEDE CARE LTD,18/08/2017,607.68 ,RESIDENTIAL LONG TERM,V001160189
ROCHDALE BOROUGH COUNCIL,04/08/2017,PHYSICAL DIS & OLDER PEOPLE,BRIARMEDE CARE LTD,04/08/2017,609.00 ,RESIDENTIAL LONG TERM,V001156469
ROCHDALE BOROUGH COUNCIL,18/08/2017,PHYSICAL DIS & OLDER PEOPLE,BRIARMEDE CARE LTD,18/08/2017,609.00 ,RESIDENTIAL LONG TERM,V001160947
ROCHDALE BOROUGH COUNCIL,04/08/2017,PHYSICAL DIS & OLDER PEOPLE,BRIARMEDE CARE LTD,04/08/2017,622.04 ,RESIDENTIAL LONG TERM,V001156376
ROCHDALE BOROUGH COUNCIL,18/08/2017,PHYSICAL DIS & OLDER PEOPLE,BRIARMEDE CARE LTD,18/08/2017,622.04 ,RESIDENTIAL LONG TERM,V001160844
ROCHDALE BOROUGH COUNCIL,04/08/2017,LEARNING DIS & MENTAL HEALTH,BRIARMEDE CARE LTD,04/08/2017,631.10 ,RESIDENTIAL LONG TERM,V001155773
ROCHDALE BOROUGH COUNCIL,04/08/2017,PHYSICAL DIS & OLDER PEOPLE,BRIARMEDE CARE LTD,04/08/2017,631.10 ,RESIDENTIAL LONG TERM,V001155899
ROCHDALE BOROUGH COUNCIL,04/08/2017,PHYSICAL DIS & OLDER PEOPLE,BRIARMEDE CARE LTD,04/08/2017,631.10 ,RESIDENTIAL LONG TERM,V001156034
ROCHDALE BOROUGH COUNCIL,04/08/2017,PHYSICAL DIS & OLDER PEOPLE,BRIARMEDE CARE LTD,04/08/2017,631.10 ,RESIDENTIAL LONG TERM,V001156231
ROCHDALE BOROUGH COUNCIL,04/08/2017,PHYSICAL DIS & OLDER PEOPLE,BRIARMEDE CARE LTD,04/08/2017,631.10 ,RESIDENTIAL LONG TERM,V001156507
ROCHDALE BOROUGH COUNCIL,18/08/2017,LEARNING DIS & MENTAL HEALTH,BRIARMEDE CARE LTD,18/08/2017,631.10 ,RESIDENTIAL LONG TERM,V001160090
ROCHDALE BOROUGH COUNCIL,18/08/2017,PHYSICAL DIS & OLDER PEOPLE,BRIARMEDE CARE LTD,18/08/2017,631.10 ,RESIDENTIAL LONG TERM,V001160244
ROCHDALE BOROUGH COUNCIL,18/08/2017,PHYSICAL DIS & OLDER PEOPLE,BRIARMEDE CARE LTD,18/08/2017,631.10 ,RESIDENTIAL LONG TERM,V001160656
ROCHDALE BOROUGH COUNCIL,18/08/2017,PHYSICAL DIS & OLDER PEOPLE,BRIARMEDE CARE LTD,18/08/2017,631.10 ,RESIDENTIAL LONG TERM,V001160979
ROCHDALE BOROUGH COUNCIL,04/08/2017,PHYSICAL DIS & OLDER PEOPLE,BRIARMEDE CARE LTD,04/08/2017,642.86 ,ASSESSMENT CARE,V001156365
ROCHDALE BOROUGH COUNCIL,04/08/2017,PHYSICAL DIS & OLDER PEOPLE,BRIARMEDE CARE LTD,04/08/2017,900.00 ,ASSESSMENT CARE,V001156137
ROCHDALE BOROUGH COUNCIL,04/08/2017,PHYSICAL DIS & OLDER PEOPLE,BRIARMEDE CARE LTD,04/08/2017,900.00 ,ASSESSMENT CARE,V001156366
ROCHDALE BOROUGH COUNCIL,18/08/2017,PHYSICAL DIS & OLDER PEOPLE,BRIARMEDE CARE LTD,18/08/2017,900.00 ,RESIDENTIAL LONG TERM,V001160406
ROCHDALE BOROUGH COUNCIL,18/08/2017,PHYSICAL DIS & OLDER PEOPLE,BRIARMEDE CARE LTD,18/08/2017,900.00 ,ASSESSMENT CARE,V001160516
ROCHDALE BOROUGH COUNCIL,18/08/2017,PHYSICAL DIS & OLDER PEOPLE,BRIARMEDE CARE LTD,18/08/2017,900.00 ,SHORT TERM CARE - RESIDENTIAL,V001161025
ROCHDALE BOROUGH COUNCIL,18/08/2017,EARLY HELP AND SCHOOLS,BRIGHT STARS CHILDCARE,18/08/2017,713.50 ,DAY CARE,V001161164
ROCHDALE BOROUGH COUNCIL,24/08/2017,EARLY HELP AND SCHOOLS,BRITISH GAS,24/08/2017,531.04 ,ELECTRICITY,V001162712
ROCHDALE BOROUGH COUNCIL,24/08/2017,NEIGHBOURHOODS AND ENVIRONMENT,BRITISH GAS,24/08/2017,584.87 ,ELECTRICITY,V001162712
ROCHDALE BOROUGH COUNCIL,24/08/2017,NEIGHBOURHOODS AND ENVIRONMENT,BRITISH GAS,24/08/2017,613.57 ,ELECTRICITY,V001162712
ROCHDALE BOROUGH COUNCIL,24/08/2017,ECONOMY DIRECTORATE,BRITISH GAS,24/08/2017,662.99 ,ELECTRICITY,V001162712
ROCHDALE BOROUGH COUNCIL,24/08/2017,ECONOMY DIRECTORATE,BRITISH GAS,24/08/2017,686.67 ,ELECTRICITY,V001162712
ROCHDALE BOROUGH COUNCIL,24/08/2017,ECONOMY DIRECTORATE,BRITISH GAS,24/08/2017,785.23 ,ELECTRICITY,V001162712
ROCHDALE BOROUGH COUNCIL,24/08/2017,ECONOMY DIRECTORATE,BRITISH GAS,24/08/2017,1068.94 ,ELECTRICITY,V001162712
ROCHDALE BOROUGH COUNCIL,24/08/2017,NEIGHBOURHOODS AND ENVIRONMENT,BRITISH GAS,24/08/2017,1730.31 ,ELECTRICITY,V001162712
ROCHDALE BOROUGH COUNCIL,10/08/2017,PROPERTY AND HIGHWAYS,BRITISH TELECOMMUNICATIONS PLC,10/08/2017,1700.89 ,MINOR BUILDING WORKS,V001155342
ROCHDALE BOROUGH COUNCIL,25/08/2017,PHYSICAL DIS & OLDER PEOPLE,BROADWAY BUILDING CONTRACTORS OLDHAM LTD,25/08/2017,3656.00 ,TRANSACTIONS-EXPENDITURE,V001161725
ROCHDALE BOROUGH COUNCIL,04/08/2017,LEARNING DIS & MENTAL HEALTH,BROOKFIELD CARE HOME,04/08/2017,838.36 ,RESIDENTIAL LONG TERM,V001155641
ROCHDALE BOROUGH COUNCIL,18/08/2017,LEARNING DIS & MENTAL HEALTH,BROOKFIELD CARE HOME,18/08/2017,838.36 ,RESIDENTIAL LONG TERM,V001159947
ROCHDALE BOROUGH COUNCIL,04/08/2017,LEARNING DIS & MENTAL HEALTH,BROOKVALE RESIDENTIAL CARE,04/08/2017,938.50 ,RESIDENTIAL LONG TERM,V001155674
ROCHDALE BOROUGH COUNCIL,04/08/2017,LEARNING DIS & MENTAL HEALTH,BROOKVALE RESIDENTIAL CARE,04/08/2017,991.98 ,RESIDENTIAL LONG TERM,V001155673
ROCHDALE BOROUGH COUNCIL,04/08/2017,LEARNING DIS & MENTAL HEALTH,BROOKVALE RESIDENTIAL CARE,04/08/2017,1584.70 ,RESIDENTIAL LONG TERM,V001155744
ROCHDALE BOROUGH COUNCIL,04/08/2017,LEARNING DIS & MENTAL HEALTH,BROOKVALE RESIDENTIAL CARE,04/08/2017,1600.50 ,RESIDENTIAL LONG TERM,V001155844
ROCHDALE BOROUGH COUNCIL,25/08/2017,LEARNING DIS & MENTAL HEALTH,BROTHERS OF CHARITY SERVICES,25/08/2017,628.80 ,PERSONAL BUDGETS - MANAGED,V001161959
ROCHDALE BOROUGH COUNCIL,04/08/2017,LEARNING DIS & MENTAL HEALTH,BROWFIELD RESIDENTIAL HOME,04/08/2017,590.62 ,NURSING LONG TERM,V001155627
ROCHDALE BOROUGH COUNCIL,18/08/2017,LEARNING DIS & MENTAL HEALTH,BROWFIELD RESIDENTIAL HOME,18/08/2017,590.62 ,NURSING LONG TERM,V001159931
ROCHDALE BOROUGH COUNCIL,04/08/2017,LEARNING DIS & MENTAL HEALTH,BROWFIELD RESIDENTIAL HOME,04/08/2017,666.02 ,RESIDENTIAL LONG TERM,V001155566
ROCHDALE BOROUGH COUNCIL,18/08/2017,LEARNING DIS & MENTAL HEALTH,BROWFIELD RESIDENTIAL HOME,18/08/2017,666.02 ,RESIDENTIAL LONG TERM,V001159891
ROCHDALE BOROUGH COUNCIL,04/08/2017,LEARNING DIS & MENTAL HEALTH,BROWFIELD RESIDENTIAL HOME,04/08/2017,1093.24 ,RESIDENTIAL LONG TERM,V001155568
ROCHDALE BOROUGH COUNCIL,18/08/2017,LEARNING DIS & MENTAL HEALTH,BROWFIELD RESIDENTIAL HOME,18/08/2017,1093.24 ,RESIDENTIAL LONG TERM,V001159893
ROCHDALE BOROUGH COUNCIL,04/08/2017,LEARNING DIS & MENTAL HEALTH,BROWFIELD RESIDENTIAL HOME,04/08/2017,1115.10 ,RESIDENTIAL LONG TERM,V001155578
ROCHDALE BOROUGH COUNCIL,18/08/2017,LEARNING DIS & MENTAL HEALTH,BROWFIELD RESIDENTIAL HOME,18/08/2017,1115.10 ,RESIDENTIAL LONG TERM,V001159903
ROCHDALE BOROUGH COUNCIL,15/08/2017,PROPERTY AND HIGHWAYS,BSI STANDARDS LIMITED,15/08/2017,1681.00 ,SUBSCRIPTIONS,V001155356
ROCHDALE BOROUGH COUNCIL,04/08/2017,PHYSICAL DIS & OLDER PEOPLE,BUPA CARE HOMES LIMITED,04/08/2017,505.12 ,RESIDENTIAL LONG TERM,V001156295
ROCHDALE BOROUGH COUNCIL,18/08/2017,PHYSICAL DIS & OLDER PEOPLE,BUPA CARE HOMES LIMITED,18/08/2017,505.12 ,RESIDENTIAL LONG TERM,V001160741
ROCHDALE BOROUGH COUNCIL,04/08/2017,PHYSICAL DIS & OLDER PEOPLE,BUPA CARE HOMES LIMITED,04/08/2017,508.30 ,RESIDENTIAL LONG TERM,V001155677
ROCHDALE BOROUGH COUNCIL,18/08/2017,PHYSICAL DIS & OLDER PEOPLE,BUPA CARE HOMES LIMITED,18/08/2017,508.30 ,RESIDENTIAL LONG TERM,V001159980
ROCHDALE BOROUGH COUNCIL,18/08/2017,PHYSICAL DIS & OLDER PEOPLE,BUPA CARE HOMES LIMITED,18/08/2017,514.29 ,ASSESSMENT CARE,V001161016
ROCHDALE BOROUGH COUNCIL,04/08/2017,PHYSICAL DIS & OLDER PEOPLE,BUPA CARE HOMES LIMITED,04/08/2017,518.96 ,RESIDENTIAL LONG TERM,V001155763
ROCHDALE BOROUGH COUNCIL,18/08/2017,PHYSICAL DIS & OLDER PEOPLE,BUPA CARE HOMES LIMITED,18/08/2017,518.96 ,RESIDENTIAL LONG TERM,V001160079
ROCHDALE BOROUGH COUNCIL,04/08/2017,PHYSICAL DIS & OLDER PEOPLE,BUPA CARE HOMES LIMITED,04/08/2017,519.62 ,NURSING LONG TERM,V001155873
ROCHDALE BOROUGH COUNCIL,18/08/2017,PHYSICAL DIS & OLDER PEOPLE,BUPA CARE HOMES LIMITED,18/08/2017,519.62 ,NURSING LONG TERM,V001160217
ROCHDALE BOROUGH COUNCIL,04/08/2017,PHYSICAL DIS & OLDER PEOPLE,BUPA CARE HOMES LIMITED,04/08/2017,519.76 ,RESIDENTIAL LONG TERM,V001156138
ROCHDALE BOROUGH COUNCIL,18/08/2017,PHYSICAL DIS & OLDER PEOPLE,BUPA CARE HOMES LIMITED,18/08/2017,519.76 ,RESIDENTIAL LONG TERM,V001160521
ROCHDALE BOROUGH COUNCIL,04/08/2017,PHYSICAL DIS & OLDER PEOPLE,BUPA CARE HOMES LIMITED,04/08/2017,535.00 ,RESIDENTIAL LONG TERM,V001156462
ROCHDALE BOROUGH COUNCIL,18/08/2017,PHYSICAL DIS & OLDER PEOPLE,BUPA CARE HOMES LIMITED,18/08/2017,535.00 ,RESIDENTIAL LONG TERM,V001160940
ROCHDALE BOROUGH COUNCIL,04/08/2017,PHYSICAL DIS & OLDER PEOPLE,BUPA CARE HOMES LIMITED,04/08/2017,537.48 ,NURSING LONG TERM,V001156474
ROCHDALE BOROUGH COUNCIL,18/08/2017,PHYSICAL DIS & OLDER PEOPLE,BUPA CARE HOMES LIMITED,18/08/2017,537.48 ,NURSING LONG TERM,V001160951
ROCHDALE BOROUGH COUNCIL,04/08/2017,PHYSICAL DIS & OLDER PEOPLE,BUPA CARE HOMES LIMITED,04/08/2017,537.74 ,SELF - FUNDING DEFERRED PAYMENTS,V001156227
ROCHDALE BOROUGH COUNCIL,18/08/2017,PHYSICAL DIS & OLDER PEOPLE,BUPA CARE HOMES LIMITED,18/08/2017,537.74 ,SELF - FUNDING DEFERRED PAYMENTS,V001160646
ROCHDALE BOROUGH COUNCIL,04/08/2017,PHYSICAL DIS & OLDER PEOPLE,BUPA CARE HOMES LIMITED,04/08/2017,538.52 ,RESIDENTIAL LONG TERM,V001156026
ROCHDALE BOROUGH COUNCIL,18/08/2017,PHYSICAL DIS & OLDER PEOPLE,BUPA CARE HOMES LIMITED,18/08/2017,538.52 ,RESIDENTIAL LONG TERM,V001160396
ROCHDALE BOROUGH COUNCIL,04/08/2017,PHYSICAL DIS & OLDER PEOPLE,BUPA CARE HOMES LIMITED,04/08/2017,539.38 ,RESIDENTIAL LONG TERM,V001156449
ROCHDALE BOROUGH COUNCIL,18/08/2017,PHYSICAL DIS & OLDER PEOPLE,BUPA CARE HOMES LIMITED,18/08/2017,539.38 ,RESIDENTIAL LONG TERM,V001160931
ROCHDALE BOROUGH COUNCIL,04/08/2017,PHYSICAL DIS & OLDER PEOPLE,BUPA CARE HOMES LIMITED,04/08/2017,539.86 ,NURSING LONG TERM,V001156077
ROCHDALE BOROUGH COUNCIL,18/08/2017,PHYSICAL DIS & OLDER PEOPLE,BUPA CARE HOMES LIMITED,18/08/2017,539.86 ,NURSING LONG TERM,V001160446
ROCHDALE BOROUGH COUNCIL,04/08/2017,PHYSICAL DIS & OLDER PEOPLE,BUPA CARE HOMES LIMITED,04/08/2017,544.10 ,RESIDENTIAL LONG TERM,V001155703
ROCHDALE BOROUGH COUNCIL,18/08/2017,PHYSICAL DIS & OLDER PEOPLE,BUPA CARE HOMES LIMITED,18/08/2017,544.10 ,RESIDENTIAL LONG TERM,V001160009
ROCHDALE BOROUGH COUNCIL,04/08/2017,PHYSICAL DIS & OLDER PEOPLE,BUPA CARE HOMES LIMITED,04/08/2017,544.42 ,RESIDENTIAL LONG TERM,V001156425
ROCHDALE BOROUGH COUNCIL,18/08/2017,PHYSICAL DIS & OLDER PEOPLE,BUPA CARE HOMES LIMITED,18/08/2017,544.42 ,RESIDENTIAL LONG TERM,V001160899
ROCHDALE BOROUGH COUNCIL,04/08/2017,PHYSICAL DIS & OLDER PEOPLE,BUPA CARE HOMES LIMITED,04/08/2017,558.00 ,NURSING LONG TERM,V001156403
ROCHDALE BOROUGH COUNCIL,18/08/2017,PHYSICAL DIS & OLDER PEOPLE,BUPA CARE HOMES LIMITED,18/08/2017,558.00 ,NURSING LONG TERM,V001160890
ROCHDALE BOROUGH COUNCIL,04/08/2017,PHYSICAL DIS & OLDER PEOPLE,BUPA CARE HOMES LIMITED,04/08/2017,560.98 ,RESIDENTIAL LONG TERM,V001156066
ROCHDALE BOROUGH COUNCIL,18/08/2017,PHYSICAL DIS & OLDER PEOPLE,BUPA CARE HOMES LIMITED,18/08/2017,560.98 ,RESIDENTIAL LONG TERM,V001160431
ROCHDALE BOROUGH COUNCIL,04/08/2017,PHYSICAL DIS & OLDER PEOPLE,BUPA CARE HOMES LIMITED,04/08/2017,563.56 ,RESIDENTIAL LONG TERM,V001156251
ROCHDALE BOROUGH COUNCIL,18/08/2017,PHYSICAL DIS & OLDER PEOPLE,BUPA CARE HOMES LIMITED,18/08/2017,563.56 ,RESIDENTIAL LONG TERM,V001160678
ROCHDALE BOROUGH COUNCIL,04/08/2017,PHYSICAL DIS & OLDER PEOPLE,BUPA CARE HOMES LIMITED,04/08/2017,565.36 ,NURSING LONG TERM,V001155870
ROCHDALE BOROUGH COUNCIL,18/08/2017,PHYSICAL DIS & OLDER PEOPLE,BUPA CARE HOMES LIMITED,18/08/2017,565.36 ,NURSING LONG TERM,V001160214
ROCHDALE BOROUGH COUNCIL,04/08/2017,PHYSICAL DIS & OLDER PEOPLE,BUPA CARE HOMES LIMITED,04/08/2017,565.76 ,RESIDENTIAL LONG TERM,V001155678
ROCHDALE BOROUGH COUNCIL,18/08/2017,PHYSICAL DIS & OLDER PEOPLE,BUPA CARE HOMES LIMITED,18/08/2017,565.76 ,RESIDENTIAL LONG TERM,V001159981
ROCHDALE BOROUGH COUNCIL,04/08/2017,PHYSICAL DIS & OLDER PEOPLE,BUPA CARE HOMES LIMITED,04/08/2017,567.86 ,RESIDENTIAL LONG TERM,V001155805
ROCHDALE BOROUGH COUNCIL,18/08/2017,PHYSICAL DIS & OLDER PEOPLE,BUPA CARE HOMES LIMITED,18/08/2017,567.86 ,RESIDENTIAL LONG TERM,V001160137
ROCHDALE BOROUGH COUNCIL,04/08/2017,PHYSICAL DIS & OLDER PEOPLE,BUPA CARE HOMES LIMITED,04/08/2017,572.44 ,RESIDENTIAL LONG TERM,V001155831
ROCHDALE BOROUGH COUNCIL,18/08/2017,PHYSICAL DIS & OLDER PEOPLE,BUPA CARE HOMES LIMITED,18/08/2017,572.44 ,RESIDENTIAL LONG TERM,V001160165
ROCHDALE BOROUGH COUNCIL,04/08/2017,PHYSICAL DIS & OLDER PEOPLE,BUPA CARE HOMES LIMITED,04/08/2017,577.54 ,RESIDENTIAL LONG TERM,V001156412
ROCHDALE BOROUGH COUNCIL,18/08/2017,PHYSICAL DIS & OLDER PEOPLE,BUPA CARE HOMES LIMITED,18/08/2017,577.54 ,RESIDENTIAL LONG TERM,V001160892
ROCHDALE BOROUGH COUNCIL,04/08/2017,PHYSICAL DIS & OLDER PEOPLE,BUPA CARE HOMES LIMITED,04/08/2017,578.14 ,RESIDENTIAL LONG TERM,V001155506
ROCHDALE BOROUGH COUNCIL,18/08/2017,PHYSICAL DIS & OLDER PEOPLE,BUPA CARE HOMES LIMITED,18/08/2017,578.14 ,RESIDENTIAL LONG TERM,V001159848
ROCHDALE BOROUGH COUNCIL,04/08/2017,PHYSICAL DIS & OLDER PEOPLE,BUPA CARE HOMES LIMITED,04/08/2017,584.76 ,RESIDENTIAL LONG TERM,V001155878
ROCHDALE BOROUGH COUNCIL,18/08/2017,PHYSICAL DIS & OLDER PEOPLE,BUPA CARE HOMES LIMITED,18/08/2017,584.76 ,RESIDENTIAL LONG TERM,V001160224
ROCHDALE BOROUGH COUNCIL,04/08/2017,PHYSICAL DIS & OLDER PEOPLE,BUPA CARE HOMES LIMITED,04/08/2017,585.20 ,RESIDENTIAL LONG TERM,V001156047
ROCHDALE BOROUGH COUNCIL,18/08/2017,PHYSICAL DIS & OLDER PEOPLE,BUPA CARE HOMES LIMITED,18/08/2017,585.20 ,RESIDENTIAL LONG TERM,V001160412
ROCHDALE BOROUGH COUNCIL,04/08/2017,PHYSICAL DIS & OLDER PEOPLE,BUPA CARE HOMES LIMITED,04/08/2017,585.30 ,RESIDENTIAL LONG TERM,V001156435
ROCHDALE BOROUGH COUNCIL,18/08/2017,PHYSICAL DIS & OLDER PEOPLE,BUPA CARE HOMES LIMITED,18/08/2017,585.30 ,RESIDENTIAL LONG TERM,V001160917
ROCHDALE BOROUGH COUNCIL,04/08/2017,PHYSICAL DIS & OLDER PEOPLE,BUPA CARE HOMES LIMITED,04/08/2017,587.10 ,NURSING LONG TERM,V001156194
ROCHDALE BOROUGH COUNCIL,18/08/2017,PHYSICAL DIS & OLDER PEOPLE,BUPA CARE HOMES LIMITED,18/08/2017,587.10 ,NURSING LONG TERM,V001160611
ROCHDALE BOROUGH COUNCIL,04/08/2017,PHYSICAL DIS & OLDER PEOPLE,BUPA CARE HOMES LIMITED,04/08/2017,588.00 ,NURSING LONG TERM,V001155556
ROCHDALE BOROUGH COUNCIL,18/08/2017,PHYSICAL DIS & OLDER PEOPLE,BUPA CARE HOMES LIMITED,18/08/2017,588.00 ,NURSING LONG TERM,V001159881
ROCHDALE BOROUGH COUNCIL,04/08/2017,PHYSICAL DIS & OLDER PEOPLE,BUPA CARE HOMES LIMITED,04/08/2017,590.62 ,NURSING LONG TERM,V001155751
ROCHDALE BOROUGH COUNCIL,04/08/2017,PHYSICAL DIS & OLDER PEOPLE,BUPA CARE HOMES LIMITED,04/08/2017,590.62 ,NURSING LONG TERM,V001155828
ROCHDALE BOROUGH COUNCIL,18/08/2017,PHYSICAL DIS & OLDER PEOPLE,BUPA CARE HOMES LIMITED,18/08/2017,590.62 ,NURSING LONG TERM,V001160066
ROCHDALE BOROUGH COUNCIL,18/08/2017,PHYSICAL DIS & OLDER PEOPLE,BUPA CARE HOMES LIMITED,18/08/2017,590.62 ,NURSING LONG TERM,V001160163
ROCHDALE BOROUGH COUNCIL,04/08/2017,PHYSICAL DIS & OLDER PEOPLE,BUPA CARE HOMES LIMITED,04/08/2017,595.16 ,RESIDENTIAL LONG TERM,V001155920
ROCHDALE BOROUGH COUNCIL,18/08/2017,PHYSICAL DIS & OLDER PEOPLE,BUPA CARE HOMES LIMITED,18/08/2017,595.16 ,RESIDENTIAL LONG TERM,V001160275
ROCHDALE BOROUGH COUNCIL,04/08/2017,PHYSICAL DIS & OLDER PEOPLE,BUPA CARE HOMES LIMITED,04/08/2017,600.62 ,NURSING LONG TERM,V001156124
ROCHDALE BOROUGH COUNCIL,18/08/2017,PHYSICAL DIS & OLDER PEOPLE,BUPA CARE HOMES LIMITED,18/08/2017,600.62 ,NURSING LONG TERM,V001160507
ROCHDALE BOROUGH COUNCIL,04/08/2017,PHYSICAL DIS & OLDER PEOPLE,BUPA CARE HOMES LIMITED,04/08/2017,601.16 ,RESIDENTIAL LONG TERM,V001155806
ROCHDALE BOROUGH COUNCIL,18/08/2017,PHYSICAL DIS & OLDER PEOPLE,BUPA CARE HOMES LIMITED,18/08/2017,601.16 ,RESIDENTIAL LONG TERM,V001160138
ROCHDALE BOROUGH COUNCIL,04/08/2017,PHYSICAL DIS & OLDER PEOPLE,BUPA CARE HOMES LIMITED,04/08/2017,604.28 ,NURSING LONG TERM,V001155679
ROCHDALE BOROUGH COUNCIL,18/08/2017,PHYSICAL DIS & OLDER PEOPLE,BUPA CARE HOMES LIMITED,18/08/2017,604.28 ,NURSING LONG TERM,V001159982
ROCHDALE BOROUGH COUNCIL,04/08/2017,PHYSICAL DIS & OLDER PEOPLE,BUPA CARE HOMES LIMITED,04/08/2017,613.34 ,RESIDENTIAL LONG TERM,V001156538
ROCHDALE BOROUGH COUNCIL,04/08/2017,PHYSICAL DIS & OLDER PEOPLE,BUPA CARE HOMES LIMITED,04/08/2017,613.64 ,RESIDENTIAL LONG TERM,V001156043
ROCHDALE BOROUGH COUNCIL,18/08/2017,PHYSICAL DIS & OLDER PEOPLE,BUPA CARE HOMES LIMITED,18/08/2017,613.64 ,RESIDENTIAL LONG TERM,V001160408
ROCHDALE BOROUGH COUNCIL,04/08/2017,PHYSICAL DIS & OLDER PEOPLE,BUPA CARE HOMES LIMITED,04/08/2017,613.80 ,RESIDENTIAL LONG TERM,V001155909
ROCHDALE BOROUGH COUNCIL,18/08/2017,PHYSICAL DIS & OLDER PEOPLE,BUPA CARE HOMES LIMITED,18/08/2017,613.80 ,RESIDENTIAL LONG TERM,V001160255
ROCHDALE BOROUGH COUNCIL,04/08/2017,PHYSICAL DIS & OLDER PEOPLE,BUPA CARE HOMES LIMITED,04/08/2017,615.06 ,NURSING LONG TERM,V001156169
ROCHDALE BOROUGH COUNCIL,18/08/2017,PHYSICAL DIS & OLDER PEOPLE,BUPA CARE HOMES LIMITED,18/08/2017,615.06 ,NURSING LONG TERM,V001160587
ROCHDALE BOROUGH COUNCIL,04/08/2017,PHYSICAL DIS & OLDER PEOPLE,BUPA CARE HOMES LIMITED,04/08/2017,615.76 ,RESIDENTIAL LONG TERM,V001156049
ROCHDALE BOROUGH COUNCIL,18/08/2017,PHYSICAL DIS & OLDER PEOPLE,BUPA CARE HOMES LIMITED,18/08/2017,615.76 ,RESIDENTIAL LONG TERM,V001160414
ROCHDALE BOROUGH COUNCIL,04/08/2017,PHYSICAL DIS & OLDER PEOPLE,BUPA CARE HOMES LIMITED,04/08/2017,615.80 ,RESIDENTIAL LONG TERM,V001155960
ROCHDALE BOROUGH COUNCIL,18/08/2017,PHYSICAL DIS & OLDER PEOPLE,BUPA CARE HOMES LIMITED,18/08/2017,615.80 ,RESIDENTIAL LONG TERM,V001160333
ROCHDALE BOROUGH COUNCIL,04/08/2017,PHYSICAL DIS & OLDER PEOPLE,BUPA CARE HOMES LIMITED,04/08/2017,617.10 ,RESIDENTIAL LONG TERM,V001155796
ROCHDALE BOROUGH COUNCIL,18/08/2017,PHYSICAL DIS & OLDER PEOPLE,BUPA CARE HOMES LIMITED,18/08/2017,617.10 ,RESIDENTIAL LONG TERM,V001160130
ROCHDALE BOROUGH COUNCIL,04/08/2017,PHYSICAL DIS & OLDER PEOPLE,BUPA CARE HOMES LIMITED,04/08/2017,620.88 ,RESIDENTIAL LONG TERM,V001155875
ROCHDALE BOROUGH COUNCIL,18/08/2017,PHYSICAL DIS & OLDER PEOPLE,BUPA CARE HOMES LIMITED,18/08/2017,620.88 ,RESIDENTIAL LONG TERM,V001160219
ROCHDALE BOROUGH COUNCIL,04/08/2017,PHYSICAL DIS & OLDER PEOPLE,BUPA CARE HOMES LIMITED,04/08/2017,621.14 ,NURSING LONG TERM,V001156103
ROCHDALE BOROUGH COUNCIL,04/08/2017,PHYSICAL DIS & OLDER PEOPLE,BUPA CARE HOMES LIMITED,04/08/2017,621.14 ,RESIDENTIAL LONG TERM,V001156280
ROCHDALE BOROUGH COUNCIL,18/08/2017,PHYSICAL DIS & OLDER PEOPLE,BUPA CARE HOMES LIMITED,18/08/2017,621.14 ,NURSING LONG TERM,V001160476
ROCHDALE BOROUGH COUNCIL,18/08/2017,PHYSICAL DIS & OLDER PEOPLE,BUPA CARE HOMES LIMITED,18/08/2017,621.14 ,RESIDENTIAL LONG TERM,V001160721
ROCHDALE BOROUGH COUNCIL,04/08/2017,PHYSICAL DIS & OLDER PEOPLE,BUPA CARE HOMES LIMITED,04/08/2017,623.68 ,RESIDENTIAL LONG TERM,V001156092
ROCHDALE BOROUGH COUNCIL,18/08/2017,PHYSICAL DIS & OLDER PEOPLE,BUPA CARE HOMES LIMITED,18/08/2017,623.68 ,RESIDENTIAL LONG TERM,V001160461
ROCHDALE BOROUGH COUNCIL,04/08/2017,PHYSICAL DIS & OLDER PEOPLE,BUPA CARE HOMES LIMITED,04/08/2017,625.10 ,NURSING LONG TERM,V001156105
ROCHDALE BOROUGH COUNCIL,18/08/2017,PHYSICAL DIS & OLDER PEOPLE,BUPA CARE HOMES LIMITED,18/08/2017,625.10 ,NURSING LONG TERM,V001160478
ROCHDALE BOROUGH COUNCIL,04/08/2017,PHYSICAL DIS & OLDER PEOPLE,BUPA CARE HOMES LIMITED,04/08/2017,625.40 ,NURSING LONG TERM,V001156016
ROCHDALE BOROUGH COUNCIL,18/08/2017,PHYSICAL DIS & OLDER PEOPLE,BUPA CARE HOMES LIMITED,18/08/2017,625.40 ,NURSING LONG TERM,V001160383
ROCHDALE BOROUGH COUNCIL,04/08/2017,PHYSICAL DIS & OLDER PEOPLE,BUPA CARE HOMES LIMITED,04/08/2017,628.40 ,NURSING LONG TERM,V001155833
ROCHDALE BOROUGH COUNCIL,18/08/2017,PHYSICAL DIS & OLDER PEOPLE,BUPA CARE HOMES LIMITED,18/08/2017,628.40 ,NURSING LONG TERM,V001160167
ROCHDALE BOROUGH COUNCIL,04/08/2017,PHYSICAL DIS & OLDER PEOPLE,BUPA CARE HOMES LIMITED,04/08/2017,629.10 ,RESIDENTIAL LONG TERM,V001156152
ROCHDALE BOROUGH COUNCIL,18/08/2017,PHYSICAL DIS & OLDER PEOPLE,BUPA CARE HOMES LIMITED,18/08/2017,629.10 ,RESIDENTIAL LONG TERM,V001160548
ROCHDALE BOROUGH COUNCIL,04/08/2017,PHYSICAL DIS & OLDER PEOPLE,BUPA CARE HOMES LIMITED,04/08/2017,629.22 ,NURSING LONG TERM,V001156277
ROCHDALE BOROUGH COUNCIL,18/08/2017,PHYSICAL DIS & OLDER PEOPLE,BUPA CARE HOMES LIMITED,18/08/2017,629.22 ,NURSING LONG TERM,V001160696
ROCHDALE BOROUGH COUNCIL,04/08/2017,PHYSICAL DIS & OLDER PEOPLE,BUPA CARE HOMES LIMITED,04/08/2017,630.56 ,RESIDENTIAL LONG TERM,V001155855
ROCHDALE BOROUGH COUNCIL,18/08/2017,PHYSICAL DIS & OLDER PEOPLE,BUPA CARE HOMES LIMITED,18/08/2017,630.56 ,RESIDENTIAL LONG TERM,V001160195
ROCHDALE BOROUGH COUNCIL,04/08/2017,LEARNING DIS & MENTAL HEALTH,BUPA CARE HOMES LIMITED,04/08/2017,631.10 ,RESIDENTIAL LONG TERM,V001155570
ROCHDALE BOROUGH COUNCIL,04/08/2017,LEARNING DIS & MENTAL HEALTH,BUPA CARE HOMES LIMITED,04/08/2017,631.10 ,NURSING LONG TERM,V001155580
ROCHDALE BOROUGH COUNCIL,04/08/2017,PHYSICAL DIS & OLDER PEOPLE,BUPA CARE HOMES LIMITED,04/08/2017,631.10 ,RESIDENTIAL LONG TERM,V001155723
ROCHDALE BOROUGH COUNCIL,04/08/2017,PHYSICAL DIS & OLDER PEOPLE,BUPA CARE HOMES LIMITED,04/08/2017,631.10 ,NURSING LONG TERM,V001155767
ROCHDALE BOROUGH COUNCIL,04/08/2017,PHYSICAL DIS & OLDER PEOPLE,BUPA CARE HOMES LIMITED,04/08/2017,631.10 ,RESIDENTIAL LONG TERM,V001155795
ROCHDALE BOROUGH COUNCIL,04/08/2017,PHYSICAL DIS & OLDER PEOPLE,BUPA CARE HOMES LIMITED,04/08/2017,631.10 ,RESIDENTIAL LONG TERM,V001155871
ROCHDALE BOROUGH COUNCIL,04/08/2017,PHYSICAL DIS & OLDER PEOPLE,BUPA CARE HOMES LIMITED,04/08/2017,631.10 ,RESIDENTIAL LONG TERM,V001155958
ROCHDALE BOROUGH COUNCIL,04/08/2017,PHYSICAL DIS & OLDER PEOPLE,BUPA CARE HOMES LIMITED,04/08/2017,631.10 ,RESIDENTIAL LONG TERM,V001155996
ROCHDALE BOROUGH COUNCIL,04/08/2017,PHYSICAL DIS & OLDER PEOPLE,BUPA CARE HOMES LIMITED,04/08/2017,631.10 ,RESIDENTIAL LONG TERM,V001156029
ROCHDALE BOROUGH COUNCIL,04/08/2017,PHYSICAL DIS & OLDER PEOPLE,BUPA CARE HOMES LIMITED,04/08/2017,631.10 ,RESIDENTIAL LONG TERM,V001156102
ROCHDALE BOROUGH COUNCIL,04/08/2017,PHYSICAL DIS & OLDER PEOPLE,BUPA CARE HOMES LIMITED,04/08/2017,631.10 ,NURSING LONG TERM,V001156156
ROCHDALE BOROUGH COUNCIL,04/08/2017,PHYSICAL DIS & OLDER PEOPLE,BUPA CARE HOMES LIMITED,04/08/2017,631.10 ,NURSING LONG TERM,V001156171
ROCHDALE BOROUGH COUNCIL,04/08/2017,PHYSICAL DIS & OLDER PEOPLE,BUPA CARE HOMES LIMITED,04/08/2017,631.10 ,RESIDENTIAL LONG TERM,V001156240
ROCHDALE BOROUGH COUNCIL,04/08/2017,PHYSICAL DIS & OLDER PEOPLE,BUPA CARE HOMES LIMITED,04/08/2017,631.10 ,RESIDENTIAL LONG TERM,V001156264
ROCHDALE BOROUGH COUNCIL,04/08/2017,PHYSICAL DIS & OLDER PEOPLE,BUPA CARE HOMES LIMITED,04/08/2017,631.10 ,RESIDENTIAL LONG TERM,V001156388
ROCHDALE BOROUGH COUNCIL,04/08/2017,PHYSICAL DIS & OLDER PEOPLE,BUPA CARE HOMES LIMITED,04/08/2017,631.10 ,NURSING LONG TERM,V001156401
ROCHDALE BOROUGH COUNCIL,04/08/2017,PHYSICAL DIS & OLDER PEOPLE,BUPA CARE HOMES LIMITED,04/08/2017,631.10 ,RESIDENTIAL LONG TERM,V001156458
ROCHDALE BOROUGH COUNCIL,04/08/2017,PHYSICAL DIS & OLDER PEOPLE,BUPA CARE HOMES LIMITED,04/08/2017,631.10 ,RESIDENTIAL LONG TERM,V001156471
ROCHDALE BOROUGH COUNCIL,04/08/2017,PHYSICAL DIS & OLDER PEOPLE,BUPA CARE HOMES LIMITED,04/08/2017,631.10 ,RESIDENTIAL LONG TERM,V001156524
ROCHDALE BOROUGH COUNCIL,18/08/2017,LEARNING DIS & MENTAL HEALTH,BUPA CARE HOMES LIMITED,18/08/2017,631.10 ,RESIDENTIAL LONG TERM,V001159895
ROCHDALE BOROUGH COUNCIL,18/08/2017,LEARNING DIS & MENTAL HEALTH,BUPA CARE HOMES LIMITED,18/08/2017,631.10 ,NURSING LONG TERM,V001159905
ROCHDALE BOROUGH COUNCIL,18/08/2017,PHYSICAL DIS & OLDER PEOPLE,BUPA CARE HOMES LIMITED,18/08/2017,631.10 ,RESIDENTIAL LONG TERM,V001160034
ROCHDALE BOROUGH COUNCIL,18/08/2017,PHYSICAL DIS & OLDER PEOPLE,BUPA CARE HOMES LIMITED,18/08/2017,631.10 ,NURSING LONG TERM,V001160083
ROCHDALE BOROUGH COUNCIL,18/08/2017,PHYSICAL DIS & OLDER PEOPLE,BUPA CARE HOMES LIMITED,18/08/2017,631.10 ,RESIDENTIAL LONG TERM,V001160129
ROCHDALE BOROUGH COUNCIL,18/08/2017,PHYSICAL DIS & OLDER PEOPLE,BUPA CARE HOMES LIMITED,18/08/2017,631.10 ,RESIDENTIAL LONG TERM,V001160215
ROCHDALE BOROUGH COUNCIL,18/08/2017,PHYSICAL DIS & OLDER PEOPLE,BUPA CARE HOMES LIMITED,18/08/2017,631.10 ,RESIDENTIAL LONG TERM,V001160330
ROCHDALE BOROUGH COUNCIL,18/08/2017,PHYSICAL DIS & OLDER PEOPLE,BUPA CARE HOMES LIMITED,18/08/2017,631.10 ,RESIDENTIAL LONG TERM,V001160361
ROCHDALE BOROUGH COUNCIL,18/08/2017,PHYSICAL DIS & OLDER PEOPLE,BUPA CARE HOMES LIMITED,18/08/2017,631.10 ,RESIDENTIAL LONG TERM,V001160398
ROCHDALE BOROUGH COUNCIL,18/08/2017,PHYSICAL DIS & OLDER PEOPLE,BUPA CARE HOMES LIMITED,18/08/2017,631.10 ,RESIDENTIAL LONG TERM,V001160475
ROCHDALE BOROUGH COUNCIL,18/08/2017,PHYSICAL DIS & OLDER PEOPLE,BUPA CARE HOMES LIMITED,18/08/2017,631.10 ,NURSING LONG TERM,V001160571
ROCHDALE BOROUGH COUNCIL,18/08/2017,PHYSICAL DIS & OLDER PEOPLE,BUPA CARE HOMES LIMITED,18/08/2017,631.10 ,NURSING LONG TERM,V001160591
ROCHDALE BOROUGH COUNCIL,18/08/2017,PHYSICAL DIS & OLDER PEOPLE,BUPA CARE HOMES LIMITED,18/08/2017,631.10 ,RESIDENTIAL LONG TERM,V001160668
ROCHDALE BOROUGH COUNCIL,18/08/2017,PHYSICAL DIS & OLDER PEOPLE,BUPA CARE HOMES LIMITED,18/08/2017,631.10 ,RESIDENTIAL LONG TERM,V001160688
ROCHDALE BOROUGH COUNCIL,18/08/2017,PHYSICAL DIS & OLDER PEOPLE,BUPA CARE HOMES LIMITED,18/08/2017,631.10 ,RESIDENTIAL LONG TERM,V001160867
ROCHDALE BOROUGH COUNCIL,18/08/2017,PHYSICAL DIS & OLDER PEOPLE,BUPA CARE HOMES LIMITED,18/08/2017,631.10 ,NURSING LONG TERM,V001160887
ROCHDALE BOROUGH COUNCIL,18/08/2017,PHYSICAL DIS & OLDER PEOPLE,BUPA CARE HOMES LIMITED,18/08/2017,631.10 ,RESIDENTIAL LONG TERM,V001160936
ROCHDALE BOROUGH COUNCIL,18/08/2017,PHYSICAL DIS & OLDER PEOPLE,BUPA CARE HOMES LIMITED,18/08/2017,631.10 ,RESIDENTIAL LONG TERM,V001160948
ROCHDALE BOROUGH COUNCIL,18/08/2017,PHYSICAL DIS & OLDER PEOPLE,BUPA CARE HOMES LIMITED,18/08/2017,631.10 ,RESIDENTIAL LONG TERM,V001160994
ROCHDALE BOROUGH COUNCIL,04/08/2017,PHYSICAL DIS & OLDER PEOPLE,BUPA CARE HOMES LIMITED,04/08/2017,634.98 ,NURSING LONG TERM,V001155769
ROCHDALE BOROUGH COUNCIL,18/08/2017,PHYSICAL DIS & OLDER PEOPLE,BUPA CARE HOMES LIMITED,18/08/2017,634.98 ,NURSING LONG TERM,V001160086
ROCHDALE BOROUGH COUNCIL,04/08/2017,PHYSICAL DIS & OLDER PEOPLE,BUPA CARE HOMES LIMITED,04/08/2017,636.22 ,RESIDENTIAL LONG TERM,V001156358
ROCHDALE BOROUGH COUNCIL,18/08/2017,PHYSICAL DIS & OLDER PEOPLE,BUPA CARE HOMES LIMITED,18/08/2017,636.22 ,RESIDENTIAL LONG TERM,V001160826
ROCHDALE BOROUGH COUNCIL,04/08/2017,PHYSICAL DIS & OLDER PEOPLE,BUPA CARE HOMES LIMITED,04/08/2017,638.60 ,NURSING LONG TERM,V001155564
ROCHDALE BOROUGH COUNCIL,18/08/2017,PHYSICAL DIS & OLDER PEOPLE,BUPA CARE HOMES LIMITED,18/08/2017,638.60 ,NURSING LONG TERM,V001159889
ROCHDALE BOROUGH COUNCIL,04/08/2017,PHYSICAL DIS & OLDER PEOPLE,BUPA CARE HOMES LIMITED,04/08/2017,642.86 ,ASSESSMENT CARE,V001155818
ROCHDALE BOROUGH COUNCIL,04/08/2017,PHYSICAL DIS & OLDER PEOPLE,BUPA CARE HOMES LIMITED,04/08/2017,642.86 ,SHORT TERM CARE - RESIDENTIAL,V001156249
ROCHDALE BOROUGH COUNCIL,18/08/2017,PHYSICAL DIS & OLDER PEOPLE,BUPA CARE HOMES LIMITED,18/08/2017,642.86 ,SHORT TERM CARE - RESIDENTIAL,V001160318
ROCHDALE BOROUGH COUNCIL,04/08/2017,PHYSICAL DIS & OLDER PEOPLE,BUPA CARE HOMES LIMITED,04/08/2017,643.10 ,NURSING LONG TERM,V001155893
ROCHDALE BOROUGH COUNCIL,18/08/2017,PHYSICAL DIS & OLDER PEOPLE,BUPA CARE HOMES LIMITED,18/08/2017,643.10 ,NURSING LONG TERM,V001160239
ROCHDALE BOROUGH COUNCIL,04/08/2017,PHYSICAL DIS & OLDER PEOPLE,BUPA CARE HOMES LIMITED,04/08/2017,645.10 ,RESIDENTIAL LONG TERM,V001155872
ROCHDALE BOROUGH COUNCIL,04/08/2017,PHYSICAL DIS & OLDER PEOPLE,BUPA CARE HOMES LIMITED,04/08/2017,645.10 ,RESIDENTIAL LONG TERM,V001156031
ROCHDALE BOROUGH COUNCIL,04/08/2017,PHYSICAL DIS & OLDER PEOPLE,BUPA CARE HOMES LIMITED,04/08/2017,645.10 ,RESIDENTIAL LONG TERM,V001156301
ROCHDALE BOROUGH COUNCIL,04/08/2017,PHYSICAL DIS & OLDER PEOPLE,BUPA CARE HOMES LIMITED,04/08/2017,645.10 ,RESIDENTIAL LONG TERM,V001156430
ROCHDALE BOROUGH COUNCIL,18/08/2017,PHYSICAL DIS & OLDER PEOPLE,BUPA CARE HOMES LIMITED,18/08/2017,645.10 ,RESIDENTIAL LONG TERM,V001160216
ROCHDALE BOROUGH COUNCIL,18/08/2017,PHYSICAL DIS & OLDER PEOPLE,BUPA CARE HOMES LIMITED,18/08/2017,645.10 ,RESIDENTIAL LONG TERM,V001160400
ROCHDALE BOROUGH COUNCIL,18/08/2017,PHYSICAL DIS & OLDER PEOPLE,BUPA CARE HOMES LIMITED,18/08/2017,645.10 ,RESIDENTIAL LONG TERM,V001160749
ROCHDALE BOROUGH COUNCIL,18/08/2017,PHYSICAL DIS & OLDER PEOPLE,BUPA CARE HOMES LIMITED,18/08/2017,645.10 ,RESIDENTIAL LONG TERM,V001160907
ROCHDALE BOROUGH COUNCIL,04/08/2017,PHYSICAL DIS & OLDER PEOPLE,BUPA CARE HOMES LIMITED,04/08/2017,649.10 ,RESIDENTIAL LONG TERM,V001155850
ROCHDALE BOROUGH COUNCIL,18/08/2017,PHYSICAL DIS & OLDER PEOPLE,BUPA CARE HOMES LIMITED,18/08/2017,649.10 ,RESIDENTIAL LONG TERM,V001160188
ROCHDALE BOROUGH COUNCIL,04/08/2017,PHYSICAL DIS & OLDER PEOPLE,BUPA CARE HOMES LIMITED,04/08/2017,651.10 ,RESIDENTIAL LONG TERM,V001156151
ROCHDALE BOROUGH COUNCIL,18/08/2017,PHYSICAL DIS & OLDER PEOPLE,BUPA CARE HOMES LIMITED,18/08/2017,651.10 ,RESIDENTIAL LONG TERM,V001160547
ROCHDALE BOROUGH COUNCIL,04/08/2017,PHYSICAL DIS & OLDER PEOPLE,BUPA CARE HOMES LIMITED,04/08/2017,652.16 ,RESIDENTIAL LONG TERM,V001156006
ROCHDALE BOROUGH COUNCIL,18/08/2017,PHYSICAL DIS & OLDER PEOPLE,BUPA CARE HOMES LIMITED,18/08/2017,652.16 ,RESIDENTIAL LONG TERM,V001160372
ROCHDALE BOROUGH COUNCIL,04/08/2017,PHYSICAL DIS & OLDER PEOPLE,BUPA CARE HOMES LIMITED,04/08/2017,653.10 ,RESIDENTIAL LONG TERM,V001155970
ROCHDALE BOROUGH COUNCIL,18/08/2017,PHYSICAL DIS & OLDER PEOPLE,BUPA CARE HOMES LIMITED,18/08/2017,653.10 ,RESIDENTIAL LONG TERM,V001160343
ROCHDALE BOROUGH COUNCIL,04/08/2017,PHYSICAL DIS & OLDER PEOPLE,BUPA CARE HOMES LIMITED,04/08/2017,657.10 ,RESIDENTIAL LONG TERM,V001156238
ROCHDALE BOROUGH COUNCIL,18/08/2017,PHYSICAL DIS & OLDER PEOPLE,BUPA CARE HOMES LIMITED,18/08/2017,657.10 ,RESIDENTIAL LONG TERM,V001160666
ROCHDALE BOROUGH COUNCIL,04/08/2017,PHYSICAL DIS & OLDER PEOPLE,BUPA CARE HOMES LIMITED,04/08/2017,657.72 ,RESIDENTIAL LONG TERM,V001156059
ROCHDALE BOROUGH COUNCIL,18/08/2017,PHYSICAL DIS & OLDER PEOPLE,BUPA CARE HOMES LIMITED,18/08/2017,657.72 ,RESIDENTIAL LONG TERM,V001160424
ROCHDALE BOROUGH COUNCIL,04/08/2017,PHYSICAL DIS & OLDER PEOPLE,BUPA CARE HOMES LIMITED,04/08/2017,666.12 ,NURSING LONG TERM,V001156323
ROCHDALE BOROUGH COUNCIL,18/08/2017,PHYSICAL DIS & OLDER PEOPLE,BUPA CARE HOMES LIMITED,18/08/2017,666.12 ,NURSING LONG TERM,V001160779
ROCHDALE BOROUGH COUNCIL,04/08/2017,PHYSICAL DIS & OLDER PEOPLE,BUPA CARE HOMES LIMITED,04/08/2017,671.10 ,NURSING LONG TERM,V001156457
ROCHDALE BOROUGH COUNCIL,18/08/2017,PHYSICAL DIS & OLDER PEOPLE,BUPA CARE HOMES LIMITED,18/08/2017,671.10 ,NURSING LONG TERM,V001160935
ROCHDALE BOROUGH COUNCIL,04/08/2017,PHYSICAL DIS & OLDER PEOPLE,BUPA CARE HOMES LIMITED,04/08/2017,697.80 ,NURSING LONG TERM,V001156063
ROCHDALE BOROUGH COUNCIL,18/08/2017,PHYSICAL DIS & OLDER PEOPLE,BUPA CARE HOMES LIMITED,18/08/2017,697.80 ,NURSING LONG TERM,V001160428
ROCHDALE BOROUGH COUNCIL,04/08/2017,PHYSICAL DIS & OLDER PEOPLE,BUPA CARE HOMES LIMITED,04/08/2017,707.14 ,ASSESSMENT CARE,V001155836
ROCHDALE BOROUGH COUNCIL,04/08/2017,PHYSICAL DIS & OLDER PEOPLE,BUPA CARE HOMES LIMITED,04/08/2017,835.71 ,SHORT TERM CARE - RESIDENTIAL,V001156380
ROCHDALE BOROUGH COUNCIL,18/08/2017,PHYSICAL DIS & OLDER PEOPLE,BUPA CARE HOMES LIMITED,18/08/2017,835.71 ,SHORT TERM CARE - RESIDENTIAL,V001160848
ROCHDALE BOROUGH COUNCIL,04/08/2017,PHYSICAL DIS & OLDER PEOPLE,BUPA CARE HOMES LIMITED,04/08/2017,843.60 ,NURSING LONG TERM,V001156055
ROCHDALE BOROUGH COUNCIL,18/08/2017,PHYSICAL DIS & OLDER PEOPLE,BUPA CARE HOMES LIMITED,18/08/2017,843.60 ,NURSING LONG TERM,V001160421
ROCHDALE BOROUGH COUNCIL,04/08/2017,LEARNING DIS & MENTAL HEALTH,BUPA CARE HOMES LIMITED,04/08/2017,859.52 ,NURSING LONG TERM,V001155705
ROCHDALE BOROUGH COUNCIL,04/08/2017,PHYSICAL DIS & OLDER PEOPLE,BUPA CARE HOMES LIMITED,04/08/2017,859.52 ,NURSING LONG TERM,V001155848
ROCHDALE BOROUGH COUNCIL,18/08/2017,LEARNING DIS & MENTAL HEALTH,BUPA CARE HOMES LIMITED,18/08/2017,859.52 ,NURSING LONG TERM,V001160015
ROCHDALE BOROUGH COUNCIL,18/08/2017,PHYSICAL DIS & OLDER PEOPLE,BUPA CARE HOMES LIMITED,18/08/2017,859.52 ,NURSING LONG TERM,V001160186
ROCHDALE BOROUGH COUNCIL,04/08/2017,LEARNING DIS & MENTAL HEALTH,BUPA CARE HOMES LIMITED,04/08/2017,890.96 ,RESIDENTIAL LONG TERM,V001156404
ROCHDALE BOROUGH COUNCIL,04/08/2017,PHYSICAL DIS & OLDER PEOPLE,BUPA CARE HOMES LIMITED,04/08/2017,890.96 ,NURSING LONG TERM,V001156438
ROCHDALE BOROUGH COUNCIL,04/08/2017,LEARNING DIS & MENTAL HEALTH,BUPA CARE HOMES LIMITED,04/08/2017,890.96 ,NURSING LONG TERM,V001156515
ROCHDALE BOROUGH COUNCIL,18/08/2017,LEARNING DIS & MENTAL HEALTH,BUPA CARE HOMES LIMITED,18/08/2017,890.96 ,RESIDENTIAL LONG TERM,V001160891
ROCHDALE BOROUGH COUNCIL,18/08/2017,PHYSICAL DIS & OLDER PEOPLE,BUPA CARE HOMES LIMITED,18/08/2017,890.96 ,NURSING LONG TERM,V001160923
ROCHDALE BOROUGH COUNCIL,18/08/2017,LEARNING DIS & MENTAL HEALTH,BUPA CARE HOMES LIMITED,18/08/2017,890.96 ,NURSING LONG TERM,V001160987
ROCHDALE BOROUGH COUNCIL,04/08/2017,LEARNING DIS & MENTAL HEALTH,BUPA CARE HOMES LIMITED,04/08/2017,900.00 ,RESIDENTIAL LONG TERM,V001155799
ROCHDALE BOROUGH COUNCIL,04/08/2017,PHYSICAL DIS & OLDER PEOPLE,BUPA CARE HOMES LIMITED,04/08/2017,900.00 ,ASSESSMENT CARE,V001155819
ROCHDALE BOROUGH COUNCIL,04/08/2017,PHYSICAL DIS & OLDER PEOPLE,BUPA CARE HOMES LIMITED,04/08/2017,900.00 ,ASSESSMENT CARE,V001155820
ROCHDALE BOROUGH COUNCIL,04/08/2017,PHYSICAL DIS & OLDER PEOPLE,BUPA CARE HOMES LIMITED,04/08/2017,900.00 ,ASSESSMENT CARE,V001155821
ROCHDALE BOROUGH COUNCIL,04/08/2017,LEARNING DIS & MENTAL HEALTH,BUPA CARE HOMES LIMITED,04/08/2017,900.00 ,SHORT TERM CARE - RESIDENTIAL,V001155841
ROCHDALE BOROUGH COUNCIL,04/08/2017,LEARNING DIS & MENTAL HEALTH,BUPA CARE HOMES LIMITED,04/08/2017,900.00 ,NURSING LONG TERM,V001155883
ROCHDALE BOROUGH COUNCIL,04/08/2017,PHYSICAL DIS & OLDER PEOPLE,BUPA CARE HOMES LIMITED,04/08/2017,900.00 ,NURSING LONG TERM,V001155904
ROCHDALE BOROUGH COUNCIL,04/08/2017,PHYSICAL DIS & OLDER PEOPLE,BUPA CARE HOMES LIMITED,04/08/2017,900.00 ,SHORT TERM CARE - RESIDENTIAL,V001155949
ROCHDALE BOROUGH COUNCIL,04/08/2017,PHYSICAL DIS & OLDER PEOPLE,BUPA CARE HOMES LIMITED,04/08/2017,900.00 ,NURSING LONG TERM,V001156147
ROCHDALE BOROUGH COUNCIL,04/08/2017,PHYSICAL DIS & OLDER PEOPLE,BUPA CARE HOMES LIMITED,04/08/2017,900.00 ,NURSING LONG TERM,V001156248
ROCHDALE BOROUGH COUNCIL,04/08/2017,PHYSICAL DIS & OLDER PEOPLE,BUPA CARE HOMES LIMITED,04/08/2017,900.00 ,SHORT TERM CARE - RESIDENTIAL,V001156258
ROCHDALE BOROUGH COUNCIL,04/08/2017,PHYSICAL DIS & OLDER PEOPLE,BUPA CARE HOMES LIMITED,04/08/2017,900.00 ,RESIDENTIAL LONG TERM,V001156286
ROCHDALE BOROUGH COUNCIL,04/08/2017,LEARNING DIS & MENTAL HEALTH,BUPA CARE HOMES LIMITED,04/08/2017,900.00 ,NURSING LONG TERM,V001156429
ROCHDALE BOROUGH COUNCIL,18/08/2017,LEARNING DIS & MENTAL HEALTH,BUPA CARE HOMES LIMITED,18/08/2017,900.00 ,RESIDENTIAL LONG TERM,V001160133
ROCHDALE BOROUGH COUNCIL,18/08/2017,PHYSICAL DIS & OLDER PEOPLE,BUPA CARE HOMES LIMITED,18/08/2017,900.00 ,ASSESSMENT CARE,V001160152
ROCHDALE BOROUGH COUNCIL,18/08/2017,LEARNING DIS & MENTAL HEALTH,BUPA CARE HOMES LIMITED,18/08/2017,900.00 ,SHORT TERM CARE - RESIDENTIAL,V001160180
ROCHDALE BOROUGH COUNCIL,18/08/2017,LEARNING DIS & MENTAL HEALTH,BUPA CARE HOMES LIMITED,18/08/2017,900.00 ,NURSING LONG TERM,V001160231
ROCHDALE BOROUGH COUNCIL,18/08/2017,PHYSICAL DIS & OLDER PEOPLE,BUPA CARE HOMES LIMITED,18/08/2017,900.00 ,NURSING LONG TERM,V001160250
ROCHDALE BOROUGH COUNCIL,18/08/2017,PHYSICAL DIS & OLDER PEOPLE,BUPA CARE HOMES LIMITED,18/08/2017,900.00 ,NURSING LONG TERM,V001160543
ROCHDALE BOROUGH COUNCIL,18/08/2017,PHYSICAL DIS & OLDER PEOPLE,BUPA CARE HOMES LIMITED,18/08/2017,900.00 ,NURSING LONG TERM,V001160677
ROCHDALE BOROUGH COUNCIL,18/08/2017,PHYSICAL DIS & OLDER PEOPLE,BUPA CARE HOMES LIMITED,18/08/2017,900.00 ,SHORT TERM CARE - RESIDENTIAL,V001160686
ROCHDALE BOROUGH COUNCIL,18/08/2017,PHYSICAL DIS & OLDER PEOPLE,BUPA CARE HOMES LIMITED,18/08/2017,900.00 ,RESIDENTIAL LONG TERM,V001160731
ROCHDALE BOROUGH COUNCIL,18/08/2017,LEARNING DIS & MENTAL HEALTH,BUPA CARE HOMES LIMITED,18/08/2017,900.00 ,NURSING LONG TERM,V001160906
ROCHDALE BOROUGH COUNCIL,18/08/2017,PHYSICAL DIS & OLDER PEOPLE,BUPA CARE HOMES LIMITED,18/08/2017,900.00 ,SHORT TERM CARE - RESIDENTIAL,V001160992
ROCHDALE BOROUGH COUNCIL,04/08/2017,LEARNING DIS & MENTAL HEALTH,BUPA CARE HOMES LIMITED,04/08/2017,914.00 ,RESIDENTIAL LONG TERM,V001155961
ROCHDALE BOROUGH COUNCIL,04/08/2017,PHYSICAL DIS & OLDER PEOPLE,BUPA CARE HOMES LIMITED,04/08/2017,914.00 ,RESIDENTIAL LONG TERM,V001156135
ROCHDALE BOROUGH COUNCIL,18/08/2017,LEARNING DIS & MENTAL HEALTH,BUPA CARE HOMES LIMITED,18/08/2017,914.00 ,RESIDENTIAL LONG TERM,V001160334
ROCHDALE BOROUGH COUNCIL,18/08/2017,PHYSICAL DIS & OLDER PEOPLE,BUPA CARE HOMES LIMITED,18/08/2017,914.00 ,RESIDENTIAL LONG TERM,V001160514
ROCHDALE BOROUGH COUNCIL,18/08/2017,PHYSICAL DIS & OLDER PEOPLE,BUPA CARE HOMES LIMITED,18/08/2017,964.29 ,SHORT TERM CARE - RESIDENTIAL,V001160849
ROCHDALE BOROUGH COUNCIL,15/08/2017,PHYSICAL DIS & OLDER PEOPLE,BUPA CARE HOMES LIMITED,15/08/2017,7641.14 ,RESIDENTIAL LONG TERM,V001159429
ROCHDALE BOROUGH COUNCIL,18/08/2017,LEARNING DIS & MENTAL HEALTH,BUPA CARE SERVICES,18/08/2017,1976.00 ,NURSING LONG TERM,V001160093
ROCHDALE BOROUGH COUNCIL,18/08/2017,LEARNING DIS & MENTAL HEALTH,BUPA CARE SERVICES,18/08/2017,1976.00 ,NURSING LONG TERM,V001160094
ROCHDALE BOROUGH COUNCIL,25/08/2017,PUBLIC HEALTH,BUREAU VERITAS UK LTD,25/08/2017,1679.64 ,ENV HEALTH-SAMPLES,V001159575
ROCHDALE BOROUGH COUNCIL,14/08/2017,PUBLIC HEALTH,BUREAU VERITAS UK LTD,14/08/2017,6550.00 ,ENV HEALTH-SAMPLES,V001157722
ROCHDALE BOROUGH COUNCIL,18/08/2017,EARLY HELP AND SCHOOLS,BURY COLLEGE,18/08/2017,85179.77 ,OTHER EST - SEN PROVISION,V001159529
ROCHDALE BOROUGH COUNCIL,18/08/2017,EARLY HELP AND SCHOOLS,BURY COLLEGE,18/08/2017,85179.77 ,OTHER EST - SEN PROVISION,V001159549
ROCHDALE BOROUGH COUNCIL,18/08/2017,EARLY HELP AND SCHOOLS,BURY COLLEGE,18/08/2017,85179.77 ,OTHER EST - SEN PROVISION,V001159550
ROCHDALE BOROUGH COUNCIL,16/08/2017,CHILDREN�S SOCIAL CARE,BY THE BRIDGE THERAPUTIC FOSTERING SERVICE,16/08/2017,3109.08 ,FOSTER PARENTS BASIC ALLOWANCE,V001157797
ROCHDALE BOROUGH COUNCIL,16/08/2017,CHILDREN�S SOCIAL CARE,BY THE BRIDGE THERAPUTIC FOSTERING SERVICE,16/08/2017,3896.26 ,FOSTER PARENTS BASIC ALLOWANCE,V001157796
ROCHDALE BOROUGH COUNCIL,16/08/2017,CHILDREN�S SOCIAL CARE,BY THE BRIDGE THERAPUTIC FOSTERING SERVICE,16/08/2017,3912.64 ,FOSTER PARENTS BASIC ALLOWANCE,V001157794
ROCHDALE BOROUGH COUNCIL,16/08/2017,CHILDREN�S SOCIAL CARE,BY THE BRIDGE THERAPUTIC FOSTERING SERVICE,16/08/2017,4101.30 ,FOSTER PARENTS BASIC ALLOWANCE,V001157795
ROCHDALE BOROUGH COUNCIL,16/08/2017,CHILDREN�S SOCIAL CARE,BY THE BRIDGE THERAPUTIC FOSTERING SERVICE,16/08/2017,4186.11 ,FOSTER PARENTS BASIC ALLOWANCE,V001157798
ROCHDALE BOROUGH COUNCIL,02/08/2017,PHYSICAL DIS & OLDER PEOPLE,CALDERDALE HOMECARE LIMITED,02/08/2017,6157.81 ,HOME CARE - ADULT SERVICES,V001155382
ROCHDALE BOROUGH COUNCIL,29/08/2017,PHYSICAL DIS & OLDER PEOPLE,CALDERDALE HOMECARE LIMITED,29/08/2017,6164.03 ,HOME CARE - ADULT SERVICES,V001163379
ROCHDALE BOROUGH COUNCIL,23/08/2017,PHYSICAL DIS & OLDER PEOPLE,CALDERDALE HOMECARE LIMITED,23/08/2017,6286.09 ,HOME CARE - ADULT SERVICES,V001161646
ROCHDALE BOROUGH COUNCIL,17/08/2017,PHYSICAL DIS & OLDER PEOPLE,CALDERDALE HOMECARE LIMITED,17/08/2017,6307.87 ,HOME CARE - ADULT SERVICES,V001161051
ROCHDALE BOROUGH COUNCIL,10/08/2017,PHYSICAL DIS & OLDER PEOPLE,CALDERDALE HOMECARE LIMITED,10/08/2017,6369.86 ,HOME CARE - ADULT SERVICES,V001158580
ROCHDALE BOROUGH COUNCIL,22/08/2017,ECONOMY DIRECTORATE,CALEDONIAN LIFT SERVICES LTD,22/08/2017,960.00 ,LIFT,V001158934
ROCHDALE BOROUGH COUNCIL,22/08/2017,ECONOMY DIRECTORATE,CALEDONIAN LIFT SERVICES LTD,22/08/2017,1095.00 ,LIFT,V001158935
ROCHDALE BOROUGH COUNCIL,18/08/2017,LEARNING DIS & MENTAL HEALTH,CALTON SYSTEMS LIMITED,18/08/2017,-592.62 ,RESIDENTIAL LONG TERM,V001159869
ROCHDALE BOROUGH COUNCIL,04/08/2017,LEARNING DIS & MENTAL HEALTH,CALTON SYSTEMS LIMITED,04/08/2017,583.76 ,NURSING LONG TERM,V001155504
ROCHDALE BOROUGH COUNCIL,18/08/2017,LEARNING DIS & MENTAL HEALTH,CALTON SYSTEMS LIMITED,18/08/2017,583.76 ,NURSING LONG TERM,V001159846
ROCHDALE BOROUGH COUNCIL,04/08/2017,LEARNING DIS & MENTAL HEALTH,CALTON SYSTEMS LIMITED,04/08/2017,592.62 ,RESIDENTIAL LONG TERM,V001155544
ROCHDALE BOROUGH COUNCIL,04/08/2017,LEARNING DIS & MENTAL HEALTH,CALTON SYSTEMS LIMITED,04/08/2017,658.22 ,RESIDENTIAL LONG TERM,V001155620
ROCHDALE BOROUGH COUNCIL,04/08/2017,LEARNING DIS & MENTAL HEALTH,CALTON SYSTEMS LIMITED,04/08/2017,658.22 ,RESIDENTIAL LONG TERM,V001155648
ROCHDALE BOROUGH COUNCIL,18/08/2017,LEARNING DIS & MENTAL HEALTH,CALTON SYSTEMS LIMITED,18/08/2017,658.22 ,RESIDENTIAL LONG TERM,V001159925
ROCHDALE BOROUGH COUNCIL,18/08/2017,LEARNING DIS & MENTAL HEALTH,CALTON SYSTEMS LIMITED,18/08/2017,658.22 ,RESIDENTIAL LONG TERM,V001159954
ROCHDALE BOROUGH COUNCIL,04/08/2017,LEARNING DIS & MENTAL HEALTH,CALTON SYSTEMS LIMITED,04/08/2017,698.70 ,RESIDENTIAL LONG TERM,V001155660
ROCHDALE BOROUGH COUNCIL,18/08/2017,LEARNING DIS & MENTAL HEALTH,CALTON SYSTEMS LIMITED,18/08/2017,698.70 ,RESIDENTIAL LONG TERM,V001159966
ROCHDALE BOROUGH COUNCIL,04/08/2017,LEARNING DIS & MENTAL HEALTH,CALTON SYSTEMS LIMITED,04/08/2017,737.40 ,RESIDENTIAL LONG TERM,V001155579
ROCHDALE BOROUGH COUNCIL,18/08/2017,LEARNING DIS & MENTAL HEALTH,CALTON SYSTEMS LIMITED,18/08/2017,737.40 ,RESIDENTIAL LONG TERM,V001159904
ROCHDALE BOROUGH COUNCIL,04/08/2017,LEARNING DIS & MENTAL HEALTH,CALTON SYSTEMS LIMITED,04/08/2017,859.52 ,RESIDENTIAL LONG TERM,V001155652
ROCHDALE BOROUGH COUNCIL,04/08/2017,LEARNING DIS & MENTAL HEALTH,CALTON SYSTEMS LIMITED,04/08/2017,859.52 ,RESIDENTIAL LONG TERM,V001155968
ROCHDALE BOROUGH COUNCIL,18/08/2017,LEARNING DIS & MENTAL HEALTH,CALTON SYSTEMS LIMITED,18/08/2017,859.52 ,RESIDENTIAL LONG TERM,V001159958
ROCHDALE BOROUGH COUNCIL,18/08/2017,LEARNING DIS & MENTAL HEALTH,CALTON SYSTEMS LIMITED,18/08/2017,859.52 ,RESIDENTIAL LONG TERM,V001160341
ROCHDALE BOROUGH COUNCIL,04/08/2017,LEARNING DIS & MENTAL HEALTH,CALTON SYSTEMS LIMITED,04/08/2017,900.00 ,RESIDENTIAL LONG TERM,V001155862
ROCHDALE BOROUGH COUNCIL,18/08/2017,LEARNING DIS & MENTAL HEALTH,CALTON SYSTEMS LIMITED,18/08/2017,900.00 ,RESIDENTIAL LONG TERM,V001160202
ROCHDALE BOROUGH COUNCIL,18/08/2017,LEARNING DIS & MENTAL HEALTH,CALTON SYSTEMS LIMITED,18/08/2017,900.00 ,RESIDENTIAL LONG TERM,V001160266
ROCHDALE BOROUGH COUNCIL,04/08/2017,LEARNING DIS & MENTAL HEALTH,CALTON SYSTEMS LIMITED,04/08/2017,969.42 ,RESIDENTIAL LONG TERM,V001155629
ROCHDALE BOROUGH COUNCIL,18/08/2017,LEARNING DIS & MENTAL HEALTH,CALTON SYSTEMS LIMITED,18/08/2017,969.42 ,RESIDENTIAL LONG TERM,V001159933
ROCHDALE BOROUGH COUNCIL,04/08/2017,LEARNING DIS & MENTAL HEALTH,CALTON SYSTEMS LIMITED,04/08/2017,1040.00 ,RESIDENTIAL LONG TERM,V001156096
ROCHDALE BOROUGH COUNCIL,18/08/2017,LEARNING DIS & MENTAL HEALTH,CALTON SYSTEMS LIMITED,18/08/2017,1040.00 ,RESIDENTIAL LONG TERM,V001160467
ROCHDALE BOROUGH COUNCIL,25/08/2017,LEARNING DIS & MENTAL HEALTH,CAMPHILL M K COMMUNITIES,25/08/2017,1997.52 ,INDIVIDUAL SERVICE FUND,V001161744
ROCHDALE BOROUGH COUNCIL,04/08/2017,PHYSICAL DIS & OLDER PEOPLE,CANTERBURY CARE HOMES LTD,04/08/2017,575.58 ,NURSING LONG TERM,V001155798
ROCHDALE BOROUGH COUNCIL,18/08/2017,PHYSICAL DIS & OLDER PEOPLE,CANTERBURY CARE HOMES LTD,18/08/2017,575.58 ,NURSING LONG TERM,V001160132
ROCHDALE BOROUGH COUNCIL,04/08/2017,LEARNING DIS & MENTAL HEALTH,CAPSTONE CARE LIMITED,04/08/2017,890.96 ,RESIDENTIAL LONG TERM,V001155880
ROCHDALE BOROUGH COUNCIL,18/08/2017,LEARNING DIS & MENTAL HEALTH,CAPSTONE CARE LIMITED,18/08/2017,890.96 ,RESIDENTIAL LONG TERM,V001160226
ROCHDALE BOROUGH COUNCIL,07/08/2017,CHILDREN�S SOCIAL CARE,CAPSTONE FOSTER CARE,07/08/2017,3450.07 ,FOSTER PARENTS BASIC ALLOWANCE,V001157800
ROCHDALE BOROUGH COUNCIL,07/08/2017,CHILDREN�S SOCIAL CARE,CAPSTONE FOSTER CARE,07/08/2017,4288.23 ,FOSTER PARENTS BASIC ALLOWANCE,V001157801
ROCHDALE BOROUGH COUNCIL,08/08/2017,NEIGHBOURHOODS AND ENVIRONMENT,CAR 2000 HEYWOOD LLP,08/08/2017,561.40 ,TAXI HIRE,V001157889
ROCHDALE BOROUGH COUNCIL,22/08/2017,NEIGHBOURHOODS AND ENVIRONMENT,CAR 2000 HEYWOOD LLP,22/08/2017,642.48 ,TAXI HIRE,V001161414
ROCHDALE BOROUGH COUNCIL,22/08/2017,NEIGHBOURHOODS AND ENVIRONMENT,CAR 2000 HEYWOOD LLP,22/08/2017,771.84 ,TAXI HIRE,V001161413
ROCHDALE BOROUGH COUNCIL,07/08/2017,CHILDREN�S SOCIAL CARE,CARE 4 CHILDREN RESIDENTIAL SERVICES,07/08/2017,18821.34 ,EBD (EMOT & BEHAV DIFF) PLACEMENTS,V001157799
ROCHDALE BOROUGH COUNCIL,10/08/2017,PHYSICAL DIS & OLDER PEOPLE,CARE 4 U,10/08/2017,6377.04 ,HOME CARE - ADULT SERVICES,V001158582
ROCHDALE BOROUGH COUNCIL,02/08/2017,PHYSICAL DIS & OLDER PEOPLE,CARE 4 U,02/08/2017,6475.64 ,HOME CARE - ADULT SERVICES,V001155383
ROCHDALE BOROUGH COUNCIL,17/08/2017,PHYSICAL DIS & OLDER PEOPLE,CARE 4 U,17/08/2017,6630.49 ,HOME CARE - ADULT SERVICES,V001161052
ROCHDALE BOROUGH COUNCIL,29/08/2017,PHYSICAL DIS & OLDER PEOPLE,CARE 4 U,29/08/2017,6667.11 ,HOME CARE - ADULT SERVICES,V001163380
ROCHDALE BOROUGH COUNCIL,23/08/2017,PHYSICAL DIS & OLDER PEOPLE,CARE 4 U,23/08/2017,6711.15 ,HOME CARE - ADULT SERVICES,V001161647
ROCHDALE BOROUGH COUNCIL,04/08/2017,LEARNING DIS & MENTAL HEALTH,CARE IN SAFE HANDS HEALTHCARE LIMITED,04/08/2017,3473.10 ,RESIDENTIAL LONG TERM,V001155667
ROCHDALE BOROUGH COUNCIL,18/08/2017,LEARNING DIS & MENTAL HEALTH,CARE IN SAFE HANDS HEALTHCARE LIMITED,18/08/2017,3473.10 ,RESIDENTIAL LONG TERM,V001159973
ROCHDALE BOROUGH COUNCIL,04/08/2017,CHILDREN�S SOCIAL CARE,CARE TODAY CHILDRENS SERVICES,04/08/2017,12000.00 ,EBD (EMOT & BEHAV DIFF) PLACEMENTS,V001149499
ROCHDALE BOROUGH COUNCIL,18/08/2017,PHYSICAL DIS & OLDER PEOPLE,CARE WORLDWIDE OLDHAM LTD,18/08/2017,598.76 ,RESIDENTIAL LONG TERM,V001160363
ROCHDALE BOROUGH COUNCIL,18/08/2017,PHYSICAL DIS & OLDER PEOPLE,CARE WORLDWIDE OLDHAM LTD,18/08/2017,598.76 ,RESIDENTIAL LONG TERM,V001160364
ROCHDALE BOROUGH COUNCIL,03/08/2017,CHILDREN�S SOCIAL CARE,CAREERVISION LTD,03/08/2017,12044.00 ,IT MAINTENANCE,V001155330
ROCHDALE BOROUGH COUNCIL,25/08/2017,LEARNING DIS & MENTAL HEALTH,CARETECH COMMUNITY SERVICES LTD,25/08/2017,7888.36 ,SUPPORTED LIVING,V001162345
ROCHDALE BOROUGH COUNCIL,17/08/2017,PHYSICAL DIS & OLDER PEOPLE,CAREWATCH CARE SERVICES LTD,17/08/2017,4061.73 ,HOME CARE - ADULT SERVICES,V001161053
ROCHDALE BOROUGH COUNCIL,02/08/2017,PHYSICAL DIS & OLDER PEOPLE,CAREWATCH CARE SERVICES LTD,02/08/2017,4173.73 ,HOME CARE - ADULT SERVICES,V001155384
ROCHDALE BOROUGH COUNCIL,23/08/2017,PHYSICAL DIS & OLDER PEOPLE,CAREWATCH CARE SERVICES LTD,23/08/2017,4183.31 ,HOME CARE - ADULT SERVICES,V001161648
ROCHDALE BOROUGH COUNCIL,10/08/2017,PHYSICAL DIS & OLDER PEOPLE,CAREWATCH CARE SERVICES LTD,10/08/2017,4207.96 ,HOME CARE - ADULT SERVICES,V001158628
ROCHDALE BOROUGH COUNCIL,29/08/2017,PHYSICAL DIS & OLDER PEOPLE,CAREWATCH CARE SERVICES LTD,29/08/2017,4246.73 ,HOME CARE - ADULT SERVICES,V001163381
ROCHDALE BOROUGH COUNCIL,07/08/2017,PHYSICAL DIS & OLDER PEOPLE,CAREWATCH CARE SERVICES LTD,07/08/2017,10214.64 ,HOME CARE - ADULT SERVICES,V001157934
ROCHDALE BOROUGH COUNCIL,04/08/2017,CHILDREN�S SOCIAL CARE,CARITAS CARE LTD,04/08/2017,2142.86 ,FOSTER PARENTS BASIC ALLOWANCE,V001149501
ROCHDALE BOROUGH COUNCIL,11/08/2017,CHILDREN�S SOCIAL CARE,CARITAS CARE LTD,11/08/2017,18000.00 ,ADOPTION PAYMENTS,V001150102
ROCHDALE BOROUGH COUNCIL,21/08/2017,NEIGHBOURHOODS AND ENVIRONMENT,CAROLINE BOLTON,21/08/2017,4830.00 ,CONSULTANTS FEES,V001161311
ROCHDALE BOROUGH COUNCIL,17/08/2017,LEARNING DIS & MENTAL HEALTH,CARPET CREATIONS,17/08/2017,759.00 ,TRANSACTIONS-EXPENDITURE,V001158097
ROCHDALE BOROUGH COUNCIL,04/08/2017,LEARNING DIS & MENTAL HEALTH,CARR CROFT CARE HOME LIMITED,04/08/2017,936.00 ,RESIDENTIAL LONG TERM,V001156091
ROCHDALE BOROUGH COUNCIL,18/08/2017,LEARNING DIS & MENTAL HEALTH,CARR CROFT CARE HOME LIMITED,18/08/2017,936.00 ,RESIDENTIAL LONG TERM,V001160460
ROCHDALE BOROUGH COUNCIL,31/08/2017,NEIGHBOURHOODS AND ENVIRONMENT,CARTER FENCING LTD,31/08/2017,2725.00 ,EQUIPMENT - GENERAL,V001163039
ROCHDALE BOROUGH COUNCIL,07/08/2017,EARLY HELP AND SCHOOLS,CARTWHEEL ARTS,07/08/2017,4160.00 ,ACTIVITIES,V001157939
ROCHDALE BOROUGH COUNCIL,18/08/2017,NEIGHBOURHOODS AND ENVIRONMENT,CAS FM LIMITED,18/08/2017,1515.00 ,REPAIRS & ALTS OF BUILDINGS,V001159820
ROCHDALE BOROUGH COUNCIL,18/08/2017,NEIGHBOURHOODS AND ENVIRONMENT,CAS FM LIMITED,18/08/2017,2702.00 ,REPAIRS & ALTS OF BUILDINGS,V001159822
ROCHDALE BOROUGH COUNCIL,01/08/2017,CHILDREN�S SOCIAL CARE,CASICARE LTD,01/08/2017,3600.00 ,HOMELESS & VULNERABLE,V001154840
ROCHDALE BOROUGH COUNCIL,31/08/2017,CHILDREN�S SOCIAL CARE,CASICARE LTD,31/08/2017,3720.00 ,HOMELESS & VULNERABLE,V001163498
ROCHDALE BOROUGH COUNCIL,25/08/2017,PUBLIC HEALTH,CASTLETON HEALTH CENTRE,25/08/2017,1560.49 ,PH LCS PAYMENTS,V001161483
ROCHDALE BOROUGH COUNCIL,23/08/2017,PHYSICAL DIS & OLDER PEOPLE,CASTLETON WROUGHT IRON,23/08/2017,640.00 ,ADAPTATIONS,V001161727
ROCHDALE BOROUGH COUNCIL,07/08/2017,PHYSICAL DIS & OLDER PEOPLE,CASTLETON WROUGHT IRON,07/08/2017,740.00 ,TRANSACTIONS-EXPENDITURE,V001155481
ROCHDALE BOROUGH COUNCIL,08/08/2017,EARLY HELP AND SCHOOLS,CATHERINE HOW SCHOOL EFFECTIVENESS PARTNER SERVICE,08/08/2017,1800.00 ,CURRICULUM DEVELOPMENT,V001154900
ROCHDALE BOROUGH COUNCIL,04/08/2017,PHYSICAL DIS & OLDER PEOPLE,CEDAR COURT NURSING HOME,04/08/2017,986.38 ,NURSING LONG TERM,V001156051
ROCHDALE BOROUGH COUNCIL,04/08/2017,NEIGHBOURHOODS AND ENVIRONMENT,CENTRAL MANCHESTER UNIVERSITY HOSPITALS NHS TRUST,04/08/2017,640.44 ,CHILDRENS POST MORTEMS,V001152346
ROCHDALE BOROUGH COUNCIL,10/08/2017,PUBLIC HEALTH,CENTRAL MANCHESTER UNIVERSITY HOSPITALS NHS TRUST,10/08/2017,3110.03 ,SERVICE LEVEL AGREEMENTS,V001158691
ROCHDALE BOROUGH COUNCIL,10/08/2017,PUBLIC HEALTH,CENTRAL MANCHESTER UNIVERSITY HOSPITALS NHS TRUST,10/08/2017,7964.00 ,PH OTHER CONTRACTS,V001158690
ROCHDALE BOROUGH COUNCIL,10/08/2017,PUBLIC HEALTH,CENTRAL MANCHESTER UNIVERSITY HOSPITALS NHS TRUST,10/08/2017,8956.00 ,PH OTHER CONTRACTS,V001158847
ROCHDALE BOROUGH COUNCIL,02/08/2017,NEIGHBOURHOODS AND ENVIRONMENT,CF CORPORATE FINANCE LTD,02/08/2017,531.18 ,HIRE OF EQUIPMENT,V001152638
ROCHDALE BOROUGH COUNCIL,02/08/2017,NEIGHBOURHOODS AND ENVIRONMENT,CF CORPORATE FINANCE LTD,02/08/2017,950.66 ,HIRE OF EQUIPMENT,V001152637
ROCHDALE BOROUGH COUNCIL,04/08/2017,PHYSICAL DIS & OLDER PEOPLE,CHADDERTON TOTAL CARE UNIT LTD,04/08/2017,533.38 ,NURSING LONG TERM,V001155743
ROCHDALE BOROUGH COUNCIL,18/08/2017,PHYSICAL DIS & OLDER PEOPLE,CHADDERTON TOTAL CARE UNIT LTD,18/08/2017,533.38 ,NURSING LONG TERM,V001160054
ROCHDALE BOROUGH COUNCIL,18/08/2017,PHYSICAL DIS & OLDER PEOPLE,CHADDERTON TOTAL CARE UNIT LTD,18/08/2017,685.71 ,NURSING LONG TERM,V001161049
ROCHDALE BOROUGH COUNCIL,04/08/2017,PHYSICAL DIS & OLDER PEOPLE,CHADDERTON TOTAL CARE UNIT LTD,04/08/2017,691.10 ,NURSING LONG TERM,V001155756
ROCHDALE BOROUGH COUNCIL,18/08/2017,PHYSICAL DIS & OLDER PEOPLE,CHADDERTON TOTAL CARE UNIT LTD,18/08/2017,691.10 ,NURSING LONG TERM,V001160072
ROCHDALE BOROUGH COUNCIL,04/08/2017,PHYSICAL DIS & OLDER PEOPLE,CHADDERTON TOTAL CARE UNIT LTD,04/08/2017,769.52 ,RESIDENTIAL LONG TERM,V001156053
ROCHDALE BOROUGH COUNCIL,18/08/2017,PHYSICAL DIS & OLDER PEOPLE,CHADDERTON TOTAL CARE UNIT LTD,18/08/2017,769.52 ,RESIDENTIAL LONG TERM,V001160416
ROCHDALE BOROUGH COUNCIL,04/08/2017,PHYSICAL DIS & OLDER PEOPLE,CHADDERTON TOTAL CARE UNIT LTD,04/08/2017,781.10 ,RESIDENTIAL LONG TERM,V001156161
ROCHDALE BOROUGH COUNCIL,18/08/2017,PHYSICAL DIS & OLDER PEOPLE,CHADDERTON TOTAL CARE UNIT LTD,18/08/2017,781.10 ,RESIDENTIAL LONG TERM,V001160575
ROCHDALE BOROUGH COUNCIL,04/08/2017,PHYSICAL DIS & OLDER PEOPLE,CHADDERTON TOTAL CARE UNIT LTD,04/08/2017,1050.00 ,NURSING LONG TERM,V001155897
ROCHDALE BOROUGH COUNCIL,04/08/2017,PHYSICAL DIS & OLDER PEOPLE,CHADDERTON TOTAL CARE UNIT LTD,04/08/2017,1050.00 ,NURSING LONG TERM,V001156437
ROCHDALE BOROUGH COUNCIL,18/08/2017,PHYSICAL DIS & OLDER PEOPLE,CHADDERTON TOTAL CARE UNIT LTD,18/08/2017,1050.00 ,NURSING LONG TERM,V001160242
ROCHDALE BOROUGH COUNCIL,18/08/2017,PHYSICAL DIS & OLDER PEOPLE,CHADDERTON TOTAL CARE UNIT LTD,18/08/2017,1050.00 ,NURSING LONG TERM,V001160922
ROCHDALE BOROUGH COUNCIL,04/08/2017,PHYSICAL DIS & OLDER PEOPLE,CHADDERTON TOTAL CARE UNIT LTD,04/08/2017,1061.04 ,NURSING LONG TERM,V001155543
ROCHDALE BOROUGH COUNCIL,18/08/2017,PHYSICAL DIS & OLDER PEOPLE,CHADDERTON TOTAL CARE UNIT LTD,18/08/2017,1061.04 ,NURSING LONG TERM,V001159867
ROCHDALE BOROUGH COUNCIL,04/08/2017,PHYSICAL DIS & OLDER PEOPLE,CHADDERTON TOTAL CARE UNIT LTD,04/08/2017,1268.10 ,NURSING LONG TERM,V001155975
ROCHDALE BOROUGH COUNCIL,18/08/2017,PHYSICAL DIS & OLDER PEOPLE,CHADDERTON TOTAL CARE UNIT LTD,18/08/2017,1268.10 ,NURSING LONG TERM,V001160348
ROCHDALE BOROUGH COUNCIL,18/08/2017,EARLY HELP AND SCHOOLS,CHANNINGS EARLY YEARS SCHOOL,18/08/2017,835.20 ,DAY CARE,V001159710
ROCHDALE BOROUGH COUNCIL,22/08/2017,PROPERTY AND HIGHWAYS,CHAPMAN SAFETY SERVICES,22/08/2017,600.00 ,TRAINING,V001159169
ROCHDALE BOROUGH COUNCIL,25/08/2017,NEIGHBOURHOODS AND ENVIRONMENT,CHESHAM PARK MENS BOWLING CLUB,25/08/2017,500.00 ,ACTIVITIES,V001161400
ROCHDALE BOROUGH COUNCIL,16/08/2017,CHILDREN�S SOCIAL CARE,CHILD ACTION NORTHWEST,16/08/2017,2905.63 ,FOSTER PARENTS BASIC ALLOWANCE,V001159437
ROCHDALE BOROUGH COUNCIL,16/08/2017,CHILDREN�S SOCIAL CARE,CHILD ACTION NORTHWEST,16/08/2017,2911.43 ,FOSTER PARENTS BASIC ALLOWANCE,V001159433
ROCHDALE BOROUGH COUNCIL,16/08/2017,CHILDREN�S SOCIAL CARE,CHILD ACTION NORTHWEST,16/08/2017,3155.49 ,FOSTER PARENTS BASIC ALLOWANCE,V001159463
ROCHDALE BOROUGH COUNCIL,16/08/2017,CHILDREN�S SOCIAL CARE,CHILD ACTION NORTHWEST,16/08/2017,3184.01 ,FOSTER PARENTS BASIC ALLOWANCE,V001159434
ROCHDALE BOROUGH COUNCIL,16/08/2017,CHILDREN�S SOCIAL CARE,CHILD ACTION NORTHWEST,16/08/2017,3184.01 ,FOSTER PARENTS BASIC ALLOWANCE,V001159438
ROCHDALE BOROUGH COUNCIL,16/08/2017,CHILDREN�S SOCIAL CARE,CHILD ACTION NORTHWEST,16/08/2017,3228.34 ,FOSTER PARENTS BASIC ALLOWANCE,V001159436
ROCHDALE BOROUGH COUNCIL,16/08/2017,CHILDREN�S SOCIAL CARE,CHILD ACTION NORTHWEST,16/08/2017,3228.34 ,FOSTER PARENTS BASIC ALLOWANCE,V001159461
ROCHDALE BOROUGH COUNCIL,16/08/2017,CHILDREN�S SOCIAL CARE,CHILD ACTION NORTHWEST,16/08/2017,3228.34 ,FOSTER PARENTS BASIC ALLOWANCE,V001159465
ROCHDALE BOROUGH COUNCIL,17/08/2017,CHILDREN�S SOCIAL CARE,CHILD ACTION NORTHWEST,17/08/2017,3241.67 ,FOSTER PARENTS BASIC ALLOWANCE,V001159462
ROCHDALE BOROUGH COUNCIL,16/08/2017,CHILDREN�S SOCIAL CARE,CHILD ACTION NORTHWEST,16/08/2017,3370.01 ,FOSTER PARENTS BASIC ALLOWANCE,V001159435
ROCHDALE BOROUGH COUNCIL,18/08/2017,CHILDREN�S SOCIAL CARE,CHILD ACTION NORTHWEST,18/08/2017,4871.34 ,FOSTER PARENTS BASIC ALLOWANCE,V001161193
ROCHDALE BOROUGH COUNCIL,14/08/2017,RESOURCES,CHILDCARE VOUCHERS LIMITED,14/08/2017,2497.70 ,TRANSACTIONS-EXPENDITURE,V001158575
ROCHDALE BOROUGH COUNCIL,14/08/2017,RESOURCES,CHILDCARE VOUCHERS LIMITED,14/08/2017,49954.01 ,TRANSACTIONS-EXPENDITURE,V001158575
ROCHDALE BOROUGH COUNCIL,04/08/2017,LEARNING DIS & MENTAL HEALTH,CHOICE LIMITED,04/08/2017,3564.56 ,RESIDENTIAL LONG TERM,V001155605
ROCHDALE BOROUGH COUNCIL,18/08/2017,LEARNING DIS & MENTAL HEALTH,CHOICE LIMITED,18/08/2017,3564.56 ,RESIDENTIAL LONG TERM,V001159908
ROCHDALE BOROUGH COUNCIL,04/08/2017,LEARNING DIS & MENTAL HEALTH,CHURCH WALK HEALTH CARE LTD,04/08/2017,7615.74 ,RESIDENTIAL LONG TERM,V001156274
ROCHDALE BOROUGH COUNCIL,18/08/2017,LEARNING DIS & MENTAL HEALTH,CHURCH WALK HEALTH CARE LTD,18/08/2017,7615.74 ,RESIDENTIAL LONG TERM,V001160692
ROCHDALE BOROUGH COUNCIL,25/08/2017,PHYSICAL DIS & OLDER PEOPLE,CIC GROUP EACHSTEP BLACKLEY,25/08/2017,-1450.28 ,NURSING LONG TERM,V001162447
ROCHDALE BOROUGH COUNCIL,25/08/2017,PHYSICAL DIS & OLDER PEOPLE,CIC GROUP EACHSTEP BLACKLEY,25/08/2017,-1450.28 ,NURSING LONG TERM,V001162448
ROCHDALE BOROUGH COUNCIL,25/08/2017,PHYSICAL DIS & OLDER PEOPLE,CIC GROUP EACHSTEP BLACKLEY,25/08/2017,-1450.28 ,NURSING LONG TERM,V001162449
ROCHDALE BOROUGH COUNCIL,25/08/2017,PHYSICAL DIS & OLDER PEOPLE,CIC GROUP EACHSTEP BLACKLEY,25/08/2017,-1450.28 ,NURSING LONG TERM,V001162450
ROCHDALE BOROUGH COUNCIL,25/08/2017,PHYSICAL DIS & OLDER PEOPLE,CIC GROUP EACHSTEP BLACKLEY,25/08/2017,-1450.28 ,NURSING LONG TERM,V001162451
ROCHDALE BOROUGH COUNCIL,25/08/2017,PHYSICAL DIS & OLDER PEOPLE,CIC GROUP EACHSTEP BLACKLEY,25/08/2017,-663.72 ,NURSING LONG TERM,V001162446
ROCHDALE BOROUGH COUNCIL,25/08/2017,LEARNING DIS & MENTAL HEALTH,CIC GROUP EACHSTEP BLACKLEY,25/08/2017,531.60 ,PERSONAL BUDGETS - MANAGED,V001161839
ROCHDALE BOROUGH COUNCIL,25/08/2017,LEARNING DIS & MENTAL HEALTH,CIC GROUP EACHSTEP BLACKLEY,25/08/2017,531.60 ,PERSONAL BUDGETS - MANAGED,V001162645
ROCHDALE BOROUGH COUNCIL,04/08/2017,PHYSICAL DIS & OLDER PEOPLE,CIC GROUP EACHSTEP BLACKLEY,04/08/2017,582.88 ,NURSING LONG TERM,V001155980
ROCHDALE BOROUGH COUNCIL,04/08/2017,PHYSICAL DIS & OLDER PEOPLE,CIC GROUP EACHSTEP BLACKLEY,04/08/2017,585.14 ,RESIDENTIAL LONG TERM,V001155889
ROCHDALE BOROUGH COUNCIL,04/08/2017,LEARNING DIS & MENTAL HEALTH,CIC GROUP EACHSTEP BLACKLEY,04/08/2017,988.82 ,NURSING LONG TERM,V001156392
ROCHDALE BOROUGH COUNCIL,25/08/2017,LEARNING DIS & MENTAL HEALTH,CIC GROUP EACHSTEP BLACKLEY,25/08/2017,1435.32 ,PERSONAL BUDGETS - MANAGED,V001162367
ROCHDALE BOROUGH COUNCIL,25/08/2017,LEARNING DIS & MENTAL HEALTH,CIC GROUP EACHSTEP BLACKLEY,25/08/2017,1661.00 ,INDIVIDUAL SERVICE FUND,V001161916
ROCHDALE BOROUGH COUNCIL,25/08/2017,LEARNING DIS & MENTAL HEALTH,CIC GROUP EACHSTEP BLACKLEY,25/08/2017,1903.52 ,INDIVIDUAL SERVICE FUND,V001161913
ROCHDALE BOROUGH COUNCIL,25/08/2017,LEARNING DIS & MENTAL HEALTH,CIC GROUP EACHSTEP BLACKLEY,25/08/2017,1917.52 ,INDIVIDUAL SERVICE FUND,V001161824
ROCHDALE BOROUGH COUNCIL,25/08/2017,LEARNING DIS & MENTAL HEALTH,CIC GROUP EACHSTEP BLACKLEY,25/08/2017,2660.00 ,INDIVIDUAL SERVICE FUND,V001161861
ROCHDALE BOROUGH COUNCIL,25/08/2017,LEARNING DIS & MENTAL HEALTH,CIC GROUP EACHSTEP BLACKLEY,25/08/2017,2727.00 ,INDIVIDUAL SERVICE FUND,V001161833
ROCHDALE BOROUGH COUNCIL,25/08/2017,LEARNING DIS & MENTAL HEALTH,CIC GROUP EACHSTEP BLACKLEY,25/08/2017,4199.00 ,INDIVIDUAL SERVICE FUND,V001161859
ROCHDALE BOROUGH COUNCIL,25/08/2017,LEARNING DIS & MENTAL HEALTH,CIC GROUP EACHSTEP BLACKLEY,25/08/2017,4266.52 ,INDIVIDUAL SERVICE FUND,V001161893
ROCHDALE BOROUGH COUNCIL,25/08/2017,LEARNING DIS & MENTAL HEALTH,CIC GROUP EACHSTEP BLACKLEY,25/08/2017,4550.00 ,INDIVIDUAL SERVICE FUND,V001161915
ROCHDALE BOROUGH COUNCIL,10/08/2017,CHILDREN�S SOCIAL CARE,CLASSIC FOSTER CARE LIMITED,10/08/2017,1330.00 ,FOSTER PARENTS BASIC ALLOWANCE,V001158794
ROCHDALE BOROUGH COUNCIL,10/08/2017,CHILDREN�S SOCIAL CARE,CLASSIC FOSTER CARE LIMITED,10/08/2017,1400.00 ,FOSTER PARENTS BASIC ALLOWANCE,V001158793
ROCHDALE BOROUGH COUNCIL,07/08/2017,CHILDREN�S SOCIAL CARE,CLASSIC FOSTER CARE LIMITED,07/08/2017,3100.00 ,FOSTER PARENTS BASIC ALLOWANCE,V001157807
ROCHDALE BOROUGH COUNCIL,07/08/2017,CHILDREN�S SOCIAL CARE,CLASSIC FOSTER CARE LIMITED,07/08/2017,3155.27 ,FOSTER PARENTS BASIC ALLOWANCE,V001157805
ROCHDALE BOROUGH COUNCIL,07/08/2017,CHILDREN�S SOCIAL CARE,CLASSIC FOSTER CARE LIMITED,07/08/2017,3155.27 ,FOSTER PARENTS BASIC ALLOWANCE,V001157808
ROCHDALE BOROUGH COUNCIL,07/08/2017,CHILDREN�S SOCIAL CARE,CLASSIC FOSTER CARE LIMITED,07/08/2017,3188.41 ,FOSTER PARENTS BASIC ALLOWANCE,V001157811
ROCHDALE BOROUGH COUNCIL,07/08/2017,CHILDREN�S SOCIAL CARE,CLASSIC FOSTER CARE LIMITED,07/08/2017,3197.27 ,FOSTER PARENTS BASIC ALLOWANCE,V001157806
ROCHDALE BOROUGH COUNCIL,07/08/2017,CHILDREN�S SOCIAL CARE,CLASSIC FOSTER CARE LIMITED,07/08/2017,3321.34 ,FOSTER PARENTS BASIC ALLOWANCE,V001157804
ROCHDALE BOROUGH COUNCIL,07/08/2017,CHILDREN�S SOCIAL CARE,CLASSIC FOSTER CARE LIMITED,07/08/2017,3321.34 ,FOSTER PARENTS BASIC ALLOWANCE,V001157813
ROCHDALE BOROUGH COUNCIL,07/08/2017,CHILDREN�S SOCIAL CARE,CLASSIC FOSTER CARE LIMITED,07/08/2017,3365.55 ,FOSTER PARENTS BASIC ALLOWANCE,V001157810
ROCHDALE BOROUGH COUNCIL,07/08/2017,CHILDREN�S SOCIAL CARE,CLASSIC FOSTER CARE LIMITED,07/08/2017,3365.55 ,FOSTER PARENTS BASIC ALLOWANCE,V001157812
ROCHDALE BOROUGH COUNCIL,07/08/2017,CHILDREN�S SOCIAL CARE,CLASSIC FOSTER CARE LIMITED,07/08/2017,3407.66 ,FOSTER PARENTS BASIC ALLOWANCE,V001157803
ROCHDALE BOROUGH COUNCIL,07/08/2017,CHILDREN�S SOCIAL CARE,CLASSIC FOSTER CARE LIMITED,07/08/2017,3542.68 ,FOSTER PARENTS BASIC ALLOWANCE,V001157802
ROCHDALE BOROUGH COUNCIL,07/08/2017,CHILDREN�S SOCIAL CARE,CLASSIC FOSTER CARE LIMITED,07/08/2017,3542.68 ,FOSTER PARENTS BASIC ALLOWANCE,V001157814
ROCHDALE BOROUGH COUNCIL,07/08/2017,CHILDREN�S SOCIAL CARE,CLASSIC FOSTER CARE LIMITED,07/08/2017,3558.71 ,FOSTER PARENTS BASIC ALLOWANCE,V001157809
ROCHDALE BOROUGH COUNCIL,18/08/2017,PHYSICAL DIS & OLDER PEOPLE,CLEGGSWORTH CARE HOME LIMITED,18/08/2017,-900.00 ,RESIDENTIAL LONG TERM,V001160714
ROCHDALE BOROUGH COUNCIL,18/08/2017,PHYSICAL DIS & OLDER PEOPLE,CLEGGSWORTH CARE HOME LIMITED,18/08/2017,-900.00 ,RESIDENTIAL LONG TERM,V001160715
ROCHDALE BOROUGH COUNCIL,18/08/2017,PHYSICAL DIS & OLDER PEOPLE,CLEGGSWORTH CARE HOME LIMITED,18/08/2017,-900.00 ,RESIDENTIAL LONG TERM,V001160716
ROCHDALE BOROUGH COUNCIL,18/08/2017,PHYSICAL DIS & OLDER PEOPLE,CLEGGSWORTH CARE HOME LIMITED,18/08/2017,-900.00 ,RESIDENTIAL LONG TERM,V001160717
ROCHDALE BOROUGH COUNCIL,18/08/2017,PHYSICAL DIS & OLDER PEOPLE,CLEGGSWORTH CARE HOME LIMITED,18/08/2017,-900.00 ,RESIDENTIAL LONG TERM,V001160718
ROCHDALE BOROUGH COUNCIL,18/08/2017,PHYSICAL DIS & OLDER PEOPLE,CLEGGSWORTH CARE HOME LIMITED,18/08/2017,-900.00 ,RESIDENTIAL LONG TERM,V001160719
ROCHDALE BOROUGH COUNCIL,18/08/2017,PHYSICAL DIS & OLDER PEOPLE,CLEGGSWORTH CARE HOME LIMITED,18/08/2017,-900.00 ,RESIDENTIAL LONG TERM,V001160720
ROCHDALE BOROUGH COUNCIL,18/08/2017,PHYSICAL DIS & OLDER PEOPLE,CLEGGSWORTH CARE HOME LIMITED,18/08/2017,-859.52 ,RESIDENTIAL LONG TERM,V001160700
ROCHDALE BOROUGH COUNCIL,18/08/2017,PHYSICAL DIS & OLDER PEOPLE,CLEGGSWORTH CARE HOME LIMITED,18/08/2017,-859.52 ,RESIDENTIAL LONG TERM,V001160701
ROCHDALE BOROUGH COUNCIL,18/08/2017,PHYSICAL DIS & OLDER PEOPLE,CLEGGSWORTH CARE HOME LIMITED,18/08/2017,-859.52 ,RESIDENTIAL LONG TERM,V001160702
ROCHDALE BOROUGH COUNCIL,18/08/2017,PHYSICAL DIS & OLDER PEOPLE,CLEGGSWORTH CARE HOME LIMITED,18/08/2017,-859.52 ,RESIDENTIAL LONG TERM,V001160703
ROCHDALE BOROUGH COUNCIL,18/08/2017,PHYSICAL DIS & OLDER PEOPLE,CLEGGSWORTH CARE HOME LIMITED,18/08/2017,-859.52 ,RESIDENTIAL LONG TERM,V001160704
ROCHDALE BOROUGH COUNCIL,18/08/2017,PHYSICAL DIS & OLDER PEOPLE,CLEGGSWORTH CARE HOME LIMITED,18/08/2017,-859.52 ,RESIDENTIAL LONG TERM,V001160705
ROCHDALE BOROUGH COUNCIL,18/08/2017,PHYSICAL DIS & OLDER PEOPLE,CLEGGSWORTH CARE HOME LIMITED,18/08/2017,-859.52 ,RESIDENTIAL LONG TERM,V001160706
ROCHDALE BOROUGH COUNCIL,18/08/2017,PHYSICAL DIS & OLDER PEOPLE,CLEGGSWORTH CARE HOME LIMITED,18/08/2017,-859.52 ,RESIDENTIAL LONG TERM,V001160707
ROCHDALE BOROUGH COUNCIL,18/08/2017,PHYSICAL DIS & OLDER PEOPLE,CLEGGSWORTH CARE HOME LIMITED,18/08/2017,-859.52 ,RESIDENTIAL LONG TERM,V001160708
ROCHDALE BOROUGH COUNCIL,18/08/2017,PHYSICAL DIS & OLDER PEOPLE,CLEGGSWORTH CARE HOME LIMITED,18/08/2017,-859.52 ,RESIDENTIAL LONG TERM,V001160709
ROCHDALE BOROUGH COUNCIL,18/08/2017,PHYSICAL DIS & OLDER PEOPLE,CLEGGSWORTH CARE HOME LIMITED,18/08/2017,-859.52 ,RESIDENTIAL LONG TERM,V001160710
ROCHDALE BOROUGH COUNCIL,18/08/2017,PHYSICAL DIS & OLDER PEOPLE,CLEGGSWORTH CARE HOME LIMITED,18/08/2017,-859.52 ,RESIDENTIAL LONG TERM,V001160711
ROCHDALE BOROUGH COUNCIL,18/08/2017,PHYSICAL DIS & OLDER PEOPLE,CLEGGSWORTH CARE HOME LIMITED,18/08/2017,-859.52 ,RESIDENTIAL LONG TERM,V001160712
ROCHDALE BOROUGH COUNCIL,18/08/2017,PHYSICAL DIS & OLDER PEOPLE,CLEGGSWORTH CARE HOME LIMITED,18/08/2017,-859.52 ,RESIDENTIAL LONG TERM,V001160713
ROCHDALE BOROUGH COUNCIL,18/08/2017,PHYSICAL DIS & OLDER PEOPLE,CLEGGSWORTH CARE HOME LIMITED,18/08/2017,-552.55 ,RESIDENTIAL LONG TERM,V001160699
ROCHDALE BOROUGH COUNCIL,18/08/2017,PHYSICAL DIS & OLDER PEOPLE,CLEGGSWORTH CARE HOME LIMITED,18/08/2017,613.36 ,RESIDENTIAL LONG TERM,V001160757
ROCHDALE BOROUGH COUNCIL,18/08/2017,PHYSICAL DIS & OLDER PEOPLE,CLEGGSWORTH CARE HOME LIMITED,18/08/2017,613.36 ,RESIDENTIAL LONG TERM,V001160758
ROCHDALE BOROUGH COUNCIL,18/08/2017,PHYSICAL DIS & OLDER PEOPLE,CLEGGSWORTH CARE HOME LIMITED,18/08/2017,616.16 ,RESIDENTIAL LONG TERM,V001160448
ROCHDALE BOROUGH COUNCIL,18/08/2017,PHYSICAL DIS & OLDER PEOPLE,CLEGGSWORTH CARE HOME LIMITED,18/08/2017,616.16 ,RESIDENTIAL LONG TERM,V001160449
ROCHDALE BOROUGH COUNCIL,18/08/2017,PHYSICAL DIS & OLDER PEOPLE,CLEGGSWORTH CARE HOME LIMITED,18/08/2017,622.14 ,RESIDENTIAL LONG TERM,V001160735
ROCHDALE BOROUGH COUNCIL,18/08/2017,PHYSICAL DIS & OLDER PEOPLE,CLEGGSWORTH CARE HOME LIMITED,18/08/2017,622.14 ,RESIDENTIAL LONG TERM,V001160736
ROCHDALE BOROUGH COUNCIL,18/08/2017,PHYSICAL DIS & OLDER PEOPLE,CLEGGSWORTH CARE HOME LIMITED,18/08/2017,624.82 ,RESIDENTIAL LONG TERM,V001160483
ROCHDALE BOROUGH COUNCIL,18/08/2017,PHYSICAL DIS & OLDER PEOPLE,CLEGGSWORTH CARE HOME LIMITED,18/08/2017,624.82 ,RESIDENTIAL LONG TERM,V001160484
ROCHDALE BOROUGH COUNCIL,18/08/2017,PHYSICAL DIS & OLDER PEOPLE,CLEGGSWORTH CARE HOME LIMITED,18/08/2017,625.10 ,RESIDENTIAL LONG TERM,V001160012
ROCHDALE BOROUGH COUNCIL,18/08/2017,PHYSICAL DIS & OLDER PEOPLE,CLEGGSWORTH CARE HOME LIMITED,18/08/2017,625.10 ,RESIDENTIAL LONG TERM,V001160013
ROCHDALE BOROUGH COUNCIL,18/08/2017,PHYSICAL DIS & OLDER PEOPLE,CLEGGSWORTH CARE HOME LIMITED,18/08/2017,626.46 ,RESIDENTIAL LONG TERM,V001160042
ROCHDALE BOROUGH COUNCIL,18/08/2017,PHYSICAL DIS & OLDER PEOPLE,CLEGGSWORTH CARE HOME LIMITED,18/08/2017,626.46 ,RESIDENTIAL LONG TERM,V001160043
ROCHDALE BOROUGH COUNCIL,18/08/2017,PHYSICAL DIS & OLDER PEOPLE,CLEGGSWORTH CARE HOME LIMITED,18/08/2017,626.46 ,RESIDENTIAL LONG TERM,V001160436
ROCHDALE BOROUGH COUNCIL,18/08/2017,PHYSICAL DIS & OLDER PEOPLE,CLEGGSWORTH CARE HOME LIMITED,18/08/2017,626.46 ,RESIDENTIAL LONG TERM,V001160437
ROCHDALE BOROUGH COUNCIL,18/08/2017,PHYSICAL DIS & OLDER PEOPLE,CLEGGSWORTH CARE HOME LIMITED,18/08/2017,631.10 ,RESIDENTIAL LONG TERM,V001160010
ROCHDALE BOROUGH COUNCIL,18/08/2017,PHYSICAL DIS & OLDER PEOPLE,CLEGGSWORTH CARE HOME LIMITED,18/08/2017,631.10 ,RESIDENTIAL LONG TERM,V001160011
ROCHDALE BOROUGH COUNCIL,18/08/2017,PHYSICAL DIS & OLDER PEOPLE,CLEGGSWORTH CARE HOME LIMITED,18/08/2017,631.10 ,RESIDENTIAL LONG TERM,V001160106
ROCHDALE BOROUGH COUNCIL,18/08/2017,PHYSICAL DIS & OLDER PEOPLE,CLEGGSWORTH CARE HOME LIMITED,18/08/2017,631.10 ,RESIDENTIAL LONG TERM,V001160107
ROCHDALE BOROUGH COUNCIL,18/08/2017,PHYSICAL DIS & OLDER PEOPLE,CLEGGSWORTH CARE HOME LIMITED,18/08/2017,631.10 ,RESIDENTIAL LONG TERM,V001160108
ROCHDALE BOROUGH COUNCIL,18/08/2017,PHYSICAL DIS & OLDER PEOPLE,CLEGGSWORTH CARE HOME LIMITED,18/08/2017,631.10 ,RESIDENTIAL LONG TERM,V001160109
ROCHDALE BOROUGH COUNCIL,18/08/2017,PHYSICAL DIS & OLDER PEOPLE,CLEGGSWORTH CARE HOME LIMITED,18/08/2017,631.10 ,RESIDENTIAL LONG TERM,V001160110
ROCHDALE BOROUGH COUNCIL,18/08/2017,PHYSICAL DIS & OLDER PEOPLE,CLEGGSWORTH CARE HOME LIMITED,18/08/2017,631.10 ,RESIDENTIAL LONG TERM,V001160111
ROCHDALE BOROUGH COUNCIL,18/08/2017,PHYSICAL DIS & OLDER PEOPLE,CLEGGSWORTH CARE HOME LIMITED,18/08/2017,631.10 ,RESIDENTIAL LONG TERM,V001160204
ROCHDALE BOROUGH COUNCIL,18/08/2017,PHYSICAL DIS & OLDER PEOPLE,CLEGGSWORTH CARE HOME LIMITED,18/08/2017,631.10 ,RESIDENTIAL LONG TERM,V001160205
ROCHDALE BOROUGH COUNCIL,18/08/2017,PHYSICAL DIS & OLDER PEOPLE,CLEGGSWORTH CARE HOME LIMITED,18/08/2017,631.10 ,RESIDENTIAL LONG TERM,V001160517
ROCHDALE BOROUGH COUNCIL,18/08/2017,PHYSICAL DIS & OLDER PEOPLE,CLEGGSWORTH CARE HOME LIMITED,18/08/2017,631.10 ,RESIDENTIAL LONG TERM,V001160518
ROCHDALE BOROUGH COUNCIL,18/08/2017,PHYSICAL DIS & OLDER PEOPLE,CLEGGSWORTH CARE HOME LIMITED,18/08/2017,631.10 ,RESIDENTIAL LONG TERM,V001160620
ROCHDALE BOROUGH COUNCIL,18/08/2017,PHYSICAL DIS & OLDER PEOPLE,CLEGGSWORTH CARE HOME LIMITED,18/08/2017,631.10 ,RESIDENTIAL LONG TERM,V001160621
ROCHDALE BOROUGH COUNCIL,18/08/2017,PHYSICAL DIS & OLDER PEOPLE,CLEGGSWORTH CARE HOME LIMITED,18/08/2017,634.78 ,RESIDENTIAL LONG TERM,V001160084
ROCHDALE BOROUGH COUNCIL,18/08/2017,PHYSICAL DIS & OLDER PEOPLE,CLEGGSWORTH CARE HOME LIMITED,18/08/2017,634.78 ,RESIDENTIAL LONG TERM,V001160085
ROCHDALE BOROUGH COUNCIL,04/08/2017,PHYSICAL DIS & OLDER PEOPLE,CLEGGSWORTH CARE HOME LIMITED,04/08/2017,642.86 ,SHORT TERM CARE - RESIDENTIAL,V001156535
ROCHDALE BOROUGH COUNCIL,18/08/2017,PHYSICAL DIS & OLDER PEOPLE,CLEGGSWORTH CARE HOME LIMITED,18/08/2017,643.10 ,RESIDENTIAL LONG TERM,V001160877
ROCHDALE BOROUGH COUNCIL,18/08/2017,PHYSICAL DIS & OLDER PEOPLE,CLEGGSWORTH CARE HOME LIMITED,18/08/2017,643.10 ,RESIDENTIAL LONG TERM,V001160878
ROCHDALE BOROUGH COUNCIL,18/08/2017,LEARNING DIS & MENTAL HEALTH,CLEGGSWORTH CARE HOME LIMITED,18/08/2017,706.70 ,RESIDENTIAL LONG TERM,V001160967
ROCHDALE BOROUGH COUNCIL,18/08/2017,LEARNING DIS & MENTAL HEALTH,CLEGGSWORTH CARE HOME LIMITED,18/08/2017,706.70 ,RESIDENTIAL LONG TERM,V001160968
ROCHDALE BOROUGH COUNCIL,04/08/2017,PHYSICAL DIS & OLDER PEOPLE,CLEGGSWORTH CARE HOME LIMITED,04/08/2017,900.00 ,SHORT TERM CARE - RESIDENTIAL,V001155822
ROCHDALE BOROUGH COUNCIL,04/08/2017,PHYSICAL DIS & OLDER PEOPLE,CLEGGSWORTH CARE HOME LIMITED,04/08/2017,900.00 ,SHORT TERM CARE - RESIDENTIAL,V001156536
ROCHDALE BOROUGH COUNCIL,11/08/2017,PHYSICAL DIS & OLDER PEOPLE,CLEGGSWORTH CARE HOME LIMITED,11/08/2017,8243.70 ,RESIDENTIAL LONG TERM,V001159124
ROCHDALE BOROUGH COUNCIL,17/08/2017,NEIGHBOURHOODS AND ENVIRONMENT,CLOVER SECURITY SERVICES LIMITED,17/08/2017,500.00 ,SECURITY,V001159826
ROCHDALE BOROUGH COUNCIL,30/08/2017,NEIGHBOURHOODS AND ENVIRONMENT,CLOVER SECURITY SERVICES LIMITED,30/08/2017,507.00 ,SECURITY,V001163752
ROCHDALE BOROUGH COUNCIL,07/08/2017,NEIGHBOURHOODS AND ENVIRONMENT,CLOVER SECURITY SERVICES LIMITED,07/08/2017,1160.00 ,SECURITY,V001157999
ROCHDALE BOROUGH COUNCIL,11/08/2017,CHILDREN�S SOCIAL CARE,COLLEEN MURPHY,11/08/2017,4600.00 ,CONSULTANT FEES,V001159093
ROCHDALE BOROUGH COUNCIL,25/08/2017,PHYSICAL DIS & OLDER PEOPLE,COMFORT CALL LTD,25/08/2017,-609.48 ,INDIVIDUAL SERVICE FUND,V001162351
ROCHDALE BOROUGH COUNCIL,25/08/2017,PHYSICAL DIS & OLDER PEOPLE,COMFORT CALL LTD,25/08/2017,548.00 ,INDIVIDUAL SERVICE FUND,V001162440
ROCHDALE BOROUGH COUNCIL,25/08/2017,PHYSICAL DIS & OLDER PEOPLE,COMFORT CALL LTD,25/08/2017,603.12 ,INDIVIDUAL SERVICE FUND,V001162694
ROCHDALE BOROUGH COUNCIL,25/08/2017,PHYSICAL DIS & OLDER PEOPLE,COMFORT CALL LTD,25/08/2017,616.00 ,INDIVIDUAL SERVICE FUND,V001162544
ROCHDALE BOROUGH COUNCIL,25/08/2017,PHYSICAL DIS & OLDER PEOPLE,COMFORT CALL LTD,25/08/2017,617.60 ,INDIVIDUAL SERVICE FUND,V001162374
ROCHDALE BOROUGH COUNCIL,25/08/2017,PHYSICAL DIS & OLDER PEOPLE,COMFORT CALL LTD,25/08/2017,660.00 ,INDIVIDUAL SERVICE FUND,V001162437
ROCHDALE BOROUGH COUNCIL,25/08/2017,PHYSICAL DIS & OLDER PEOPLE,COMFORT CALL LTD,25/08/2017,696.40 ,INDIVIDUAL SERVICE FUND,V001162442
ROCHDALE BOROUGH COUNCIL,25/08/2017,PHYSICAL DIS & OLDER PEOPLE,COMFORT CALL LTD,25/08/2017,700.28 ,INDIVIDUAL SERVICE FUND,V001162434
ROCHDALE BOROUGH COUNCIL,25/08/2017,PHYSICAL DIS & OLDER PEOPLE,COMFORT CALL LTD,25/08/2017,746.84 ,INDIVIDUAL SERVICE FUND,V001162664
ROCHDALE BOROUGH COUNCIL,25/08/2017,PHYSICAL DIS & OLDER PEOPLE,COMFORT CALL LTD,25/08/2017,776.20 ,INDIVIDUAL SERVICE FUND,V001162349
ROCHDALE BOROUGH COUNCIL,25/08/2017,PHYSICAL DIS & OLDER PEOPLE,COMFORT CALL LTD,25/08/2017,823.92 ,INDIVIDUAL SERVICE FUND,V001162063
ROCHDALE BOROUGH COUNCIL,25/08/2017,PHYSICAL DIS & OLDER PEOPLE,COMFORT CALL LTD,25/08/2017,825.24 ,INDIVIDUAL SERVICE FUND,V001162388
ROCHDALE BOROUGH COUNCIL,25/08/2017,PHYSICAL DIS & OLDER PEOPLE,COMFORT CALL LTD,25/08/2017,841.60 ,INDIVIDUAL SERVICE FUND,V001162550
ROCHDALE BOROUGH COUNCIL,25/08/2017,PHYSICAL DIS & OLDER PEOPLE,COMFORT CALL LTD,25/08/2017,1036.00 ,INDIVIDUAL SERVICE FUND,V001162161
ROCHDALE BOROUGH COUNCIL,25/08/2017,PHYSICAL DIS & OLDER PEOPLE,COMFORT CALL LTD,25/08/2017,1450.12 ,INDIVIDUAL SERVICE FUND,V001162576
ROCHDALE BOROUGH COUNCIL,25/08/2017,PHYSICAL DIS & OLDER PEOPLE,COMFORT CALL LTD,25/08/2017,1704.24 ,INDIVIDUAL SERVICE FUND,V001162580
ROCHDALE BOROUGH COUNCIL,25/08/2017,PHYSICAL DIS & OLDER PEOPLE,COMFORT CALL LTD,25/08/2017,1744.24 ,INDIVIDUAL SERVICE FUND,V001162581
ROCHDALE BOROUGH COUNCIL,17/08/2017,PHYSICAL DIS & OLDER PEOPLE,COMFORT CALL LTD,17/08/2017,8230.91 ,HOME CARE - ADULT SERVICES,V001161055
ROCHDALE BOROUGH COUNCIL,02/08/2017,PHYSICAL DIS & OLDER PEOPLE,COMFORT CALL LTD,02/08/2017,8410.89 ,HOME CARE - ADULT SERVICES,V001155386
ROCHDALE BOROUGH COUNCIL,10/08/2017,PHYSICAL DIS & OLDER PEOPLE,COMFORT CALL LTD,10/08/2017,8589.67 ,HOME CARE - ADULT SERVICES,V001158630
ROCHDALE BOROUGH COUNCIL,23/08/2017,PHYSICAL DIS & OLDER PEOPLE,COMFORT CALL LTD,23/08/2017,8684.69 ,HOME CARE - ADULT SERVICES,V001161650
ROCHDALE BOROUGH COUNCIL,29/08/2017,PHYSICAL DIS & OLDER PEOPLE,COMFORT CALL LTD,29/08/2017,9125.78 ,HOME CARE - ADULT SERVICES,V001163383
ROCHDALE BOROUGH COUNCIL,18/08/2017,NEIGHBOURHOODS AND ENVIRONMENT,COMMUNICORP UK LTD,18/08/2017,1700.00 ,ADVERTISING,V001161269
ROCHDALE BOROUGH COUNCIL,23/08/2017,NEIGHBOURHOODS AND ENVIRONMENT,COMMUNITEA CIC,23/08/2017,2800.00 ,GRANTS TO THE NON VOLUNTARY SECTOR,V001161618
ROCHDALE BOROUGH COUNCIL,31/08/2017,LEARNING DIS & MENTAL HEALTH,COMMUNITY CARE LINE SERVICES,31/08/2017,505.44 ,PERSONAL BUDGETS - MANAGED,V001163413
ROCHDALE BOROUGH COUNCIL,10/08/2017,PHYSICAL DIS & OLDER PEOPLE,COMMUNITY CARE LINE SERVICES,10/08/2017,3337.98 ,HOME CARE - ADULT SERVICES,V001158629
ROCHDALE BOROUGH COUNCIL,02/08/2017,PHYSICAL DIS & OLDER PEOPLE,COMMUNITY CARE LINE SERVICES,02/08/2017,3578.37 ,HOME CARE - ADULT SERVICES,V001155385
ROCHDALE BOROUGH COUNCIL,23/08/2017,PHYSICAL DIS & OLDER PEOPLE,COMMUNITY CARE LINE SERVICES,23/08/2017,3584.02 ,HOME CARE - ADULT SERVICES,V001161649
ROCHDALE BOROUGH COUNCIL,17/08/2017,PHYSICAL DIS & OLDER PEOPLE,COMMUNITY CARE LINE SERVICES,17/08/2017,3689.32 ,HOME CARE - ADULT SERVICES,V001161054
ROCHDALE BOROUGH COUNCIL,29/08/2017,PHYSICAL DIS & OLDER PEOPLE,COMMUNITY CARE LINE SERVICES,29/08/2017,3761.12 ,HOME CARE - ADULT SERVICES,V001163382
ROCHDALE BOROUGH COUNCIL,31/08/2017,PROPERTY AND HIGHWAYS,COMMUNITY LIGHTING PARTNERSHIP ROCHDALE LTD,31/08/2017,379267.92 ,PFI SCHEMES RPIX,V001163471
ROCHDALE BOROUGH COUNCIL,01/08/2017,PROPERTY AND HIGHWAYS,COMMUNITY LIGHTING PARTNERSHIP ROCHDALE LTD,01/08/2017,417144.71 ,PFI SCHEMES RPIX,V001154769
ROCHDALE BOROUGH COUNCIL,07/08/2017,CHILDREN�S SOCIAL CARE,COMPASS FOSTERING NORTH LTD,07/08/2017,3168.60 ,FOSTER PARENTS BASIC ALLOWANCE,V001157771
ROCHDALE BOROUGH COUNCIL,01/08/2017,PROPERTY AND HIGHWAYS,COMPLIANCE365,01/08/2017,800.00 ,TRANSACTIONS-EXPENDITURE,V001154323
ROCHDALE BOROUGH COUNCIL,30/08/2017,CHILDREN�S SOCIAL CARE,CONATUS CHILD PSYCHOLOGY,30/08/2017,616.25 ,ACTIVITIES,V001163460
ROCHDALE BOROUGH COUNCIL,16/08/2017,RESOURCES,CO-OP PAYPOINT,16/08/2017,5739.21 ,FEES/ COMMISSION,V001159530
ROCHDALE BOROUGH COUNCIL,15/08/2017,PUBLIC HEALTH,COPLANS MANAGEMENT SERVICES LTD,15/08/2017,1800.00 ,CONSULTANT FEES,V001159395
ROCHDALE BOROUGH COUNCIL,25/08/2017,NEIGHBOURHOODS AND ENVIRONMENT,CORPS,25/08/2017,574.33 ,SECURITY,V001158612
ROCHDALE BOROUGH COUNCIL,29/08/2017,NEIGHBOURHOODS AND ENVIRONMENT,CORPS,29/08/2017,1038.51 ,SECURITY,V001155361
ROCHDALE BOROUGH COUNCIL,16/08/2017,NEIGHBOURHOODS AND ENVIRONMENT,CORPS,16/08/2017,6006.25 ,SECURITY,V001155345
ROCHDALE BOROUGH COUNCIL,25/08/2017,NEIGHBOURHOODS AND ENVIRONMENT,CORPS,25/08/2017,7825.54 ,SECURITY,V001157653
ROCHDALE BOROUGH COUNCIL,18/08/2017,EARLY HELP AND SCHOOLS,COSY TOES PRIVATE DAY NURSERY,18/08/2017,956.16 ,DAY CARE,V001159714
ROCHDALE BOROUGH COUNCIL,02/08/2017,PHYSICAL DIS & OLDER PEOPLE,COTTAGE HOMECARE SERVICES,02/08/2017,3181.46 ,HOME CARE - ADULT SERVICES,V001155387
ROCHDALE BOROUGH COUNCIL,29/08/2017,PHYSICAL DIS & OLDER PEOPLE,COTTAGE HOMECARE SERVICES,29/08/2017,3334.63 ,HOME CARE - ADULT SERVICES,V001163384
ROCHDALE BOROUGH COUNCIL,10/08/2017,PHYSICAL DIS & OLDER PEOPLE,COTTAGE HOMECARE SERVICES,10/08/2017,3419.12 ,HOME CARE - ADULT SERVICES,V001158631
ROCHDALE BOROUGH COUNCIL,23/08/2017,PHYSICAL DIS & OLDER PEOPLE,COTTAGE HOMECARE SERVICES,23/08/2017,3588.32 ,HOME CARE - ADULT SERVICES,V001161651
ROCHDALE BOROUGH COUNCIL,17/08/2017,PHYSICAL DIS & OLDER PEOPLE,COTTAGE HOMECARE SERVICES,17/08/2017,3858.69 ,HOME CARE - ADULT SERVICES,V001161056
ROCHDALE BOROUGH COUNCIL,07/08/2017,CHILDREN�S SOCIAL CARE,COURTYARD CARE LIMITED,07/08/2017,13064.33 ,EBD (EMOT & BEHAV DIFF) PLACEMENTS,V001157772
ROCHDALE BOROUGH COUNCIL,08/08/2017,NEIGHBOURHOODS AND ENVIRONMENT,COZY CARS,08/08/2017,500.40 ,TAXI HIRE,V001158035
ROCHDALE BOROUGH COUNCIL,08/08/2017,NEIGHBOURHOODS AND ENVIRONMENT,COZY CARS,08/08/2017,560.70 ,TAXI HIRE,V001158038
ROCHDALE BOROUGH COUNCIL,08/08/2017,NEIGHBOURHOODS AND ENVIRONMENT,COZY CARS,08/08/2017,768.00 ,TAXI HIRE,V001158040
ROCHDALE BOROUGH COUNCIL,14/08/2017,NEIGHBOURHOODS AND ENVIRONMENT,COZY CARS,14/08/2017,792.00 ,TAXI HIRE,V001159160
ROCHDALE BOROUGH COUNCIL,08/08/2017,NEIGHBOURHOODS AND ENVIRONMENT,COZY CARS,08/08/2017,856.00 ,TAXI HIRE,V001158044
ROCHDALE BOROUGH COUNCIL,08/08/2017,NEIGHBOURHOODS AND ENVIRONMENT,COZY CARS,08/08/2017,960.00 ,TAXI HIRE,V001158033
ROCHDALE BOROUGH COUNCIL,08/08/2017,NEIGHBOURHOODS AND ENVIRONMENT,COZY CARS,08/08/2017,1712.80 ,TAXI HIRE,V001158039
ROCHDALE BOROUGH COUNCIL,25/08/2017,NEIGHBOURHOODS AND ENVIRONMENT,CP DAVIDSON AND SONS LTD,25/08/2017,566.25 ,VEHICLE MAINTENANCE,V001161222
ROCHDALE BOROUGH COUNCIL,15/08/2017,NEIGHBOURHOODS AND ENVIRONMENT,CP DAVIDSON AND SONS LTD,15/08/2017,2520.00 ,TRANSACTIONS-EXPENDITURE,V001158616
ROCHDALE BOROUGH COUNCIL,15/08/2017,NEIGHBOURHOODS AND ENVIRONMENT,CP DAVIDSON AND SONS LTD,15/08/2017,3360.00 ,TRANSACTIONS-EXPENDITURE,V001158617
ROCHDALE BOROUGH COUNCIL,15/08/2017,NEIGHBOURHOODS AND ENVIRONMENT,CP DAVIDSON AND SONS LTD,15/08/2017,3360.00 ,TRANSACTIONS-EXPENDITURE,V001158618
ROCHDALE BOROUGH COUNCIL,04/08/2017,LEARNING DIS & MENTAL HEALTH,CREATIVE SUPPORT,04/08/2017,19914.40 ,SP BLOCK PAYMENTS - EXTERNAL,V001155487
ROCHDALE BOROUGH COUNCIL,25/08/2017,LEARNING DIS & MENTAL HEALTH,CREATIVE SUPPORT LIMITED,25/08/2017,2380.00 ,SUPPORTED LIVING,V001162610
ROCHDALE BOROUGH COUNCIL,31/08/2017,LEARNING DIS & MENTAL HEALTH,CREATIVE SUPPORT LTD,31/08/2017,692.16 ,PERSONAL BUDGETS - MANAGED,V001163349
ROCHDALE BOROUGH COUNCIL,31/08/2017,LEARNING DIS & MENTAL HEALTH,CREATIVE SUPPORT LTD,31/08/2017,840.48 ,PERSONAL BUDGETS - MANAGED,V001163347
ROCHDALE BOROUGH COUNCIL,31/08/2017,NEIGHBOURHOODS AND ENVIRONMENT,CRESTA WORLD TRAVEL LIMITED,31/08/2017,926.12 ,STAFF TRAVELLING EXPENSES,V001161598
ROCHDALE BOROUGH COUNCIL,18/08/2017,ECONOMY DIRECTORATE,CRICK SMITH UNIVERSITY OF LINCOLN,18/08/2017,2965.00 ,SITE INVESTIGATION,V001154680
ROCHDALE BOROUGH COUNCIL,31/08/2017,RESOURCES,CRITIQOM LIMITED,31/08/2017,606.53 ,PRINTING & STATIONERY,V001165581
ROCHDALE BOROUGH COUNCIL,18/08/2017,RESOURCES,CRITIQOM LIMITED,18/08/2017,653.47 ,PRINTING & STATIONERY,V001161162
ROCHDALE BOROUGH COUNCIL,16/08/2017,RESOURCES,CRITIQOM LIMITED,16/08/2017,785.81 ,PRINTING & STATIONERY,V001159625
ROCHDALE BOROUGH COUNCIL,25/08/2017,PUBLIC HEALTH,CRITIQOM LIMITED,25/08/2017,938.93 ,PRINTING & STATIONERY,V001163246
ROCHDALE BOROUGH COUNCIL,18/08/2017,EARLY HELP AND SCHOOLS,CRITIQOM LIMITED,18/08/2017,1133.62 ,PRINTING,V001161172
ROCHDALE BOROUGH COUNCIL,18/08/2017,RESOURCES,CRITIQOM LIMITED,18/08/2017,1483.09 ,PRINTING & STATIONERY,V001161161
ROCHDALE BOROUGH COUNCIL,04/08/2017,RESOURCES,CRITIQOM LIMITED,04/08/2017,1618.86 ,PRINTING & STATIONERY,V001155377
ROCHDALE BOROUGH COUNCIL,31/08/2017,RESOURCES,CRITIQOM LIMITED,31/08/2017,1710.92 ,PRINTING & STATIONERY,V001165582
ROCHDALE BOROUGH COUNCIL,16/08/2017,RESOURCES,CRITIQOM LIMITED,16/08/2017,2174.67 ,PRINTING & STATIONERY,V001159285
ROCHDALE BOROUGH COUNCIL,04/08/2017,RESOURCES,CRITIQOM LIMITED,04/08/2017,4719.04 ,PRINTING & STATIONERY,V001155378
ROCHDALE BOROUGH COUNCIL,10/08/2017,PHYSICAL DIS & OLDER PEOPLE,CROSSROADS CARE IN GREATER MANCHESTER,10/08/2017,938.19 ,HOME CARE - ADULT SERVICES,V001158632
ROCHDALE BOROUGH COUNCIL,17/08/2017,PHYSICAL DIS & OLDER PEOPLE,CROSSROADS CARE IN GREATER MANCHESTER,17/08/2017,1006.16 ,HOME CARE - ADULT SERVICES,V001161057
ROCHDALE BOROUGH COUNCIL,02/08/2017,PHYSICAL DIS & OLDER PEOPLE,CROSSROADS CARE IN GREATER MANCHESTER,02/08/2017,1033.44 ,HOME CARE - ADULT SERVICES,V001155388
ROCHDALE BOROUGH COUNCIL,23/08/2017,PHYSICAL DIS & OLDER PEOPLE,CROSSROADS CARE IN GREATER MANCHESTER,23/08/2017,1047.80 ,HOME CARE - ADULT SERVICES,V001161652
ROCHDALE BOROUGH COUNCIL,29/08/2017,EARLY HELP AND SCHOOLS,CROSSROADS CARE IN GREATER MANCHESTER,29/08/2017,1072.50 ,ACTIVITIES,V001161662
ROCHDALE BOROUGH COUNCIL,29/08/2017,PHYSICAL DIS & OLDER PEOPLE,CROSSROADS CARE IN GREATER MANCHESTER,29/08/2017,1081.07 ,HOME CARE - ADULT SERVICES,V001163385
ROCHDALE BOROUGH COUNCIL,11/08/2017,LEARNING DIS & MENTAL HEALTH,CROSSROADS CARE IN GREATER MANCHESTER,11/08/2017,1725.00 ,PERSONAL BUDGETS - MANAGED,V001156563
ROCHDALE BOROUGH COUNCIL,11/08/2017,LEARNING DIS & MENTAL HEALTH,CROSSROADS CARE IN GREATER MANCHESTER,11/08/2017,2003.61 ,PERSONAL BUDGETS - MANAGED,V001156567
ROCHDALE BOROUGH COUNCIL,01/08/2017,EARLY HELP AND SCHOOLS,CROSSROADS CARE IN GREATER MANCHESTER,01/08/2017,3320.83 ,ACTIVITIES,V001150139
ROCHDALE BOROUGH COUNCIL,29/08/2017,EARLY HELP AND SCHOOLS,CROSSROADS CARE IN GREATER MANCHESTER,29/08/2017,4395.00 ,ACTIVITIES,V001161661
ROCHDALE BOROUGH COUNCIL,21/08/2017,CHILDREN�S SOCIAL CARE,CRYSTAL CARE SOLUTIONS LTD,21/08/2017,1240.71 ,EBD (EMOT & BEHAV DIFF) PLACEMENTS,V001161225
ROCHDALE BOROUGH COUNCIL,21/08/2017,CHILDREN�S SOCIAL CARE,CRYSTAL CARE SOLUTIONS LTD,21/08/2017,2895.00 ,EBD (EMOT & BEHAV DIFF) PLACEMENTS,V001161215
ROCHDALE BOROUGH COUNCIL,21/08/2017,CHILDREN�S SOCIAL CARE,CRYSTAL CARE SOLUTIONS LTD,21/08/2017,2895.00 ,EBD (EMOT & BEHAV DIFF) PLACEMENTS,V001161217
ROCHDALE BOROUGH COUNCIL,21/08/2017,CHILDREN�S SOCIAL CARE,CRYSTAL CARE SOLUTIONS LTD,21/08/2017,2895.00 ,EBD (EMOT & BEHAV DIFF) PLACEMENTS,V001161218
ROCHDALE BOROUGH COUNCIL,03/08/2017,NEIGHBOURHOODS AND ENVIRONMENT,CWTC,03/08/2017,1800.00 ,GRANTS TO THE NON VOLUNTARY SECTOR,V001145369
ROCHDALE BOROUGH COUNCIL,07/08/2017,LEARNING DIS & MENTAL HEALTH,D & A C FITTON,07/08/2017,6016.64 ,RESIDENTIAL LONG TERM,V001141711
ROCHDALE BOROUGH COUNCIL,04/08/2017,PHYSICAL DIS & OLDER PEOPLE,D W TAYLOR & SON,04/08/2017,1200.00 ,MINOR BUILDING WORKS,V001155239
ROCHDALE BOROUGH COUNCIL,04/08/2017,PHYSICAL DIS & OLDER PEOPLE,D W TAYLOR & SON,04/08/2017,3735.00 ,MINOR BUILDING WORKS,V001155239
ROCHDALE BOROUGH COUNCIL,18/08/2017,NEIGHBOURHOODS AND ENVIRONMENT,DAISY COMMUNICATIONS LTD,18/08/2017,1349.84 ,SOFTWARE,V001158909
ROCHDALE BOROUGH COUNCIL,16/08/2017,NEIGHBOURHOODS AND ENVIRONMENT,DAISY COMMUNICATIONS LTD,16/08/2017,1962.04 ,IT MAINTENANCE,V001158914
ROCHDALE BOROUGH COUNCIL,04/08/2017,LEARNING DIS & MENTAL HEALTH,DAVID LEWIS ORGANISATION,04/08/2017,6503.68 ,RESIDENTIAL LONG TERM,V001155643
ROCHDALE BOROUGH COUNCIL,18/08/2017,LEARNING DIS & MENTAL HEALTH,DAVID LEWIS ORGANISATION,18/08/2017,6503.68 ,RESIDENTIAL LONG TERM,V001159949
ROCHDALE BOROUGH COUNCIL,24/08/2017,EARLY HELP AND SCHOOLS,DDH FABRICATIONS LTD,24/08/2017,510.00 ,REPAIRS & ALTS OF BUILDINGS,V001159813
ROCHDALE BOROUGH COUNCIL,10/08/2017,PROPERTY AND HIGHWAYS,DDH FABRICATIONS LTD,10/08/2017,580.00 ,TRANSACTIONS-EXPENDITURE,V001154333
ROCHDALE BOROUGH COUNCIL,18/08/2017,LEARNING DIS & MENTAL HEALTH,DEAFWAY,18/08/2017,2500.00 ,RESIDENTIAL LONG TERM,V001160209
ROCHDALE BOROUGH COUNCIL,18/08/2017,LEARNING DIS & MENTAL HEALTH,DEAFWAY,18/08/2017,2500.00 ,RESIDENTIAL LONG TERM,V001160210
ROCHDALE BOROUGH COUNCIL,02/08/2017,EARLY HELP AND SCHOOLS,DEEPLISH ACADEMY,02/08/2017,1989.33 ,OTHER EST - SEN PROVISION,V001155474
ROCHDALE BOROUGH COUNCIL,30/08/2017,NEIGHBOURHOODS AND ENVIRONMENT,DELMATIC LIGHTING MANAGEMENT,30/08/2017,1336.20 ,PROPERTY - WORKS ELEMENT,V001161436
ROCHDALE BOROUGH COUNCIL,29/08/2017,NEIGHBOURHOODS AND ENVIRONMENT,DENNIS EAGLE LTD,29/08/2017,644.63 ,VEHICLE MAINTENANCE,V001162713
ROCHDALE BOROUGH COUNCIL,22/08/2017,NEIGHBOURHOODS AND ENVIRONMENT,DENNIS EAGLE LTD,22/08/2017,704.05 ,VEHICLE MAINTENANCE,V001159009
ROCHDALE BOROUGH COUNCIL,08/08/2017,NEIGHBOURHOODS AND ENVIRONMENT,DENNIS EAGLE LTD,08/08/2017,6716.63 ,VEHICLE MAINTENANCE,V001154897
ROCHDALE BOROUGH COUNCIL,18/08/2017,PHYSICAL DIS & OLDER PEOPLE,DENTAK CARE AND SERVICES LIMITED,18/08/2017,581.84 ,NURSING LONG TERM,V001160733
ROCHDALE BOROUGH COUNCIL,04/08/2017,PHYSICAL DIS & OLDER PEOPLE,DENTAK CARE AND SERVICES LIMITED,04/08/2017,611.40 ,NURSING LONG TERM,V001156252
ROCHDALE BOROUGH COUNCIL,18/08/2017,PHYSICAL DIS & OLDER PEOPLE,DENTAK CARE AND SERVICES LIMITED,18/08/2017,611.40 ,NURSING LONG TERM,V001160679
ROCHDALE BOROUGH COUNCIL,04/08/2017,PHYSICAL DIS & OLDER PEOPLE,DENTAK CARE AND SERVICES LIMITED,04/08/2017,629.62 ,NURSING LONG TERM,V001156224
ROCHDALE BOROUGH COUNCIL,18/08/2017,PHYSICAL DIS & OLDER PEOPLE,DENTAK CARE AND SERVICES LIMITED,18/08/2017,629.62 ,NURSING LONG TERM,V001160641
ROCHDALE BOROUGH COUNCIL,04/08/2017,PHYSICAL DIS & OLDER PEOPLE,DENTAK CARE AND SERVICES LIMITED,04/08/2017,631.10 ,RESIDENTIAL LONG TERM,V001156362
ROCHDALE BOROUGH COUNCIL,04/08/2017,PHYSICAL DIS & OLDER PEOPLE,DENTAK CARE AND SERVICES LIMITED,04/08/2017,631.10 ,NURSING LONG TERM,V001156364
ROCHDALE BOROUGH COUNCIL,04/08/2017,PHYSICAL DIS & OLDER PEOPLE,DENTAK CARE AND SERVICES LIMITED,04/08/2017,631.10 ,NURSING LONG TERM,V001156500
ROCHDALE BOROUGH COUNCIL,18/08/2017,PHYSICAL DIS & OLDER PEOPLE,DENTAK CARE AND SERVICES LIMITED,18/08/2017,631.10 ,RESIDENTIAL LONG TERM,V001160830
ROCHDALE BOROUGH COUNCIL,18/08/2017,PHYSICAL DIS & OLDER PEOPLE,DENTAK CARE AND SERVICES LIMITED,18/08/2017,631.10 ,NURSING LONG TERM,V001160832
ROCHDALE BOROUGH COUNCIL,18/08/2017,PHYSICAL DIS & OLDER PEOPLE,DENTAK CARE AND SERVICES LIMITED,18/08/2017,631.10 ,NURSING LONG TERM,V001160973
ROCHDALE BOROUGH COUNCIL,04/08/2017,PHYSICAL DIS & OLDER PEOPLE,DENTAK CARE AND SERVICES LIMITED,04/08/2017,631.36 ,NURSING LONG TERM,V001155971
ROCHDALE BOROUGH COUNCIL,18/08/2017,PHYSICAL DIS & OLDER PEOPLE,DENTAK CARE AND SERVICES LIMITED,18/08/2017,631.36 ,NURSING LONG TERM,V001160344
ROCHDALE BOROUGH COUNCIL,02/08/2017,PHYSICAL DIS & OLDER PEOPLE,DENTAK CARE AND SERVICES LIMITED,02/08/2017,799.31 ,RESIDENTIAL LONG TERM,V001155338
ROCHDALE BOROUGH COUNCIL,04/08/2017,PHYSICAL DIS & OLDER PEOPLE,DENTAK CARE AND SERVICES LIMITED,04/08/2017,900.00 ,NURSING LONG TERM,V001155700
ROCHDALE BOROUGH COUNCIL,04/08/2017,LEARNING DIS & MENTAL HEALTH,DENTAK CARE AND SERVICES LIMITED,04/08/2017,900.00 ,NURSING LONG TERM,V001155859
ROCHDALE BOROUGH COUNCIL,04/08/2017,LEARNING DIS & MENTAL HEALTH,DENTAK CARE AND SERVICES LIMITED,04/08/2017,900.00 ,RESIDENTIAL LONG TERM,V001155945
ROCHDALE BOROUGH COUNCIL,04/08/2017,PHYSICAL DIS & OLDER PEOPLE,DENTAK CARE AND SERVICES LIMITED,04/08/2017,900.00 ,NURSING LONG TERM,V001156017
ROCHDALE BOROUGH COUNCIL,04/08/2017,PHYSICAL DIS & OLDER PEOPLE,DENTAK CARE AND SERVICES LIMITED,04/08/2017,900.00 ,NURSING LONG TERM,V001156166
ROCHDALE BOROUGH COUNCIL,04/08/2017,PHYSICAL DIS & OLDER PEOPLE,DENTAK CARE AND SERVICES LIMITED,04/08/2017,900.00 ,NURSING LONG TERM,V001156450
ROCHDALE BOROUGH COUNCIL,18/08/2017,PHYSICAL DIS & OLDER PEOPLE,DENTAK CARE AND SERVICES LIMITED,18/08/2017,900.00 ,NURSING LONG TERM,V001160006
ROCHDALE BOROUGH COUNCIL,18/08/2017,LEARNING DIS & MENTAL HEALTH,DENTAK CARE AND SERVICES LIMITED,18/08/2017,900.00 ,NURSING LONG TERM,V001160199
ROCHDALE BOROUGH COUNCIL,18/08/2017,LEARNING DIS & MENTAL HEALTH,DENTAK CARE AND SERVICES LIMITED,18/08/2017,900.00 ,RESIDENTIAL LONG TERM,V001160314
ROCHDALE BOROUGH COUNCIL,18/08/2017,PHYSICAL DIS & OLDER PEOPLE,DENTAK CARE AND SERVICES LIMITED,18/08/2017,900.00 ,NURSING LONG TERM,V001160387
ROCHDALE BOROUGH COUNCIL,18/08/2017,PHYSICAL DIS & OLDER PEOPLE,DENTAK CARE AND SERVICES LIMITED,18/08/2017,900.00 ,NURSING LONG TERM,V001160582
ROCHDALE BOROUGH COUNCIL,18/08/2017,PHYSICAL DIS & OLDER PEOPLE,DENTAK CARE AND SERVICES LIMITED,18/08/2017,900.00 ,NURSING LONG TERM,V001160932
ROCHDALE BOROUGH COUNCIL,18/08/2017,PHYSICAL DIS & OLDER PEOPLE,DENTAK CARE AND SERVICES LIMITED,18/08/2017,1711.94 ,NURSING LONG TERM,V001160418
ROCHDALE BOROUGH COUNCIL,18/08/2017,PHYSICAL DIS & OLDER PEOPLE,DENTAK CARE AND SERVICES LIMITED,18/08/2017,1712.24 ,NURSING LONG TERM,V001160417
ROCHDALE BOROUGH COUNCIL,04/08/2017,CHILDREN�S SOCIAL CARE,DEPAUL UK,04/08/2017,-8502.84 ,YOUNG PEOPLES RENTS,V001125281
ROCHDALE BOROUGH COUNCIL,04/08/2017,CHILDREN�S SOCIAL CARE,DEPAUL UK,04/08/2017,24685.71 ,YOUNG PEOPLES RENTS,V001154831
ROCHDALE BOROUGH COUNCIL,04/08/2017,RESOURCES,DEPT FOR COMMUNITIES & LOCAL GOVERNMENT,04/08/2017,-13348.00 ,TRANSACTIONS-INCOME,V001155501
ROCHDALE BOROUGH COUNCIL,04/08/2017,RESOURCES,DEPT FOR COMMUNITIES & LOCAL GOVERNMENT,04/08/2017,10763.00 ,TRANSACTIONS-INCOME,V001155501
ROCHDALE BOROUGH COUNCIL,04/08/2017,COLLECTION FUND,DEPT FOR COMMUNITIES & LOCAL GOVERNMENT,04/08/2017,278386.00 ,TRANSACTIONS-EXPENDITURE,V001155501
ROCHDALE BOROUGH COUNCIL,29/08/2017,NEIGHBOURHOODS AND ENVIRONMENT,DEWBERRY REDPOINT LTD,29/08/2017,560.00 ,CONFERENCE,V001152369
ROCHDALE BOROUGH COUNCIL,04/08/2017,PHYSICAL DIS & OLDER PEOPLE,DIRECT HEALTH UK LTD,04/08/2017,10816.44 ,SERVICE LEVEL AGREEMENTS,V001155495
ROCHDALE BOROUGH COUNCIL,10/08/2017,PHYSICAL DIS & OLDER PEOPLE,DIRECT HEALTH UK LTD,10/08/2017,6061.83 ,HOME CARE - ADULT SERVICES,V001158650
ROCHDALE BOROUGH COUNCIL,17/08/2017,PHYSICAL DIS & OLDER PEOPLE,DIRECT HEALTH UK LTD,17/08/2017,6232.24 ,HOME CARE - ADULT SERVICES,V001161058
ROCHDALE BOROUGH COUNCIL,02/08/2017,PHYSICAL DIS & OLDER PEOPLE,DIRECT HEALTH UK LTD,02/08/2017,6260.96 ,HOME CARE - ADULT SERVICES,V001155389
ROCHDALE BOROUGH COUNCIL,29/08/2017,PHYSICAL DIS & OLDER PEOPLE,DISABLED LIVING LTD,29/08/2017,1100.00 ,TRAINING,V001159224
ROCHDALE BOROUGH COUNCIL,14/08/2017,PUBLIC HEALTH,DISCLOSURE AND BARRING SERVICE,14/08/2017,2376.00 ,CRB CHECKS - LICENSING,V001159033
ROCHDALE BOROUGH COUNCIL,31/08/2017,RESOURCES,DISCLOSURE AND BARRING SERVICE,31/08/2017,5596.00 ,TRANSACTIONS-EXPENDITURE,V001163742
ROCHDALE BOROUGH COUNCIL,14/08/2017,NEIGHBOURHOODS AND ENVIRONMENT,DK MINIBUSES LTD,14/08/2017,1124.40 ,TAXI HIRE,V001159161
ROCHDALE BOROUGH COUNCIL,04/08/2017,PHYSICAL DIS & OLDER PEOPLE,DOVE CARE LTD,04/08/2017,920.00 ,RESIDENTIAL LONG TERM,V001155838
ROCHDALE BOROUGH COUNCIL,18/08/2017,PHYSICAL DIS & OLDER PEOPLE,DOVE CARE LTD,18/08/2017,920.00 ,RESIDENTIAL LONG TERM,V001160170
ROCHDALE BOROUGH COUNCIL,01/08/2017,NEIGHBOURHOODS AND ENVIRONMENT,DR ABDUL QUADER GANJIFROCKWALA,01/08/2017,2226.40 ,MEDICAL FEES,V001154246
ROCHDALE BOROUGH COUNCIL,01/08/2017,NEIGHBOURHOODS AND ENVIRONMENT,DR ABDUL QUADER GANJIFROCKWALA,01/08/2017,2233.00 ,HISTOLOGY PAYMENTS,V001154246
ROCHDALE BOROUGH COUNCIL,31/08/2017,NEIGHBOURHOODS AND ENVIRONMENT,DR ABDUL QUADER GANJIFROCKWALA,31/08/2017,2710.40 ,MEDICAL FEES,V001163260
ROCHDALE BOROUGH COUNCIL,31/08/2017,NEIGHBOURHOODS AND ENVIRONMENT,DR ABDUL QUADER GANJIFROCKWALA,31/08/2017,3824.00 ,HISTOLOGY PAYMENTS,V001163260
ROCHDALE BOROUGH COUNCIL,10/08/2017,NEIGHBOURHOODS AND ENVIRONMENT,DR ARUN MANOHARAN,10/08/2017,1064.80 ,MEDICAL FEES,V001157821
ROCHDALE BOROUGH COUNCIL,10/08/2017,NEIGHBOURHOODS AND ENVIRONMENT,DR ARUN MANOHARAN,10/08/2017,1377.00 ,HISTOLOGY PAYMENTS,V001157821
ROCHDALE BOROUGH COUNCIL,31/08/2017,NEIGHBOURHOODS AND ENVIRONMENT,DR ARUN MANOHARAN,31/08/2017,1742.40 ,MEDICAL FEES,V001163286
ROCHDALE BOROUGH COUNCIL,31/08/2017,NEIGHBOURHOODS AND ENVIRONMENT,DR ARUN MANOHARAN,31/08/2017,3244.00 ,HISTOLOGY PAYMENTS,V001163286
ROCHDALE BOROUGH COUNCIL,04/08/2017,PUBLIC HEALTH,DR G STOCKTON & DR L THOMPSON,04/08/2017,730.00 ,PH LCS PAYMENTS,V001155419
ROCHDALE BOROUGH COUNCIL,10/08/2017,NEIGHBOURHOODS AND ENVIRONMENT,DR S TITI,10/08/2017,2406.50 ,MEDICAL FEES,V001158777
ROCHDALE BOROUGH COUNCIL,10/08/2017,NEIGHBOURHOODS AND ENVIRONMENT,DR S TITI,10/08/2017,2871.00 ,HISTOLOGY PAYMENTS,V001158777
ROCHDALE BOROUGH COUNCIL,10/08/2017,NEIGHBOURHOODS AND ENVIRONMENT,DR S TITI,10/08/2017,3941.80 ,MEDICAL FEES,V001157741
ROCHDALE BOROUGH COUNCIL,10/08/2017,NEIGHBOURHOODS AND ENVIRONMENT,DR S TITI,10/08/2017,4147.00 ,HISTOLOGY PAYMENTS,V001157741
ROCHDALE BOROUGH COUNCIL,10/08/2017,NEIGHBOURHOODS AND ENVIRONMENT,DR VINITA CHARAN,10/08/2017,638.00 ,HISTOLOGY PAYMENTS,V001157823
ROCHDALE BOROUGH COUNCIL,10/08/2017,NEIGHBOURHOODS AND ENVIRONMENT,DR VINITA CHARAN,10/08/2017,677.60 ,MEDICAL FEES,V001157823
ROCHDALE BOROUGH COUNCIL,18/08/2017,PHYSICAL DIS & OLDER PEOPLE,DRB HEALTHCARE LTD,18/08/2017,-628.68 ,NURSING LONG TERM,V001160113
ROCHDALE BOROUGH COUNCIL,18/08/2017,PHYSICAL DIS & OLDER PEOPLE,DRB HEALTHCARE LTD,18/08/2017,-628.68 ,NURSING LONG TERM,V001160114
ROCHDALE BOROUGH COUNCIL,18/08/2017,PHYSICAL DIS & OLDER PEOPLE,DRB HEALTHCARE LTD,18/08/2017,-628.68 ,NURSING LONG TERM,V001160115
ROCHDALE BOROUGH COUNCIL,02/08/2017,PHYSICAL DIS & OLDER PEOPLE,DRB HEALTHCARE LTD,02/08/2017,537.14 ,PERSONAL BUDGETS - MANAGED,V001153320
ROCHDALE BOROUGH COUNCIL,04/08/2017,PHYSICAL DIS & OLDER PEOPLE,DRB HEALTHCARE LTD,04/08/2017,539.62 ,RESIDENTIAL LONG TERM,V001156168
ROCHDALE BOROUGH COUNCIL,18/08/2017,PHYSICAL DIS & OLDER PEOPLE,DRB HEALTHCARE LTD,18/08/2017,539.62 ,RESIDENTIAL LONG TERM,V001160586
ROCHDALE BOROUGH COUNCIL,04/08/2017,PHYSICAL DIS & OLDER PEOPLE,DRB HEALTHCARE LTD,04/08/2017,559.10 ,RESIDENTIAL LONG TERM,V001155888
ROCHDALE BOROUGH COUNCIL,18/08/2017,PHYSICAL DIS & OLDER PEOPLE,DRB HEALTHCARE LTD,18/08/2017,559.10 ,RESIDENTIAL LONG TERM,V001160236
ROCHDALE BOROUGH COUNCIL,04/08/2017,PHYSICAL DIS & OLDER PEOPLE,DRB HEALTHCARE LTD,04/08/2017,574.52 ,RESIDENTIAL LONG TERM,V001155711
ROCHDALE BOROUGH COUNCIL,18/08/2017,PHYSICAL DIS & OLDER PEOPLE,DRB HEALTHCARE LTD,18/08/2017,574.52 ,RESIDENTIAL LONG TERM,V001160021
ROCHDALE BOROUGH COUNCIL,04/08/2017,PHYSICAL DIS & OLDER PEOPLE,DRB HEALTHCARE LTD,04/08/2017,585.30 ,NURSING LONG TERM,V001155614
ROCHDALE BOROUGH COUNCIL,18/08/2017,PHYSICAL DIS & OLDER PEOPLE,DRB HEALTHCARE LTD,18/08/2017,585.30 ,NURSING LONG TERM,V001159917
ROCHDALE BOROUGH COUNCIL,18/08/2017,PHYSICAL DIS & OLDER PEOPLE,DRB HEALTHCARE LTD,18/08/2017,586.02 ,NURSING LONG TERM,V001160062
ROCHDALE BOROUGH COUNCIL,04/08/2017,PHYSICAL DIS & OLDER PEOPLE,DRB HEALTHCARE LTD,04/08/2017,596.24 ,NURSING LONG TERM,V001156192
ROCHDALE BOROUGH COUNCIL,18/08/2017,PHYSICAL DIS & OLDER PEOPLE,DRB HEALTHCARE LTD,18/08/2017,596.24 ,NURSING LONG TERM,V001160607
ROCHDALE BOROUGH COUNCIL,04/08/2017,LEARNING DIS & MENTAL HEALTH,DRB HEALTHCARE LTD,04/08/2017,596.36 ,RESIDENTIAL LONG TERM,V001155846
ROCHDALE BOROUGH COUNCIL,18/08/2017,LEARNING DIS & MENTAL HEALTH,DRB HEALTHCARE LTD,18/08/2017,596.36 ,RESIDENTIAL LONG TERM,V001160184
ROCHDALE BOROUGH COUNCIL,04/08/2017,PHYSICAL DIS & OLDER PEOPLE,DRB HEALTHCARE LTD,04/08/2017,600.46 ,NURSING LONG TERM,V001156337
ROCHDALE BOROUGH COUNCIL,18/08/2017,PHYSICAL DIS & OLDER PEOPLE,DRB HEALTHCARE LTD,18/08/2017,600.46 ,NURSING LONG TERM,V001160792
ROCHDALE BOROUGH COUNCIL,04/08/2017,LEARNING DIS & MENTAL HEALTH,DRB HEALTHCARE LTD,04/08/2017,611.38 ,RESIDENTIAL LONG TERM,V001155616
ROCHDALE BOROUGH COUNCIL,18/08/2017,LEARNING DIS & MENTAL HEALTH,DRB HEALTHCARE LTD,18/08/2017,611.38 ,RESIDENTIAL LONG TERM,V001159919
ROCHDALE BOROUGH COUNCIL,04/08/2017,PHYSICAL DIS & OLDER PEOPLE,DRB HEALTHCARE LTD,04/08/2017,628.68 ,NURSING LONG TERM,V001155786
ROCHDALE BOROUGH COUNCIL,04/08/2017,PHYSICAL DIS & OLDER PEOPLE,DRB HEALTHCARE LTD,04/08/2017,631.10 ,NURSING LONG TERM,V001155702
ROCHDALE BOROUGH COUNCIL,04/08/2017,PHYSICAL DIS & OLDER PEOPLE,DRB HEALTHCARE LTD,04/08/2017,631.10 ,RESIDENTIAL LONG TERM,V001155718
ROCHDALE BOROUGH COUNCIL,04/08/2017,PHYSICAL DIS & OLDER PEOPLE,DRB HEALTHCARE LTD,04/08/2017,631.10 ,RESIDENTIAL LONG TERM,V001155932
ROCHDALE BOROUGH COUNCIL,04/08/2017,PHYSICAL DIS & OLDER PEOPLE,DRB HEALTHCARE LTD,04/08/2017,631.10 ,RESIDENTIAL LONG TERM,V001156072
ROCHDALE BOROUGH COUNCIL,04/08/2017,PHYSICAL DIS & OLDER PEOPLE,DRB HEALTHCARE LTD,04/08/2017,631.10 ,RESIDENTIAL LONG TERM,V001156361
ROCHDALE BOROUGH COUNCIL,18/08/2017,PHYSICAL DIS & OLDER PEOPLE,DRB HEALTHCARE LTD,18/08/2017,631.10 ,NURSING LONG TERM,V001160008
ROCHDALE BOROUGH COUNCIL,18/08/2017,PHYSICAL DIS & OLDER PEOPLE,DRB HEALTHCARE LTD,18/08/2017,631.10 ,RESIDENTIAL LONG TERM,V001160029
ROCHDALE BOROUGH COUNCIL,18/08/2017,PHYSICAL DIS & OLDER PEOPLE,DRB HEALTHCARE LTD,18/08/2017,631.10 ,RESIDENTIAL LONG TERM,V001160297
ROCHDALE BOROUGH COUNCIL,18/08/2017,PHYSICAL DIS & OLDER PEOPLE,DRB HEALTHCARE LTD,18/08/2017,631.10 ,RESIDENTIAL LONG TERM,V001160441
ROCHDALE BOROUGH COUNCIL,18/08/2017,PHYSICAL DIS & OLDER PEOPLE,DRB HEALTHCARE LTD,18/08/2017,631.10 ,RESIDENTIAL LONG TERM,V001160829
ROCHDALE BOROUGH COUNCIL,02/08/2017,PHYSICAL DIS & OLDER PEOPLE,DRB HEALTHCARE LTD,02/08/2017,642.86 ,PERSONAL BUDGETS - MANAGED,V001133672
ROCHDALE BOROUGH COUNCIL,18/08/2017,PHYSICAL DIS & OLDER PEOPLE,DRB HEALTHCARE LTD,18/08/2017,642.86 ,SHORT TERM CARE - RESIDENTIAL,V001160964
ROCHDALE BOROUGH COUNCIL,04/08/2017,PHYSICAL DIS & OLDER PEOPLE,DRB HEALTHCARE LTD,04/08/2017,643.10 ,RESIDENTIAL LONG TERM,V001155931
ROCHDALE BOROUGH COUNCIL,18/08/2017,PHYSICAL DIS & OLDER PEOPLE,DRB HEALTHCARE LTD,18/08/2017,643.10 ,RESIDENTIAL LONG TERM,V001160296
ROCHDALE BOROUGH COUNCIL,04/08/2017,PHYSICAL DIS & OLDER PEOPLE,DRB HEALTHCARE LTD,04/08/2017,698.70 ,RESIDENTIAL LONG TERM,V001155933
ROCHDALE BOROUGH COUNCIL,18/08/2017,PHYSICAL DIS & OLDER PEOPLE,DRB HEALTHCARE LTD,18/08/2017,698.70 ,RESIDENTIAL LONG TERM,V001160298
ROCHDALE BOROUGH COUNCIL,04/08/2017,PHYSICAL DIS & OLDER PEOPLE,DRB HEALTHCARE LTD,04/08/2017,733.76 ,NURSING LONG TERM,V001155891
ROCHDALE BOROUGH COUNCIL,04/08/2017,PHYSICAL DIS & OLDER PEOPLE,DRB HEALTHCARE LTD,04/08/2017,771.43 ,ASSESSMENT CARE,V001156537
ROCHDALE BOROUGH COUNCIL,04/08/2017,PHYSICAL DIS & OLDER PEOPLE,DRB HEALTHCARE LTD,04/08/2017,848.52 ,NURSING LONG TERM,V001155712
ROCHDALE BOROUGH COUNCIL,18/08/2017,PHYSICAL DIS & OLDER PEOPLE,DRB HEALTHCARE LTD,18/08/2017,848.52 ,NURSING LONG TERM,V001160022
ROCHDALE BOROUGH COUNCIL,04/08/2017,PHYSICAL DIS & OLDER PEOPLE,DRB HEALTHCARE LTD,04/08/2017,900.00 ,SHORT TERM CARE - NURSING,V001155748
ROCHDALE BOROUGH COUNCIL,04/08/2017,PHYSICAL DIS & OLDER PEOPLE,DRB HEALTHCARE LTD,04/08/2017,900.00 ,ASSESSMENT CARE,V001156483
ROCHDALE BOROUGH COUNCIL,02/08/2017,PHYSICAL DIS & OLDER PEOPLE,DRB HEALTHCARE LTD,02/08/2017,940.00 ,PERSONAL BUDGETS - MANAGED,V001133840
ROCHDALE BOROUGH COUNCIL,04/08/2017,PHYSICAL DIS & OLDER PEOPLE,DRB HEALTHCARE LTD,04/08/2017,988.68 ,NURSING LONG TERM,V001156377
ROCHDALE BOROUGH COUNCIL,18/08/2017,PHYSICAL DIS & OLDER PEOPLE,DRB HEALTHCARE LTD,18/08/2017,988.68 ,NURSING LONG TERM,V001160845
ROCHDALE BOROUGH COUNCIL,04/08/2017,PHYSICAL DIS & OLDER PEOPLE,DRB HEALTHCARE LTD,04/08/2017,1078.70 ,NURSING LONG TERM,V001155545
ROCHDALE BOROUGH COUNCIL,04/08/2017,PHYSICAL DIS & OLDER PEOPLE,DRB HEALTHCARE LTD,04/08/2017,1078.70 ,NURSING LONG TERM,V001155922
ROCHDALE BOROUGH COUNCIL,04/08/2017,PHYSICAL DIS & OLDER PEOPLE,DRB HEALTHCARE LTD,04/08/2017,1078.70 ,NURSING LONG TERM,V001156089
ROCHDALE BOROUGH COUNCIL,18/08/2017,PHYSICAL DIS & OLDER PEOPLE,DRB HEALTHCARE LTD,18/08/2017,1078.70 ,NURSING LONG TERM,V001159870
ROCHDALE BOROUGH COUNCIL,18/08/2017,PHYSICAL DIS & OLDER PEOPLE,DRB HEALTHCARE LTD,18/08/2017,1078.70 ,NURSING LONG TERM,V001160277
ROCHDALE BOROUGH COUNCIL,18/08/2017,PHYSICAL DIS & OLDER PEOPLE,DRB HEALTHCARE LTD,18/08/2017,1078.70 ,NURSING LONG TERM,V001160458
ROCHDALE BOROUGH COUNCIL,04/08/2017,PHYSICAL DIS & OLDER PEOPLE,DRB HEALTHCARE LTD,04/08/2017,1280.00 ,NURSING LONG TERM,V001155802
ROCHDALE BOROUGH COUNCIL,18/08/2017,PHYSICAL DIS & OLDER PEOPLE,DRB HEALTHCARE LTD,18/08/2017,1280.00 ,NURSING LONG TERM,V001160134
ROCHDALE BOROUGH COUNCIL,02/08/2017,PHYSICAL DIS & OLDER PEOPLE,DRB HEALTHCARE LTD,02/08/2017,1346.55 ,PERSONAL BUDGETS - MANAGED,V001133839
ROCHDALE BOROUGH COUNCIL,02/08/2017,PHYSICAL DIS & OLDER PEOPLE,DRB HEALTHCARE LTD,02/08/2017,1452.55 ,PERSONAL BUDGETS - MANAGED,V001133671
ROCHDALE BOROUGH COUNCIL,25/08/2017,PHYSICAL DIS & OLDER PEOPLE,DRB HEALTHCARE LTD,25/08/2017,1800.00 ,PERSONAL BUDGETS - MANAGED,V001162619
ROCHDALE BOROUGH COUNCIL,15/08/2017,PHYSICAL DIS & OLDER PEOPLE,DRB HEALTHCARE LTD,15/08/2017,7200.00 ,RESIDENTIAL LONG TERM,V001159427
ROCHDALE BOROUGH COUNCIL,04/08/2017,PHYSICAL DIS & OLDER PEOPLE,DRYCLOUGH MANOR,04/08/2017,664.88 ,RESIDENTIAL LONG TERM,V001156226
ROCHDALE BOROUGH COUNCIL,18/08/2017,PHYSICAL DIS & OLDER PEOPLE,DRYCLOUGH MANOR,18/08/2017,664.88 ,RESIDENTIAL LONG TERM,V001160643
ROCHDALE BOROUGH COUNCIL,15/08/2017,ECONOMY DIRECTORATE,DUVAL FM LIMITED,15/08/2017,5456.10 ,SECURITY,V001158900
ROCHDALE BOROUGH COUNCIL,18/08/2017,CHILDREN�S SOCIAL CARE,E MARLAND CHILDRENS RESPITE CARE LIMITED,18/08/2017,1792.00 ,EBD (EMOT & BEHAV DIFF) PLACEMENTS,V001161195
ROCHDALE BOROUGH COUNCIL,18/08/2017,CHILDREN�S SOCIAL CARE,E MARLAND CHILDRENS RESPITE CARE LIMITED,18/08/2017,1792.00 ,EBD (EMOT & BEHAV DIFF) PLACEMENTS,V001161196
ROCHDALE BOROUGH COUNCIL,18/08/2017,CHILDREN�S SOCIAL CARE,E MARLAND CHILDRENS RESPITE CARE LIMITED,18/08/2017,1792.00 ,EBD (EMOT & BEHAV DIFF) PLACEMENTS,V001161198
ROCHDALE BOROUGH COUNCIL,18/08/2017,CHILDREN�S SOCIAL CARE,E MARLAND CHILDRENS RESPITE CARE LIMITED,18/08/2017,1792.00 ,EBD (EMOT & BEHAV DIFF) PLACEMENTS,V001161199
ROCHDALE BOROUGH COUNCIL,18/08/2017,CHILDREN�S SOCIAL CARE,E MARLAND CHILDRENS RESPITE CARE LIMITED,18/08/2017,1792.00 ,EBD (EMOT & BEHAV DIFF) PLACEMENTS,V001161201
ROCHDALE BOROUGH COUNCIL,25/08/2017,PROPERTY AND HIGHWAYS,E ON SUSTAINABLE ENERGY,25/08/2017,928.61 ,MAINTENANCE,V001154105
ROCHDALE BOROUGH COUNCIL,18/08/2017,PROPERTY AND HIGHWAYS,E ON SUSTAINABLE ENERGY,18/08/2017,1505.10 ,MINOR BUILDING WORKS,V001159517
ROCHDALE BOROUGH COUNCIL,04/08/2017,PHYSICAL DIS & OLDER PEOPLE,EAGLE CARE HOMES LTD,04/08/2017,510.92 ,RESIDENTIAL LONG TERM,V001155969
ROCHDALE BOROUGH COUNCIL,18/08/2017,PHYSICAL DIS & OLDER PEOPLE,EAGLE CARE HOMES LTD,18/08/2017,510.92 ,RESIDENTIAL LONG TERM,V001160342
ROCHDALE BOROUGH COUNCIL,18/08/2017,PHYSICAL DIS & OLDER PEOPLE,EAGLE CARE HOMES LTD,18/08/2017,514.29 ,ASSESSMENT CARE,V001160386
ROCHDALE BOROUGH COUNCIL,18/08/2017,LEARNING DIS & MENTAL HEALTH,EAGLE CARE HOMES LTD,18/08/2017,514.29 ,ASSESSMENT CARE,V001160985
ROCHDALE BOROUGH COUNCIL,04/08/2017,PHYSICAL DIS & OLDER PEOPLE,EAGLE CARE HOMES LTD,04/08/2017,518.54 ,RESIDENTIAL LONG TERM,V001156236
ROCHDALE BOROUGH COUNCIL,18/08/2017,PHYSICAL DIS & OLDER PEOPLE,EAGLE CARE HOMES LTD,18/08/2017,518.54 ,RESIDENTIAL LONG TERM,V001160664
ROCHDALE BOROUGH COUNCIL,04/08/2017,PHYSICAL DIS & OLDER PEOPLE,EAGLE CARE HOMES LTD,04/08/2017,528.54 ,RESIDENTIAL LONG TERM,V001155714
ROCHDALE BOROUGH COUNCIL,18/08/2017,PHYSICAL DIS & OLDER PEOPLE,EAGLE CARE HOMES LTD,18/08/2017,528.54 ,RESIDENTIAL LONG TERM,V001160026
ROCHDALE BOROUGH COUNCIL,04/08/2017,PHYSICAL DIS & OLDER PEOPLE,EAGLE CARE HOMES LTD,04/08/2017,553.98 ,RESIDENTIAL LONG TERM,V001156136
ROCHDALE BOROUGH COUNCIL,18/08/2017,PHYSICAL DIS & OLDER PEOPLE,EAGLE CARE HOMES LTD,18/08/2017,553.98 ,RESIDENTIAL LONG TERM,V001160515
ROCHDALE BOROUGH COUNCIL,04/08/2017,PHYSICAL DIS & OLDER PEOPLE,EAGLE CARE HOMES LTD,04/08/2017,563.46 ,RESIDENTIAL LONG TERM,V001155963
ROCHDALE BOROUGH COUNCIL,18/08/2017,PHYSICAL DIS & OLDER PEOPLE,EAGLE CARE HOMES LTD,18/08/2017,563.46 ,RESIDENTIAL LONG TERM,V001160336
ROCHDALE BOROUGH COUNCIL,04/08/2017,PHYSICAL DIS & OLDER PEOPLE,EAGLE CARE HOMES LTD,04/08/2017,570.90 ,RESIDENTIAL LONG TERM,V001156024
ROCHDALE BOROUGH COUNCIL,18/08/2017,PHYSICAL DIS & OLDER PEOPLE,EAGLE CARE HOMES LTD,18/08/2017,570.90 ,RESIDENTIAL LONG TERM,V001160394
ROCHDALE BOROUGH COUNCIL,04/08/2017,PHYSICAL DIS & OLDER PEOPLE,EAGLE CARE HOMES LTD,04/08/2017,579.96 ,RESIDENTIAL LONG TERM,V001156417
ROCHDALE BOROUGH COUNCIL,18/08/2017,PHYSICAL DIS & OLDER PEOPLE,EAGLE CARE HOMES LTD,18/08/2017,579.96 ,RESIDENTIAL LONG TERM,V001160897
ROCHDALE BOROUGH COUNCIL,04/08/2017,PHYSICAL DIS & OLDER PEOPLE,EAGLE CARE HOMES LTD,04/08/2017,580.72 ,RESIDENTIAL LONG TERM,V001156292
ROCHDALE BOROUGH COUNCIL,18/08/2017,PHYSICAL DIS & OLDER PEOPLE,EAGLE CARE HOMES LTD,18/08/2017,580.72 ,RESIDENTIAL LONG TERM,V001160738
ROCHDALE BOROUGH COUNCIL,04/08/2017,PHYSICAL DIS & OLDER PEOPLE,EAGLE CARE HOMES LTD,04/08/2017,582.26 ,RESIDENTIAL LONG TERM,V001156304
ROCHDALE BOROUGH COUNCIL,18/08/2017,PHYSICAL DIS & OLDER PEOPLE,EAGLE CARE HOMES LTD,18/08/2017,582.26 ,RESIDENTIAL LONG TERM,V001160766
ROCHDALE BOROUGH COUNCIL,04/08/2017,PHYSICAL DIS & OLDER PEOPLE,EAGLE CARE HOMES LTD,04/08/2017,583.00 ,RESIDENTIAL LONG TERM,V001156298
ROCHDALE BOROUGH COUNCIL,18/08/2017,PHYSICAL DIS & OLDER PEOPLE,EAGLE CARE HOMES LTD,18/08/2017,583.00 ,RESIDENTIAL LONG TERM,V001160744
ROCHDALE BOROUGH COUNCIL,04/08/2017,PHYSICAL DIS & OLDER PEOPLE,EAGLE CARE HOMES LTD,04/08/2017,585.18 ,RESIDENTIAL LONG TERM,V001156003
ROCHDALE BOROUGH COUNCIL,18/08/2017,PHYSICAL DIS & OLDER PEOPLE,EAGLE CARE HOMES LTD,18/08/2017,585.18 ,RESIDENTIAL LONG TERM,V001160370
ROCHDALE BOROUGH COUNCIL,04/08/2017,PHYSICAL DIS & OLDER PEOPLE,EAGLE CARE HOMES LTD,04/08/2017,594.46 ,RESIDENTIAL LONG TERM,V001156353
ROCHDALE BOROUGH COUNCIL,18/08/2017,PHYSICAL DIS & OLDER PEOPLE,EAGLE CARE HOMES LTD,18/08/2017,594.46 ,RESIDENTIAL LONG TERM,V001160820
ROCHDALE BOROUGH COUNCIL,04/08/2017,PHYSICAL DIS & OLDER PEOPLE,EAGLE CARE HOMES LTD,04/08/2017,604.52 ,RESIDENTIAL LONG TERM,V001155815
ROCHDALE BOROUGH COUNCIL,18/08/2017,PHYSICAL DIS & OLDER PEOPLE,EAGLE CARE HOMES LTD,18/08/2017,604.52 ,RESIDENTIAL LONG TERM,V001160149
ROCHDALE BOROUGH COUNCIL,04/08/2017,PHYSICAL DIS & OLDER PEOPLE,EAGLE CARE HOMES LTD,04/08/2017,605.68 ,RESIDENTIAL LONG TERM,V001156068
ROCHDALE BOROUGH COUNCIL,18/08/2017,PHYSICAL DIS & OLDER PEOPLE,EAGLE CARE HOMES LTD,18/08/2017,605.68 ,RESIDENTIAL LONG TERM,V001160433
ROCHDALE BOROUGH COUNCIL,04/08/2017,PHYSICAL DIS & OLDER PEOPLE,EAGLE CARE HOMES LTD,04/08/2017,606.02 ,RESIDENTIAL LONG TERM,V001155877
ROCHDALE BOROUGH COUNCIL,18/08/2017,PHYSICAL DIS & OLDER PEOPLE,EAGLE CARE HOMES LTD,18/08/2017,606.02 ,RESIDENTIAL LONG TERM,V001160223
ROCHDALE BOROUGH COUNCIL,04/08/2017,PHYSICAL DIS & OLDER PEOPLE,EAGLE CARE HOMES LTD,04/08/2017,618.74 ,RESIDENTIAL LONG TERM,V001155779
ROCHDALE BOROUGH COUNCIL,18/08/2017,PHYSICAL DIS & OLDER PEOPLE,EAGLE CARE HOMES LTD,18/08/2017,618.74 ,RESIDENTIAL LONG TERM,V001160098
ROCHDALE BOROUGH COUNCIL,04/08/2017,PHYSICAL DIS & OLDER PEOPLE,EAGLE CARE HOMES LTD,04/08/2017,621.60 ,RESIDENTIAL LONG TERM,V001156387
ROCHDALE BOROUGH COUNCIL,18/08/2017,PHYSICAL DIS & OLDER PEOPLE,EAGLE CARE HOMES LTD,18/08/2017,621.60 ,RESIDENTIAL LONG TERM,V001160866
ROCHDALE BOROUGH COUNCIL,04/08/2017,PHYSICAL DIS & OLDER PEOPLE,EAGLE CARE HOMES LTD,04/08/2017,628.10 ,RESIDENTIAL LONG TERM,V001155916
ROCHDALE BOROUGH COUNCIL,18/08/2017,PHYSICAL DIS & OLDER PEOPLE,EAGLE CARE HOMES LTD,18/08/2017,628.10 ,RESIDENTIAL LONG TERM,V001160271
ROCHDALE BOROUGH COUNCIL,04/08/2017,LEARNING DIS & MENTAL HEALTH,EAGLE CARE HOMES LTD,04/08/2017,628.94 ,RESIDENTIAL LONG TERM,V001156107
ROCHDALE BOROUGH COUNCIL,18/08/2017,LEARNING DIS & MENTAL HEALTH,EAGLE CARE HOMES LTD,18/08/2017,628.94 ,RESIDENTIAL LONG TERM,V001160480
ROCHDALE BOROUGH COUNCIL,04/08/2017,PHYSICAL DIS & OLDER PEOPLE,EAGLE CARE HOMES LTD,04/08/2017,631.10 ,RESIDENTIAL LONG TERM,V001155867
ROCHDALE BOROUGH COUNCIL,04/08/2017,PHYSICAL DIS & OLDER PEOPLE,EAGLE CARE HOMES LTD,04/08/2017,631.10 ,RESIDENTIAL LONG TERM,V001156046
ROCHDALE BOROUGH COUNCIL,04/08/2017,PHYSICAL DIS & OLDER PEOPLE,EAGLE CARE HOMES LTD,04/08/2017,631.10 ,RESIDENTIAL LONG TERM,V001156118
ROCHDALE BOROUGH COUNCIL,04/08/2017,PHYSICAL DIS & OLDER PEOPLE,EAGLE CARE HOMES LTD,04/08/2017,631.10 ,RESIDENTIAL LONG TERM,V001156239
ROCHDALE BOROUGH COUNCIL,04/08/2017,PHYSICAL DIS & OLDER PEOPLE,EAGLE CARE HOMES LTD,04/08/2017,631.10 ,RESIDENTIAL LONG TERM,V001156253
ROCHDALE BOROUGH COUNCIL,04/08/2017,PHYSICAL DIS & OLDER PEOPLE,EAGLE CARE HOMES LTD,04/08/2017,631.10 ,RESIDENTIAL LONG TERM,V001156369
ROCHDALE BOROUGH COUNCIL,18/08/2017,PHYSICAL DIS & OLDER PEOPLE,EAGLE CARE HOMES LTD,18/08/2017,631.10 ,RESIDENTIAL LONG TERM,V001160211
ROCHDALE BOROUGH COUNCIL,18/08/2017,PHYSICAL DIS & OLDER PEOPLE,EAGLE CARE HOMES LTD,18/08/2017,631.10 ,RESIDENTIAL LONG TERM,V001160385
ROCHDALE BOROUGH COUNCIL,18/08/2017,PHYSICAL DIS & OLDER PEOPLE,EAGLE CARE HOMES LTD,18/08/2017,631.10 ,RESIDENTIAL LONG TERM,V001160411
ROCHDALE BOROUGH COUNCIL,18/08/2017,PHYSICAL DIS & OLDER PEOPLE,EAGLE CARE HOMES LTD,18/08/2017,631.10 ,RESIDENTIAL LONG TERM,V001160501
ROCHDALE BOROUGH COUNCIL,18/08/2017,PHYSICAL DIS & OLDER PEOPLE,EAGLE CARE HOMES LTD,18/08/2017,631.10 ,RESIDENTIAL LONG TERM,V001160667
ROCHDALE BOROUGH COUNCIL,18/08/2017,PHYSICAL DIS & OLDER PEOPLE,EAGLE CARE HOMES LTD,18/08/2017,631.10 ,RESIDENTIAL LONG TERM,V001160680
ROCHDALE BOROUGH COUNCIL,18/08/2017,PHYSICAL DIS & OLDER PEOPLE,EAGLE CARE HOMES LTD,18/08/2017,631.10 ,RESIDENTIAL LONG TERM,V001160834
ROCHDALE BOROUGH COUNCIL,04/08/2017,PHYSICAL DIS & OLDER PEOPLE,EAGLE CARE HOMES LTD,04/08/2017,642.86 ,SHORT TERM CARE - RESIDENTIAL,V001156532
ROCHDALE BOROUGH COUNCIL,04/08/2017,PHYSICAL DIS & OLDER PEOPLE,EAGLE CARE HOMES LTD,04/08/2017,645.10 ,RESIDENTIAL LONG TERM,V001155536
ROCHDALE BOROUGH COUNCIL,04/08/2017,PHYSICAL DIS & OLDER PEOPLE,EAGLE CARE HOMES LTD,04/08/2017,645.10 ,RESIDENTIAL LONG TERM,V001155684
ROCHDALE BOROUGH COUNCIL,04/08/2017,PHYSICAL DIS & OLDER PEOPLE,EAGLE CARE HOMES LTD,04/08/2017,645.10 ,RESIDENTIAL LONG TERM,V001155972
ROCHDALE BOROUGH COUNCIL,04/08/2017,PHYSICAL DIS & OLDER PEOPLE,EAGLE CARE HOMES LTD,04/08/2017,645.10 ,RESIDENTIAL LONG TERM,V001155995
ROCHDALE BOROUGH COUNCIL,04/08/2017,PHYSICAL DIS & OLDER PEOPLE,EAGLE CARE HOMES LTD,04/08/2017,645.10 ,RESIDENTIAL LONG TERM,V001156210
ROCHDALE BOROUGH COUNCIL,18/08/2017,PHYSICAL DIS & OLDER PEOPLE,EAGLE CARE HOMES LTD,18/08/2017,645.10 ,RESIDENTIAL LONG TERM,V001159858
ROCHDALE BOROUGH COUNCIL,18/08/2017,PHYSICAL DIS & OLDER PEOPLE,EAGLE CARE HOMES LTD,18/08/2017,645.10 ,RESIDENTIAL LONG TERM,V001159984
ROCHDALE BOROUGH COUNCIL,18/08/2017,PHYSICAL DIS & OLDER PEOPLE,EAGLE CARE HOMES LTD,18/08/2017,645.10 ,RESIDENTIAL LONG TERM,V001160345
ROCHDALE BOROUGH COUNCIL,18/08/2017,PHYSICAL DIS & OLDER PEOPLE,EAGLE CARE HOMES LTD,18/08/2017,645.10 ,RESIDENTIAL LONG TERM,V001160360
ROCHDALE BOROUGH COUNCIL,18/08/2017,PHYSICAL DIS & OLDER PEOPLE,EAGLE CARE HOMES LTD,18/08/2017,645.10 ,RESIDENTIAL LONG TERM,V001160629
ROCHDALE BOROUGH COUNCIL,04/08/2017,PHYSICAL DIS & OLDER PEOPLE,EAGLE CARE HOMES LTD,04/08/2017,647.10 ,RESIDENTIAL LONG TERM,V001155812
ROCHDALE BOROUGH COUNCIL,18/08/2017,PHYSICAL DIS & OLDER PEOPLE,EAGLE CARE HOMES LTD,18/08/2017,647.10 ,RESIDENTIAL LONG TERM,V001160144
ROCHDALE BOROUGH COUNCIL,04/08/2017,PHYSICAL DIS & OLDER PEOPLE,EAGLE CARE HOMES LTD,04/08/2017,653.10 ,RESIDENTIAL LONG TERM,V001156342
ROCHDALE BOROUGH COUNCIL,18/08/2017,PHYSICAL DIS & OLDER PEOPLE,EAGLE CARE HOMES LTD,18/08/2017,653.10 ,RESIDENTIAL LONG TERM,V001160801
ROCHDALE BOROUGH COUNCIL,04/08/2017,PHYSICAL DIS & OLDER PEOPLE,EAGLE CARE HOMES LTD,04/08/2017,695.92 ,SELF - FUNDING DEFERRED PAYMENTS,V001156476
ROCHDALE BOROUGH COUNCIL,18/08/2017,PHYSICAL DIS & OLDER PEOPLE,EAGLE CARE HOMES LTD,18/08/2017,695.92 ,SELF - FUNDING DEFERRED PAYMENTS,V001160953
ROCHDALE BOROUGH COUNCIL,04/08/2017,PHYSICAL DIS & OLDER PEOPLE,EAGLE CARE HOMES LTD,04/08/2017,738.92 ,RESIDENTIAL LONG TERM,V001155991
ROCHDALE BOROUGH COUNCIL,18/08/2017,PHYSICAL DIS & OLDER PEOPLE,EAGLE CARE HOMES LTD,18/08/2017,738.92 ,RESIDENTIAL LONG TERM,V001160357
ROCHDALE BOROUGH COUNCIL,18/08/2017,PHYSICAL DIS & OLDER PEOPLE,EAGLE CARE HOMES LTD,18/08/2017,848.71 ,RESIDENTIAL LONG TERM,V001160882
ROCHDALE BOROUGH COUNCIL,04/08/2017,LEARNING DIS & MENTAL HEALTH,EAGLE CARE HOMES LTD,04/08/2017,900.00 ,RESIDENTIAL LONG TERM,V001155964
ROCHDALE BOROUGH COUNCIL,04/08/2017,PHYSICAL DIS & OLDER PEOPLE,EAGLE CARE HOMES LTD,04/08/2017,900.00 ,SHORT TERM CARE - RESIDENTIAL,V001156477
ROCHDALE BOROUGH COUNCIL,04/08/2017,PHYSICAL DIS & OLDER PEOPLE,EAGLE CARE HOMES LTD,04/08/2017,900.00 ,SHORT TERM CARE - RESIDENTIAL,V001156533
ROCHDALE BOROUGH COUNCIL,18/08/2017,LEARNING DIS & MENTAL HEALTH,EAGLE CARE HOMES LTD,18/08/2017,900.00 ,RESIDENTIAL LONG TERM,V001160337
ROCHDALE BOROUGH COUNCIL,18/08/2017,PHYSICAL DIS & OLDER PEOPLE,EAGLE CARE HOMES LTD,18/08/2017,900.00 ,SHORT TERM CARE - RESIDENTIAL,V001161012
ROCHDALE BOROUGH COUNCIL,04/08/2017,PHYSICAL DIS & OLDER PEOPLE,EAGLE CARE HOMES LTD,04/08/2017,914.00 ,RESIDENTIAL LONG TERM,V001155894
ROCHDALE BOROUGH COUNCIL,04/08/2017,PHYSICAL DIS & OLDER PEOPLE,EAGLE CARE HOMES LTD,04/08/2017,914.00 ,SHORT TERM CARE - RESIDENTIAL,V001156076
ROCHDALE BOROUGH COUNCIL,04/08/2017,PHYSICAL DIS & OLDER PEOPLE,EAGLE CARE HOMES LTD,04/08/2017,914.00 ,RESIDENTIAL LONG TERM,V001156415
ROCHDALE BOROUGH COUNCIL,18/08/2017,PHYSICAL DIS & OLDER PEOPLE,EAGLE CARE HOMES LTD,18/08/2017,914.00 ,RESIDENTIAL LONG TERM,V001160240
ROCHDALE BOROUGH COUNCIL,18/08/2017,PHYSICAL DIS & OLDER PEOPLE,EAGLE CARE HOMES LTD,18/08/2017,914.00 ,SHORT TERM CARE - RESIDENTIAL,V001160445
ROCHDALE BOROUGH COUNCIL,18/08/2017,PHYSICAL DIS & OLDER PEOPLE,EAGLE CARE HOMES LTD,18/08/2017,914.00 ,RESIDENTIAL LONG TERM,V001160895
ROCHDALE BOROUGH COUNCIL,30/08/2017,PHYSICAL DIS & OLDER PEOPLE,EAGLE CARE HOMES LTD,30/08/2017,1105.10 ,SHORT TERM CARE - RESIDENTIAL,V001163453
ROCHDALE BOROUGH COUNCIL,10/08/2017,PHYSICAL DIS & OLDER PEOPLE,EAGLE CARE HOMES LTD,10/08/2017,2816.43 ,RESIDENTIAL LONG TERM,V001158552
ROCHDALE BOROUGH COUNCIL,10/08/2017,PHYSICAL DIS & OLDER PEOPLE,EAGLE CARE HOMES LTD,10/08/2017,3097.44 ,RESIDENTIAL LONG TERM,V001158553
ROCHDALE BOROUGH COUNCIL,23/08/2017,NEIGHBOURHOODS AND ENVIRONMENT,EARLEY ORNAMENTALS LTD,23/08/2017,856.60 ,"TREES, SHRUBS, PLANTS",V001161221
ROCHDALE BOROUGH COUNCIL,08/08/2017,NEIGHBOURHOODS AND ENVIRONMENT,EARLEY ORNAMENTALS LTD,08/08/2017,3174.36 ,"TREES, SHRUBS, PLANTS",V001157818
ROCHDALE BOROUGH COUNCIL,01/08/2017,NEIGHBOURHOODS AND ENVIRONMENT,EASIBIND INTERNATIONAL LIMITED,01/08/2017,3216.12 ,EQUIPMENT - GENERAL,V001152306
ROCHDALE BOROUGH COUNCIL,04/08/2017,PHYSICAL DIS & OLDER PEOPLE,EAST AND WEST HEALTHCARE LIMITED,04/08/2017,533.40 ,RESIDENTIAL LONG TERM,V001156281
ROCHDALE BOROUGH COUNCIL,18/08/2017,PHYSICAL DIS & OLDER PEOPLE,EAST AND WEST HEALTHCARE LIMITED,18/08/2017,533.40 ,RESIDENTIAL LONG TERM,V001160722
ROCHDALE BOROUGH COUNCIL,04/08/2017,PHYSICAL DIS & OLDER PEOPLE,EAST AND WEST HEALTHCARE LIMITED,04/08/2017,542.70 ,NURSING LONG TERM,V001156383
ROCHDALE BOROUGH COUNCIL,18/08/2017,PHYSICAL DIS & OLDER PEOPLE,EAST AND WEST HEALTHCARE LIMITED,18/08/2017,542.70 ,NURSING LONG TERM,V001160852
ROCHDALE BOROUGH COUNCIL,04/08/2017,PHYSICAL DIS & OLDER PEOPLE,EAST AND WEST HEALTHCARE LIMITED,04/08/2017,543.78 ,RESIDENTIAL LONG TERM,V001155847
ROCHDALE BOROUGH COUNCIL,18/08/2017,PHYSICAL DIS & OLDER PEOPLE,EAST AND WEST HEALTHCARE LIMITED,18/08/2017,543.78 ,RESIDENTIAL LONG TERM,V001160185
ROCHDALE BOROUGH COUNCIL,04/08/2017,PHYSICAL DIS & OLDER PEOPLE,EAST AND WEST HEALTHCARE LIMITED,04/08/2017,545.90 ,RESIDENTIAL LONG TERM,V001155973
ROCHDALE BOROUGH COUNCIL,18/08/2017,PHYSICAL DIS & OLDER PEOPLE,EAST AND WEST HEALTHCARE LIMITED,18/08/2017,545.90 ,RESIDENTIAL LONG TERM,V001160346
ROCHDALE BOROUGH COUNCIL,04/08/2017,PHYSICAL DIS & OLDER PEOPLE,EAST AND WEST HEALTHCARE LIMITED,04/08/2017,554.32 ,NURSING LONG TERM,V001155528
ROCHDALE BOROUGH COUNCIL,18/08/2017,PHYSICAL DIS & OLDER PEOPLE,EAST AND WEST HEALTHCARE LIMITED,18/08/2017,554.32 ,NURSING LONG TERM,V001159856
ROCHDALE BOROUGH COUNCIL,04/08/2017,PHYSICAL DIS & OLDER PEOPLE,EAST AND WEST HEALTHCARE LIMITED,04/08/2017,559.04 ,NURSING LONG TERM,V001156509
ROCHDALE BOROUGH COUNCIL,18/08/2017,PHYSICAL DIS & OLDER PEOPLE,EAST AND WEST HEALTHCARE LIMITED,18/08/2017,559.04 ,NURSING LONG TERM,V001160981
ROCHDALE BOROUGH COUNCIL,04/08/2017,PHYSICAL DIS & OLDER PEOPLE,EAST AND WEST HEALTHCARE LIMITED,04/08/2017,564.40 ,NURSING LONG TERM,V001156106
ROCHDALE BOROUGH COUNCIL,18/08/2017,PHYSICAL DIS & OLDER PEOPLE,EAST AND WEST HEALTHCARE LIMITED,18/08/2017,564.40 ,NURSING LONG TERM,V001160479
ROCHDALE BOROUGH COUNCIL,04/08/2017,PHYSICAL DIS & OLDER PEOPLE,EAST AND WEST HEALTHCARE LIMITED,04/08/2017,586.74 ,NURSING LONG TERM,V001156321
ROCHDALE BOROUGH COUNCIL,18/08/2017,PHYSICAL DIS & OLDER PEOPLE,EAST AND WEST HEALTHCARE LIMITED,18/08/2017,586.74 ,NURSING LONG TERM,V001160777
ROCHDALE BOROUGH COUNCIL,04/08/2017,PHYSICAL DIS & OLDER PEOPLE,EAST AND WEST HEALTHCARE LIMITED,04/08/2017,590.62 ,NURSING LONG TERM,V001156185
ROCHDALE BOROUGH COUNCIL,18/08/2017,PHYSICAL DIS & OLDER PEOPLE,EAST AND WEST HEALTHCARE LIMITED,18/08/2017,590.62 ,NURSING LONG TERM,V001160600
ROCHDALE BOROUGH COUNCIL,04/08/2017,PHYSICAL DIS & OLDER PEOPLE,EAST AND WEST HEALTHCARE LIMITED,04/08/2017,596.68 ,RESIDENTIAL LONG TERM,V001155788
ROCHDALE BOROUGH COUNCIL,18/08/2017,PHYSICAL DIS & OLDER PEOPLE,EAST AND WEST HEALTHCARE LIMITED,18/08/2017,596.68 ,RESIDENTIAL LONG TERM,V001160117
ROCHDALE BOROUGH COUNCIL,04/08/2017,PHYSICAL DIS & OLDER PEOPLE,EAST AND WEST HEALTHCARE LIMITED,04/08/2017,631.10 ,NURSING LONG TERM,V001155747
ROCHDALE BOROUGH COUNCIL,04/08/2017,PHYSICAL DIS & OLDER PEOPLE,EAST AND WEST HEALTHCARE LIMITED,04/08/2017,631.10 ,RESIDENTIAL LONG TERM,V001156111
ROCHDALE BOROUGH COUNCIL,04/08/2017,PHYSICAL DIS & OLDER PEOPLE,EAST AND WEST HEALTHCARE LIMITED,04/08/2017,631.10 ,NURSING LONG TERM,V001156113
ROCHDALE BOROUGH COUNCIL,04/08/2017,PHYSICAL DIS & OLDER PEOPLE,EAST AND WEST HEALTHCARE LIMITED,04/08/2017,631.10 ,RESIDENTIAL LONG TERM,V001156359
ROCHDALE BOROUGH COUNCIL,04/08/2017,PHYSICAL DIS & OLDER PEOPLE,EAST AND WEST HEALTHCARE LIMITED,04/08/2017,631.10 ,NURSING LONG TERM,V001156553
ROCHDALE BOROUGH COUNCIL,18/08/2017,PHYSICAL DIS & OLDER PEOPLE,EAST AND WEST HEALTHCARE LIMITED,18/08/2017,631.10 ,NURSING LONG TERM,V001160061
ROCHDALE BOROUGH COUNCIL,18/08/2017,PHYSICAL DIS & OLDER PEOPLE,EAST AND WEST HEALTHCARE LIMITED,18/08/2017,631.10 ,RESIDENTIAL LONG TERM,V001160494
ROCHDALE BOROUGH COUNCIL,18/08/2017,PHYSICAL DIS & OLDER PEOPLE,EAST AND WEST HEALTHCARE LIMITED,18/08/2017,631.10 ,NURSING LONG TERM,V001160496
ROCHDALE BOROUGH COUNCIL,18/08/2017,PHYSICAL DIS & OLDER PEOPLE,EAST AND WEST HEALTHCARE LIMITED,18/08/2017,631.10 ,RESIDENTIAL LONG TERM,V001160827
ROCHDALE BOROUGH COUNCIL,04/08/2017,PHYSICAL DIS & OLDER PEOPLE,EAST AND WEST HEALTHCARE LIMITED,04/08/2017,635.68 ,RESIDENTIAL LONG TERM,V001155555
ROCHDALE BOROUGH COUNCIL,18/08/2017,PHYSICAL DIS & OLDER PEOPLE,EAST AND WEST HEALTHCARE LIMITED,18/08/2017,635.68 ,RESIDENTIAL LONG TERM,V001159880
ROCHDALE BOROUGH COUNCIL,04/08/2017,PHYSICAL DIS & OLDER PEOPLE,EAST AND WEST HEALTHCARE LIMITED,04/08/2017,639.10 ,NURSING LONG TERM,V001156109
ROCHDALE BOROUGH COUNCIL,18/08/2017,PHYSICAL DIS & OLDER PEOPLE,EAST AND WEST HEALTHCARE LIMITED,18/08/2017,639.10 ,NURSING LONG TERM,V001160492
ROCHDALE BOROUGH COUNCIL,04/08/2017,PHYSICAL DIS & OLDER PEOPLE,EAST AND WEST HEALTHCARE LIMITED,04/08/2017,639.72 ,RESIDENTIAL LONG TERM,V001155550
ROCHDALE BOROUGH COUNCIL,18/08/2017,PHYSICAL DIS & OLDER PEOPLE,EAST AND WEST HEALTHCARE LIMITED,18/08/2017,639.72 ,RESIDENTIAL LONG TERM,V001159875
ROCHDALE BOROUGH COUNCIL,04/08/2017,PHYSICAL DIS & OLDER PEOPLE,EAST AND WEST HEALTHCARE LIMITED,04/08/2017,645.10 ,RESIDENTIAL LONG TERM,V001156202
ROCHDALE BOROUGH COUNCIL,18/08/2017,PHYSICAL DIS & OLDER PEOPLE,EAST AND WEST HEALTHCARE LIMITED,18/08/2017,645.10 ,RESIDENTIAL LONG TERM,V001160617
ROCHDALE BOROUGH COUNCIL,04/08/2017,PHYSICAL DIS & OLDER PEOPLE,EAST AND WEST HEALTHCARE LIMITED,04/08/2017,650.24 ,RESIDENTIAL LONG TERM,V001156062
ROCHDALE BOROUGH COUNCIL,18/08/2017,PHYSICAL DIS & OLDER PEOPLE,EAST AND WEST HEALTHCARE LIMITED,18/08/2017,650.24 ,RESIDENTIAL LONG TERM,V001160427
ROCHDALE BOROUGH COUNCIL,04/08/2017,LEARNING DIS & MENTAL HEALTH,EAST AND WEST HEALTHCARE LIMITED,04/08/2017,656.44 ,RESIDENTIAL LONG TERM,V001155842
ROCHDALE BOROUGH COUNCIL,18/08/2017,LEARNING DIS & MENTAL HEALTH,EAST AND WEST HEALTHCARE LIMITED,18/08/2017,656.44 ,RESIDENTIAL LONG TERM,V001160181
ROCHDALE BOROUGH COUNCIL,04/08/2017,PHYSICAL DIS & OLDER PEOPLE,EAST AND WEST HEALTHCARE LIMITED,04/08/2017,658.20 ,RESIDENTIAL LONG TERM,V001156441
ROCHDALE BOROUGH COUNCIL,18/08/2017,PHYSICAL DIS & OLDER PEOPLE,EAST AND WEST HEALTHCARE LIMITED,18/08/2017,658.20 ,RESIDENTIAL LONG TERM,V001160924
ROCHDALE BOROUGH COUNCIL,04/08/2017,PHYSICAL DIS & OLDER PEOPLE,EAST AND WEST HEALTHCARE LIMITED,04/08/2017,671.10 ,NURSING LONG TERM,V001155657
ROCHDALE BOROUGH COUNCIL,04/08/2017,LEARNING DIS & MENTAL HEALTH,EAST AND WEST HEALTHCARE LIMITED,04/08/2017,671.10 ,NURSING LONG TERM,V001156097
ROCHDALE BOROUGH COUNCIL,18/08/2017,PHYSICAL DIS & OLDER PEOPLE,EAST AND WEST HEALTHCARE LIMITED,18/08/2017,671.10 ,NURSING LONG TERM,V001159963
ROCHDALE BOROUGH COUNCIL,18/08/2017,LEARNING DIS & MENTAL HEALTH,EAST AND WEST HEALTHCARE LIMITED,18/08/2017,671.10 ,NURSING LONG TERM,V001160468
ROCHDALE BOROUGH COUNCIL,04/08/2017,PHYSICAL DIS & OLDER PEOPLE,EAST AND WEST HEALTHCARE LIMITED,04/08/2017,681.10 ,NURSING LONG TERM,V001155558
ROCHDALE BOROUGH COUNCIL,18/08/2017,PHYSICAL DIS & OLDER PEOPLE,EAST AND WEST HEALTHCARE LIMITED,18/08/2017,681.10 ,NURSING LONG TERM,V001159883
ROCHDALE BOROUGH COUNCIL,04/08/2017,PHYSICAL DIS & OLDER PEOPLE,EAST AND WEST HEALTHCARE LIMITED,04/08/2017,698.50 ,NURSING LONG TERM,V001156061
ROCHDALE BOROUGH COUNCIL,18/08/2017,PHYSICAL DIS & OLDER PEOPLE,EAST AND WEST HEALTHCARE LIMITED,18/08/2017,698.50 ,NURSING LONG TERM,V001160426
ROCHDALE BOROUGH COUNCIL,04/08/2017,PHYSICAL DIS & OLDER PEOPLE,EAST AND WEST HEALTHCARE LIMITED,04/08/2017,707.14 ,ASSESSMENT CARE,V001156453
ROCHDALE BOROUGH COUNCIL,04/08/2017,LEARNING DIS & MENTAL HEALTH,EAST AND WEST HEALTHCARE LIMITED,04/08/2017,736.50 ,NURSING LONG TERM,V001155604
ROCHDALE BOROUGH COUNCIL,18/08/2017,LEARNING DIS & MENTAL HEALTH,EAST AND WEST HEALTHCARE LIMITED,18/08/2017,736.50 ,NURSING LONG TERM,V001159907
ROCHDALE BOROUGH COUNCIL,04/08/2017,PHYSICAL DIS & OLDER PEOPLE,EAST AND WEST HEALTHCARE LIMITED,04/08/2017,738.50 ,NURSING LONG TERM,V001156526
ROCHDALE BOROUGH COUNCIL,04/08/2017,LEARNING DIS & MENTAL HEALTH,EAST AND WEST HEALTHCARE LIMITED,04/08/2017,738.70 ,NURSING LONG TERM,V001155621
ROCHDALE BOROUGH COUNCIL,04/08/2017,PHYSICAL DIS & OLDER PEOPLE,EAST AND WEST HEALTHCARE LIMITED,04/08/2017,738.70 ,NURSING LONG TERM,V001155814
ROCHDALE BOROUGH COUNCIL,04/08/2017,PHYSICAL DIS & OLDER PEOPLE,EAST AND WEST HEALTHCARE LIMITED,04/08/2017,738.70 ,NURSING LONG TERM,V001156157
ROCHDALE BOROUGH COUNCIL,04/08/2017,LEARNING DIS & MENTAL HEALTH,EAST AND WEST HEALTHCARE LIMITED,04/08/2017,738.70 ,RESIDENTIAL LONG TERM,V001156170
ROCHDALE BOROUGH COUNCIL,04/08/2017,PHYSICAL DIS & OLDER PEOPLE,EAST AND WEST HEALTHCARE LIMITED,04/08/2017,738.70 ,NURSING LONG TERM,V001156413
ROCHDALE BOROUGH COUNCIL,18/08/2017,LEARNING DIS & MENTAL HEALTH,EAST AND WEST HEALTHCARE LIMITED,18/08/2017,738.70 ,NURSING LONG TERM,V001159926
ROCHDALE BOROUGH COUNCIL,18/08/2017,PHYSICAL DIS & OLDER PEOPLE,EAST AND WEST HEALTHCARE LIMITED,18/08/2017,738.70 ,NURSING LONG TERM,V001160146
ROCHDALE BOROUGH COUNCIL,18/08/2017,PHYSICAL DIS & OLDER PEOPLE,EAST AND WEST HEALTHCARE LIMITED,18/08/2017,738.70 ,NURSING LONG TERM,V001160572
ROCHDALE BOROUGH COUNCIL,18/08/2017,LEARNING DIS & MENTAL HEALTH,EAST AND WEST HEALTHCARE LIMITED,18/08/2017,738.70 ,RESIDENTIAL LONG TERM,V001160588
ROCHDALE BOROUGH COUNCIL,18/08/2017,PHYSICAL DIS & OLDER PEOPLE,EAST AND WEST HEALTHCARE LIMITED,18/08/2017,738.70 ,NURSING LONG TERM,V001160893
ROCHDALE BOROUGH COUNCIL,04/08/2017,PHYSICAL DIS & OLDER PEOPLE,EAST AND WEST HEALTHCARE LIMITED,04/08/2017,754.50 ,NURSING LONG TERM,V001155513
ROCHDALE BOROUGH COUNCIL,04/08/2017,PHYSICAL DIS & OLDER PEOPLE,EAST AND WEST HEALTHCARE LIMITED,04/08/2017,754.50 ,NURSING LONG TERM,V001155845
ROCHDALE BOROUGH COUNCIL,18/08/2017,PHYSICAL DIS & OLDER PEOPLE,EAST AND WEST HEALTHCARE LIMITED,18/08/2017,754.50 ,NURSING LONG TERM,V001159854
ROCHDALE BOROUGH COUNCIL,18/08/2017,PHYSICAL DIS & OLDER PEOPLE,EAST AND WEST HEALTHCARE LIMITED,18/08/2017,754.50 ,NURSING LONG TERM,V001160183
ROCHDALE BOROUGH COUNCIL,04/08/2017,PHYSICAL DIS & OLDER PEOPLE,EAST AND WEST HEALTHCARE LIMITED,04/08/2017,770.50 ,NURSING LONG TERM,V001155760
ROCHDALE BOROUGH COUNCIL,18/08/2017,PHYSICAL DIS & OLDER PEOPLE,EAST AND WEST HEALTHCARE LIMITED,18/08/2017,770.50 ,NURSING LONG TERM,V001160076
ROCHDALE BOROUGH COUNCIL,18/08/2017,PHYSICAL DIS & OLDER PEOPLE,EAST AND WEST HEALTHCARE LIMITED,18/08/2017,770.50 ,NURSING LONG TERM,V001160489
ROCHDALE BOROUGH COUNCIL,04/08/2017,PHYSICAL DIS & OLDER PEOPLE,EAST AND WEST HEALTHCARE LIMITED,04/08/2017,778.50 ,NURSING LONG TERM,V001156108
ROCHDALE BOROUGH COUNCIL,04/08/2017,LEARNING DIS & MENTAL HEALTH,EAST AND WEST HEALTHCARE LIMITED,04/08/2017,838.70 ,NURSING LONG TERM,V001155704
ROCHDALE BOROUGH COUNCIL,18/08/2017,LEARNING DIS & MENTAL HEALTH,EAST AND WEST HEALTHCARE LIMITED,18/08/2017,838.70 ,NURSING LONG TERM,V001160014
ROCHDALE BOROUGH COUNCIL,18/08/2017,PHYSICAL DIS & OLDER PEOPLE,EAST AND WEST HEALTHCARE LIMITED,18/08/2017,846.30 ,NURSING LONG TERM,V001161001
ROCHDALE BOROUGH COUNCIL,04/08/2017,LEARNING DIS & MENTAL HEALTH,EAST AND WEST HEALTHCARE LIMITED,04/08/2017,859.52 ,NURSING LONG TERM,V001155772
ROCHDALE BOROUGH COUNCIL,18/08/2017,LEARNING DIS & MENTAL HEALTH,EAST AND WEST HEALTHCARE LIMITED,18/08/2017,859.52 ,NURSING LONG TERM,V001160089
ROCHDALE BOROUGH COUNCIL,04/08/2017,PHYSICAL DIS & OLDER PEOPLE,EAST AND WEST HEALTHCARE LIMITED,04/08/2017,900.00 ,NURSING LONG TERM,V001155665
ROCHDALE BOROUGH COUNCIL,04/08/2017,PHYSICAL DIS & OLDER PEOPLE,EAST AND WEST HEALTHCARE LIMITED,04/08/2017,900.00 ,SHORT TERM CARE - RESIDENTIAL,V001156057
ROCHDALE BOROUGH COUNCIL,04/08/2017,PHYSICAL DIS & OLDER PEOPLE,EAST AND WEST HEALTHCARE LIMITED,04/08/2017,900.00 ,RESIDENTIAL LONG TERM,V001156139
ROCHDALE BOROUGH COUNCIL,04/08/2017,PHYSICAL DIS & OLDER PEOPLE,EAST AND WEST HEALTHCARE LIMITED,04/08/2017,900.00 ,ASSESSMENT CARE,V001156454
ROCHDALE BOROUGH COUNCIL,18/08/2017,PHYSICAL DIS & OLDER PEOPLE,EAST AND WEST HEALTHCARE LIMITED,18/08/2017,900.00 ,NURSING LONG TERM,V001159971
ROCHDALE BOROUGH COUNCIL,18/08/2017,PHYSICAL DIS & OLDER PEOPLE,EAST AND WEST HEALTHCARE LIMITED,18/08/2017,900.00 ,SHORT TERM CARE - RESIDENTIAL,V001160422
ROCHDALE BOROUGH COUNCIL,18/08/2017,PHYSICAL DIS & OLDER PEOPLE,EAST AND WEST HEALTHCARE LIMITED,18/08/2017,900.00 ,RESIDENTIAL LONG TERM,V001160522
ROCHDALE BOROUGH COUNCIL,18/08/2017,PHYSICAL DIS & OLDER PEOPLE,EAST AND WEST HEALTHCARE LIMITED,18/08/2017,900.00 ,SHORT TERM CARE - RESIDENTIAL,V001160920
ROCHDALE BOROUGH COUNCIL,18/08/2017,PHYSICAL DIS & OLDER PEOPLE,EAST AND WEST HEALTHCARE LIMITED,18/08/2017,900.00 ,SHORT TERM CARE - RESIDENTIAL,V001160957
ROCHDALE BOROUGH COUNCIL,18/08/2017,PHYSICAL DIS & OLDER PEOPLE,EAST AND WEST HEALTHCARE LIMITED,18/08/2017,900.00 ,SHORT TERM CARE - RESIDENTIAL,V001160958
ROCHDALE BOROUGH COUNCIL,18/08/2017,PHYSICAL DIS & OLDER PEOPLE,EAST AND WEST HEALTHCARE LIMITED,18/08/2017,900.00 ,SHORT TERM CARE - RESIDENTIAL,V001160959
ROCHDALE BOROUGH COUNCIL,04/08/2017,LEARNING DIS & MENTAL HEALTH,EAST AND WEST HEALTHCARE LIMITED,04/08/2017,914.00 ,RESIDENTIAL LONG TERM,V001155510
ROCHDALE BOROUGH COUNCIL,04/08/2017,PHYSICAL DIS & OLDER PEOPLE,EAST AND WEST HEALTHCARE LIMITED,04/08/2017,914.00 ,RESIDENTIAL LONG TERM,V001155749
ROCHDALE BOROUGH COUNCIL,04/08/2017,LEARNING DIS & MENTAL HEALTH,EAST AND WEST HEALTHCARE LIMITED,04/08/2017,914.00 ,RESIDENTIAL LONG TERM,V001156467
ROCHDALE BOROUGH COUNCIL,18/08/2017,LEARNING DIS & MENTAL HEALTH,EAST AND WEST HEALTHCARE LIMITED,18/08/2017,914.00 ,RESIDENTIAL LONG TERM,V001159852
ROCHDALE BOROUGH COUNCIL,18/08/2017,PHYSICAL DIS & OLDER PEOPLE,EAST AND WEST HEALTHCARE LIMITED,18/08/2017,914.00 ,RESIDENTIAL LONG TERM,V001160064
ROCHDALE BOROUGH COUNCIL,18/08/2017,LEARNING DIS & MENTAL HEALTH,EAST AND WEST HEALTHCARE LIMITED,18/08/2017,914.00 ,RESIDENTIAL LONG TERM,V001160945
ROCHDALE BOROUGH COUNCIL,04/08/2017,LEARNING DIS & MENTAL HEALTH,EAST AND WEST HEALTHCARE LIMITED,04/08/2017,926.40 ,RESIDENTIAL LONG TERM,V001155724
ROCHDALE BOROUGH COUNCIL,18/08/2017,LEARNING DIS & MENTAL HEALTH,EAST AND WEST HEALTHCARE LIMITED,18/08/2017,926.40 ,RESIDENTIAL LONG TERM,V001160035
ROCHDALE BOROUGH COUNCIL,04/08/2017,LEARNING DIS & MENTAL HEALTH,EAST AND WEST HEALTHCARE LIMITED,04/08/2017,940.00 ,RESIDENTIAL LONG TERM,V001156190
ROCHDALE BOROUGH COUNCIL,18/08/2017,LEARNING DIS & MENTAL HEALTH,EAST AND WEST HEALTHCARE LIMITED,18/08/2017,940.00 ,RESIDENTIAL LONG TERM,V001160605
ROCHDALE BOROUGH COUNCIL,04/08/2017,LEARNING DIS & MENTAL HEALTH,EAST AND WEST HEALTHCARE LIMITED,04/08/2017,971.70 ,NURSING LONG TERM,V001156064
ROCHDALE BOROUGH COUNCIL,18/08/2017,LEARNING DIS & MENTAL HEALTH,EAST AND WEST HEALTHCARE LIMITED,18/08/2017,971.70 ,NURSING LONG TERM,V001160429
ROCHDALE BOROUGH COUNCIL,04/08/2017,PHYSICAL DIS & OLDER PEOPLE,EAST AND WEST HEALTHCARE LIMITED,04/08/2017,1008.90 ,RESIDENTIAL LONG TERM,V001155934
ROCHDALE BOROUGH COUNCIL,18/08/2017,PHYSICAL DIS & OLDER PEOPLE,EAST AND WEST HEALTHCARE LIMITED,18/08/2017,1008.90 ,RESIDENTIAL LONG TERM,V001160299
ROCHDALE BOROUGH COUNCIL,04/08/2017,PHYSICAL DIS & OLDER PEOPLE,EAST AND WEST HEALTHCARE LIMITED,04/08/2017,1012.28 ,NURSING LONG TERM,V001155606
ROCHDALE BOROUGH COUNCIL,18/08/2017,PHYSICAL DIS & OLDER PEOPLE,EAST AND WEST HEALTHCARE LIMITED,18/08/2017,1012.28 ,NURSING LONG TERM,V001159909
ROCHDALE BOROUGH COUNCIL,04/08/2017,PHYSICAL DIS & OLDER PEOPLE,EAST AND WEST HEALTHCARE LIMITED,04/08/2017,1435.28 ,NURSING LONG TERM,V001155686
ROCHDALE BOROUGH COUNCIL,18/08/2017,PHYSICAL DIS & OLDER PEOPLE,EAST AND WEST HEALTHCARE LIMITED,18/08/2017,1435.28 ,NURSING LONG TERM,V001159986
ROCHDALE BOROUGH COUNCIL,16/08/2017,ECONOMY DIRECTORATE,EAST LANCASHIRE SERVICES LIMITED,16/08/2017,905.02 ,EQUIPMENT - GENERAL,V001159060
ROCHDALE BOROUGH COUNCIL,01/08/2017,NEIGHBOURHOODS AND ENVIRONMENT,EBONIUM LIMITED TA BISLEY DIRECT,01/08/2017,657.36 ,EQUIPMENT - GENERAL,V001150329
ROCHDALE BOROUGH COUNCIL,01/08/2017,RESOURCES,EBONIUM LIMITED TA BISLEY DIRECT,01/08/2017,991.37 ,EQUIPMENT - GENERAL,V001151614
ROCHDALE BOROUGH COUNCIL,08/08/2017,RESOURCES,EBONIUM LIMITED TA BISLEY DIRECT,08/08/2017,3965.48 ,EXPENSES - GENERAL,V001154171
ROCHDALE BOROUGH COUNCIL,25/08/2017,PUBLIC HEALTH,EDENFIELD ROAD SURGERY,25/08/2017,3342.16 ,PH LCS PAYMENTS,V001161480
ROCHDALE BOROUGH COUNCIL,16/08/2017,NEIGHBOURHOODS AND ENVIRONMENT,EDF ENERGY 1 LIMITED,16/08/2017,1462.92 ,ELECTRICITY,V001158713
ROCHDALE BOROUGH COUNCIL,16/08/2017,NEIGHBOURHOODS AND ENVIRONMENT,EDF ENERGY 1 LIMITED,16/08/2017,1546.30 ,ELECTRICITY,V001158712
ROCHDALE BOROUGH COUNCIL,04/08/2017,LEARNING DIS & MENTAL HEALTH,EHC MOSTON GRANGE LTD,04/08/2017,925.00 ,NURSING LONG TERM,V001156044
ROCHDALE BOROUGH COUNCIL,18/08/2017,LEARNING DIS & MENTAL HEALTH,EHC MOSTON GRANGE LTD,18/08/2017,925.00 ,NURSING LONG TERM,V001160409
ROCHDALE BOROUGH COUNCIL,04/08/2017,LEARNING DIS & MENTAL HEALTH,EHC MOSTON GRANGE LTD,04/08/2017,1080.00 ,RESIDENTIAL LONG TERM,V001156094
ROCHDALE BOROUGH COUNCIL,18/08/2017,LEARNING DIS & MENTAL HEALTH,EHC MOSTON GRANGE LTD,18/08/2017,1080.00 ,RESIDENTIAL LONG TERM,V001160463
ROCHDALE BOROUGH COUNCIL,04/08/2017,LEARNING DIS & MENTAL HEALTH,ELDERCARE HALIFAX LTD,04/08/2017,1231.10 ,RESIDENTIAL LONG TERM,V001155860
ROCHDALE BOROUGH COUNCIL,18/08/2017,LEARNING DIS & MENTAL HEALTH,ELDERCARE HALIFAX LTD,18/08/2017,1231.10 ,RESIDENTIAL LONG TERM,V001160200
ROCHDALE BOROUGH COUNCIL,04/08/2017,PHYSICAL DIS & OLDER PEOPLE,ELDERCARE LANCS LIMITED,04/08/2017,553.88 ,RESIDENTIAL LONG TERM,V001155717
ROCHDALE BOROUGH COUNCIL,18/08/2017,PHYSICAL DIS & OLDER PEOPLE,ELDERCARE LANCS LIMITED,18/08/2017,553.88 ,RESIDENTIAL LONG TERM,V001160028
ROCHDALE BOROUGH COUNCIL,04/08/2017,PHYSICAL DIS & OLDER PEOPLE,ELDERCARE LANCS LIMITED,04/08/2017,558.94 ,RESIDENTIAL LONG TERM,V001156211
ROCHDALE BOROUGH COUNCIL,18/08/2017,PHYSICAL DIS & OLDER PEOPLE,ELDERCARE LANCS LIMITED,18/08/2017,558.94 ,RESIDENTIAL LONG TERM,V001160630
ROCHDALE BOROUGH COUNCIL,04/08/2017,PHYSICAL DIS & OLDER PEOPLE,ELDERCARE LANCS LIMITED,04/08/2017,579.12 ,RESIDENTIAL LONG TERM,V001156001
ROCHDALE BOROUGH COUNCIL,18/08/2017,PHYSICAL DIS & OLDER PEOPLE,ELDERCARE LANCS LIMITED,18/08/2017,579.12 ,RESIDENTIAL LONG TERM,V001160368
ROCHDALE BOROUGH COUNCIL,04/08/2017,PHYSICAL DIS & OLDER PEOPLE,ELDERCARE LANCS LIMITED,04/08/2017,584.18 ,RESIDENTIAL LONG TERM,V001155837
ROCHDALE BOROUGH COUNCIL,18/08/2017,PHYSICAL DIS & OLDER PEOPLE,ELDERCARE LANCS LIMITED,18/08/2017,584.18 ,RESIDENTIAL LONG TERM,V001160169
ROCHDALE BOROUGH COUNCIL,04/08/2017,PHYSICAL DIS & OLDER PEOPLE,ELDERCARE LANCS LIMITED,04/08/2017,607.90 ,RESIDENTIAL LONG TERM,V001156158
ROCHDALE BOROUGH COUNCIL,18/08/2017,PHYSICAL DIS & OLDER PEOPLE,ELDERCARE LANCS LIMITED,18/08/2017,607.90 ,RESIDENTIAL LONG TERM,V001160573
ROCHDALE BOROUGH COUNCIL,04/08/2017,PHYSICAL DIS & OLDER PEOPLE,ELDERCARE LANCS LIMITED,04/08/2017,621.14 ,RESIDENTIAL LONG TERM,V001155549
ROCHDALE BOROUGH COUNCIL,18/08/2017,PHYSICAL DIS & OLDER PEOPLE,ELDERCARE LANCS LIMITED,18/08/2017,621.14 ,RESIDENTIAL LONG TERM,V001159874
ROCHDALE BOROUGH COUNCIL,04/08/2017,PHYSICAL DIS & OLDER PEOPLE,ELDERCARE LANCS LIMITED,04/08/2017,623.22 ,RESIDENTIAL LONG TERM,V001156326
ROCHDALE BOROUGH COUNCIL,18/08/2017,PHYSICAL DIS & OLDER PEOPLE,ELDERCARE LANCS LIMITED,18/08/2017,623.22 ,RESIDENTIAL LONG TERM,V001160788
ROCHDALE BOROUGH COUNCIL,04/08/2017,LEARNING DIS & MENTAL HEALTH,ELDERCARE LANCS LIMITED,04/08/2017,631.10 ,RESIDENTIAL LONG TERM,V001155721
ROCHDALE BOROUGH COUNCIL,04/08/2017,PHYSICAL DIS & OLDER PEOPLE,ELDERCARE LANCS LIMITED,04/08/2017,631.10 ,RESIDENTIAL LONG TERM,V001156078
ROCHDALE BOROUGH COUNCIL,04/08/2017,PHYSICAL DIS & OLDER PEOPLE,ELDERCARE LANCS LIMITED,04/08/2017,631.10 ,RESIDENTIAL LONG TERM,V001156088
ROCHDALE BOROUGH COUNCIL,04/08/2017,PHYSICAL DIS & OLDER PEOPLE,ELDERCARE LANCS LIMITED,04/08/2017,631.10 ,RESIDENTIAL LONG TERM,V001156229
ROCHDALE BOROUGH COUNCIL,18/08/2017,LEARNING DIS & MENTAL HEALTH,ELDERCARE LANCS LIMITED,18/08/2017,631.10 ,RESIDENTIAL LONG TERM,V001160032
ROCHDALE BOROUGH COUNCIL,18/08/2017,PHYSICAL DIS & OLDER PEOPLE,ELDERCARE LANCS LIMITED,18/08/2017,631.10 ,RESIDENTIAL LONG TERM,V001160447
ROCHDALE BOROUGH COUNCIL,18/08/2017,PHYSICAL DIS & OLDER PEOPLE,ELDERCARE LANCS LIMITED,18/08/2017,631.10 ,RESIDENTIAL LONG TERM,V001160457
ROCHDALE BOROUGH COUNCIL,18/08/2017,PHYSICAL DIS & OLDER PEOPLE,ELDERCARE LANCS LIMITED,18/08/2017,631.10 ,RESIDENTIAL LONG TERM,V001160648
ROCHDALE BOROUGH COUNCIL,04/08/2017,PHYSICAL DIS & OLDER PEOPLE,ELDERCARE LANCS LIMITED,04/08/2017,633.92 ,RESIDENTIAL LONG TERM,V001156116
ROCHDALE BOROUGH COUNCIL,18/08/2017,PHYSICAL DIS & OLDER PEOPLE,ELDERCARE LANCS LIMITED,18/08/2017,633.92 ,RESIDENTIAL LONG TERM,V001160499
ROCHDALE BOROUGH COUNCIL,04/08/2017,PHYSICAL DIS & OLDER PEOPLE,ELDERCARE LANCS LIMITED,04/08/2017,647.10 ,RESIDENTIAL LONG TERM,V001156256
ROCHDALE BOROUGH COUNCIL,18/08/2017,PHYSICAL DIS & OLDER PEOPLE,ELDERCARE LANCS LIMITED,18/08/2017,647.10 ,RESIDENTIAL LONG TERM,V001160684
ROCHDALE BOROUGH COUNCIL,31/08/2017,PHYSICAL DIS & OLDER PEOPLE,ELDERCARE UK LTD,31/08/2017,6528.69 ,SERVICE LEVEL AGREEMENTS,V001159306
ROCHDALE BOROUGH COUNCIL,18/08/2017,PHYSICAL DIS & OLDER PEOPLE,ELIZABETH HOUSE OLDHAM LTD,18/08/2017,-586.26 ,RESIDENTIAL LONG TERM,V001160295
ROCHDALE BOROUGH COUNCIL,04/08/2017,PHYSICAL DIS & OLDER PEOPLE,ELIZABETH HOUSE OLDHAM LTD,04/08/2017,586.26 ,RESIDENTIAL LONG TERM,V001155930
ROCHDALE BOROUGH COUNCIL,04/08/2017,PHYSICAL DIS & OLDER PEOPLE,ELIZABETH HOUSE OLDHAM LTD,04/08/2017,598.48 ,RESIDENTIAL LONG TERM,V001156021
ROCHDALE BOROUGH COUNCIL,04/08/2017,PHYSICAL DIS & OLDER PEOPLE,ELIZABETH HOUSE OLDHAM LTD,04/08/2017,611.98 ,RESIDENTIAL LONG TERM,V001156525
ROCHDALE BOROUGH COUNCIL,18/08/2017,PHYSICAL DIS & OLDER PEOPLE,ELIZABETH HOUSE OLDHAM LTD,18/08/2017,611.98 ,RESIDENTIAL LONG TERM,V001160996
ROCHDALE BOROUGH COUNCIL,04/08/2017,PHYSICAL DIS & OLDER PEOPLE,ELIZABETH HOUSE OLDHAM LTD,04/08/2017,631.10 ,RESIDENTIAL LONG TERM,V001156207
ROCHDALE BOROUGH COUNCIL,04/08/2017,PHYSICAL DIS & OLDER PEOPLE,ELIZABETH HOUSE OLDHAM LTD,04/08/2017,631.10 ,RESIDENTIAL LONG TERM,V001156348
ROCHDALE BOROUGH COUNCIL,18/08/2017,PHYSICAL DIS & OLDER PEOPLE,ELIZABETH HOUSE OLDHAM LTD,18/08/2017,631.10 ,RESIDENTIAL LONG TERM,V001160624
ROCHDALE BOROUGH COUNCIL,18/08/2017,PHYSICAL DIS & OLDER PEOPLE,ELIZABETH HOUSE OLDHAM LTD,18/08/2017,631.10 ,RESIDENTIAL LONG TERM,V001160809
ROCHDALE BOROUGH COUNCIL,02/08/2017,NEIGHBOURHOODS AND ENVIRONMENT,ELLENROAD TRUST,02/08/2017,5000.00 ,GRANTS TO OTHER BODIES,V001155479
ROCHDALE BOROUGH COUNCIL,08/08/2017,NEIGHBOURHOODS AND ENVIRONMENT,ELYGRA,08/08/2017,2463.82 ,MARKETING EXPENDITURE,V001154679
ROCHDALE BOROUGH COUNCIL,24/08/2017,RESOURCES,EMMA GREENHALGH,24/08/2017,2520.00 ,PROFESSIONAL FEES,V001163035
ROCHDALE BOROUGH COUNCIL,18/08/2017,NEIGHBOURHOODS AND ENVIRONMENT,EMO OIL LIMITED,18/08/2017,4680.00 ,OIL,V001159001
ROCHDALE BOROUGH COUNCIL,04/08/2017,NEIGHBOURHOODS AND ENVIRONMENT,EMO OIL LIMITED,04/08/2017,19991.64 ,TRANSACTIONS-EXPENDITURE,V001154768
ROCHDALE BOROUGH COUNCIL,18/08/2017,NEIGHBOURHOODS AND ENVIRONMENT,EMO OIL LIMITED,18/08/2017,27668.77 ,TRANSACTIONS-EXPENDITURE,V001158976
ROCHDALE BOROUGH COUNCIL,18/08/2017,CHILDREN�S SOCIAL CARE,ENABLING FUTURES LTD,18/08/2017,10971.43 ,EBD (EMOT & BEHAV DIFF) PLACEMENTS,V001161202
ROCHDALE BOROUGH COUNCIL,18/08/2017,CHILDREN�S SOCIAL CARE,ENABLING FUTURES LTD,18/08/2017,13714.28 ,EBD (EMOT & BEHAV DIFF) PLACEMENTS,V001161207
ROCHDALE BOROUGH COUNCIL,18/08/2017,CHILDREN�S SOCIAL CARE,ENABLING FUTURES LTD,18/08/2017,14171.43 ,EBD (EMOT & BEHAV DIFF) PLACEMENTS,V001161205
ROCHDALE BOROUGH COUNCIL,18/08/2017,CHILDREN�S SOCIAL CARE,ENABLING FUTURES LTD,18/08/2017,14171.43 ,EBD (EMOT & BEHAV DIFF) PLACEMENTS,V001161208
ROCHDALE BOROUGH COUNCIL,01/08/2017,EARLY HELP AND SCHOOLS,ENLIGHTENING,01/08/2017,2695.91 ,ACTIVITIES,V001150137
ROCHDALE BOROUGH COUNCIL,23/08/2017,NEIGHBOURHOODS AND ENVIRONMENT,ENTERPRISE FLEX-E-RENT,23/08/2017,996.19 ,TRANSACTIONS-EXPENDITURE,V001161594
